Workbook

Sheet Contents
C3: Sheet Tab | D3: Description | E3: Author
B4: 1 | C4: Contents
B5: 2 | C5: Summary
B6: 3 | C6: Assumptions
B7: 4 | C7: Annual Model
B8: 5 | C8: Sensitivity Factors
B9: 6 | C9: Comparison
B10: 7 | C10: Cap Exp
B11: 8 | C11: Energy Yield in Jordan
B12: 9 | C12: Jordan Tax Rates
B13: 10 | C13: Simple Model

Sheet Currency Notes
L2: 0.015 | M2: 0.015 | N2: 0.015 | O2: 0.015 | P2: 0.015 | Q2: 0.015
C3: 1. Set up with PPP exchange rate | K3: 7.18 | L3: 0.07 | M3: 0.07 | N3: 0.07 | O3: 0.07 | P3: 0.07 | Q3: 0.07
C5: 2. Allow deviations from PPP exchange rate | I5: PPP | K5: =K3 -> 7.18 | L5: =K5*(1+L3)/(1+L2) -> 7.569064039 | M5: =L5*(1+M3)/(1+M2) -> 7.979210367 | N5: 8.411581372 | O5: 8.867381348 | P5: 9.347879844 | Q5: 9.854415205
J6: 0 | K6: 1 | L6: =K6*(1+$J$6) -> 1 | M6: =L6*(1+$J$6) -> 1 | N6: 1 | O6: 1 | P6: 1 | Q6: 1
C7: 3. Compute Adjusted exchange rate with deviations | I7: Adjusted | L7: =L5*L6 -> 7.569064039 | M7: =M5*M6 -> 7.979210367 | N7: 8.411581372 | O7: 8.867381348 | P7: 9.347879844 | Q7: 9.854415205
C9: 4. Compute key flows like revenues, cap exp and expenses in local and foreign currency
C11: 5. Compute depreciation in local currency if taxes depend on depreciation
C13: 6. Compute debt in currency of the debt
C15: 7. Compute cash flows and IRRs in alternative currencies
C17: 8. Compute translation adjustments for asset and liability balances
C19: 9. If higher inflation in local currency, then the value of assets declines in foreign currency and depreciation of assets that decline in value produces less tax shield
C21: 10. If higher inflation in local currency, and debt is in foreign currency then the liability increases when stated in local currency. Must have increase in liability when convert to local
C23: 11. If higher inflation in local currency, and debt is in foreign currency then the liability increases when stated in foreign currency. Must have decrease in liability
C25: 12. Should make financial statements in both currencies
C29: To Make Foreign curreny debt flexible
C31: 1 | D31: Make sources and uses in both currencies
C32: 2 | D32: For alternative currency (what debt was NOT issued), take IDC, DSRA, Fees, Draws from bottom of debt schedule where it is shown in alt currency
C33: 3 | D33: Make debt schedule in currency of debt
C34: 4 | D34: Transalate to alternative currency

Sheet Summary
M2: ='Financial Model'!L156 -> FALSE
A4: Project Cost and Financing | P4: =Assumptions!G23 -> USD | Q4: =Assumptions!G23 -> USD | R4: =Assumptions!G22 -> PKR | S4: Profit/
B5: Capacity | F5: kWp | G5: =Assumptions!G35 -> 61200 | L5: Project Returns | P5: Nominal | Q5: Real | R5: Nominal | S5: Multiplier
M6: Project IRR Pre-tax | P6: ='Financial Model'!F189 -> 0.05745901167 | Q6: ='Financial Model'!F190 -> 0.04351549447 | R6: ='Financial Model'!F188 -> 0.1334629595
B7: Sources and Uses | F7: =Assumptions!G22 -> PKR | G7: =Assumptions!G23 -> USD | H7: =G7&"/kWp" -> USD/kWp | I7: Percent | M7: Project IRR After-tax | P7: ='Financial Model'!F228 -> 0.04290729463 | Q7: ='Financial Model'!F229 -> 0.0289737612 | R7: ='Financial Model'!F227 -> 0.1173492849
C8: Uses of Funds | M8: Cash Equity IRR All Sources | P8: ='Financial Model'!F414 -> 0.06685123146 | Q8: ='Financial Model'!F415 -> 0.05243783295 | R8: ='Financial Model'!F413 -> 0.1425320446
D9: Development Cost - Partner 1 | F9: =G9*Assumptions!$G$26 -> 44840628 | G9: =Assumptions!G49 -> 428400 | H9: =Assumptions!H49 -> 7 | I9: =G9/$G$19 -> 0.007236997439 | M9: Developer 1 IRR | P9: ='Financial Model'!E452 -> 0.3363896668 | Q9: ='Financial Model'!F476 -> 0.3270065367 | R9: ='Financial Model'!F483 -> 0.448069185 | S9: =Assumptions!G52 -> 8
D10: Development Cost - Partner 2 | F10: =G10*Assumptions!$G$26 -> 12811608 | G10: =Assumptions!G50 -> 122400 | H10: =Assumptions!H50 -> 2 | I10: 0.002067713554 | M10: Developer 2 IRR | P10: ='Financial Model'!E453 -> 0.6230809391 | Q10: ='Financial Model'!F477 -> 0.6165805876 | R10: ='Financial Model'!F484 -> 0.7648551345 | S10: =Assumptions!G53 -> 6
D11: Development Profit Fee - Partner 1 | F11: =G11*Assumptions!$G$26 -> 313884396 | G11: =Assumptions!G58 -> 2998800 | H11: =G11/G5 -> 49 | I11: 0.05065898208 | M11: EPC IRR | P11: ='Financial Model'!E454 -> 0.05484737456 | Q11: ='Financial Model'!F478 -> 0.04034589231 | R11: ='Financial Model'!F485 -> 0.1289531529
D12: Development Profit Fee - Partner 2 | F12: =G12*Assumptions!$G$26 -> 64058040 | G12: =Assumptions!G59 -> 612000 | H12: =G12/G5 -> 10 | I12: 0.01033856777 | M12: Sponsor IRR | P12: ='Financial Model'!E455 -> 0.05487930477 | Q12: ='Financial Model'!F479 -> 0.04036969841 | R12: ='Financial Model'!F486 -> 0.1289748371
D13: Advisory Fees | F13: =G13*Assumptions!$G$26 -> 27748017 | G13: ='Financial Model'!F152+'Financial Model'!F153 -> 265100 | H13: =G13/G5 -> 4.331699346 | I13: 0.004478356725
D14: EPC Cost Charged to Project | F14: =G14*Assumptions!$G$26 -> 5444933400 | G14: ='Financial Model'!F154 -> 52020000 | H14: =G14/G5 -> 850 | I14: 0.8787782605 | M14: Debt IRR Pre-tax | P14: ='Financial Model'!F426 -> 0.01544654667 | Q14: ='Financial Model'!F428 -> 0.002959039807 | R14: ='Financial Model'!F427 -> 0.0913662225 | S14: ='Financial Model'!H426 -> 36
E15: Sub-total | F15: =G15*Assumptions!G26 -> 5908276089 | G15: =SUM(G9:G14) -> 56446700 | H15: =G15/$G$5 -> 922.3316993 | I15: 0.9535588781 | M15: Debt IRR After-tax | P15: ='Financial Model'!F513 -> 0 | Q15: ='Financial Model'!F514 -> 0 | S15: ='Financial Model'!H513 -> 36
D16: Interest During Construction | F16: ='Financial Model'!F156 -> 561956.6217 | G16: ='Financial Model'!F156 -> 561956.6217 | H16: 9.182297741 | I16: 0.009493180748
D17: Lending Fees | F17: =G17*Assumptions!$G$26 -> 64417401.28 | G17: ='Financial Model'!F157 -> 615433.2787 | H17: 10.05609933 | I17: 0.01039656644 | M17: LCOE | P17: ='Financial Model'!F565 -> 45.02350938 | Q17: ='Financial Model'!F569 -> 38.87576966
D18: DSRA | F18: =G18*Assumptions!$G$26 -> 164513021.9 | G18: ='Financial Model'!F158 -> 1571730.409 | H18: 25.68186943 | I18: 0.02655137476
E19: Total | F19: =G19*Assumptions!$G$26 -> 6196026512 | G19: =SUM(G15:G18) -> 59195820.31 | H19: =G19/$G$5 -> 967.2519658 | I19: 1 | L19: Key Assumptions
C20: Sources of Funds | M20: Plant Life | P20: Yrs | R20: =Assumptions!H10 -> 25
D21: Debt | F21: =G21*Assumptions!$G$26 -> 3173896493 | G21: ='Financial Model'!F166 -> 30322886.15 | H21: =G21/$G$5 -> 495.4719959 | I21: =G21/$G$27 -> 0.5122470808 | M21: Irriadiation with Tilt | P21: w-hr | R21: =Assumptions!I36 -> 133.78767
D22: Developer 1 Equity | F22: =G22*Assumptions!$G$26 -> 358725024 | G22: ='Financial Model'!F171 -> 3427200 | H22: =G22/$G$5 -> 56 | I22: 0.05789597951 | M22: Irriadiation from Tracking | P22: w-hr | R22: =Assumptions!I37 -> 0
D23: Developer 2 Equity | F23: =G23*Assumptions!$G$26 -> 76869648 | G23: ='Financial Model'!F172 -> 734400 | H23: =G23/$G$5 -> 12 | I23: 0.01240628132 | M23: Performance Ratio | P23: Pct | R23: =Assumptions!I39 -> 0.8111456415
D24: EPC Equity | F24: =G24*Assumptions!$G$26 -> 403328400 | G24: ='Financial Model'!F173 -> 3853333.333 | H24: 62.96296296 | I24: 0.06509468596 | M24: Capacity Factor | P24: Pct | R24: ='Financial Model'!H51 -> 0.2184054852
D25: Sponsor Equity | F25: =G25*Assumptions!$G$26 -> 2183206946 | G25: ='Financial Model'!F174 -> 20858000.83 | H25: 340.817007 | I25: 0.3523559724 | M25: Energy Yield | P25: kWh/kWp/yr | R25: ='Energy Yield Data "PVSyst"'!F37 -> 1914.542484
D26: Total Equity | F26: =G26*Assumptions!$G$26 -> 3022130018 | G26: =SUM(G22:G25) -> 28872934.16 | H26: 471.7799699 | I26: 0.4877529192
E27: Total | F27: =G27*Assumptions!$G$26 -> 6196026512 | G27: =G26+G21 -> 59195820.31 | H27: =H26+H21 -> 967.2519658 | I27: =SUM(I21:I26) -> 1.487752919 | M27: Price per kWh | P27: ='Financial Model'!E55 -> USD/kWh | R27: =Assumptions!I116 -> 0.0506
M28: Price Escalation | P28: Annual % | R28: =Assumptions!I120 -> 0.013
C29: DSCR | F29: ='Financial Model'!E519 -> 1.530555451 | M29: O&M without Tracking | P29: EUR/kwp-yr | R29: =Assumptions!I127+Assumptions!I128 -> 18
C30: Interest Rate | F30: =SUM(Assumptions!K155:K157) -> 0.09 | H30: Tenor | I30: =Assumptions!G151 -> 22 | M30: Tracking O&M Cost | P30: EUR/kwp-yr | R30: =Assumptions!G129 -> 0
C31: Debt to Capital | F31: =Assumptions!G148 -> 0.6

Sheet Economics of Players
B3: Overall Cash Equity | C3: ='Financial Model'!F414 -> 0.06685123146
B5: Sponsor | C5: ='Financial Model'!E455 -> 0.05487930477
B7: Discount Rate 1 | C7: 0.14 | E7: Success | F7: Success | G7: Adjusted
B8: Multiplier | C8: =Assumptions!G52 -> 8 | E8: NPV | F8: Probability | G8: NPV
E11: ='Financial Model'!F459 -> 1234642.977 | F11: 0.3 | G11: =F11*E11+D12 -> -20669.91105 | I11: Wtd NPV
B12: Developer 1 - Other | D12: ='Financial Model'!F466 -> -391062.804 | I12: =G11+G13 -> -294413.8739
E13: 0 | F13: =1-F11 -> 0.7 | G13: =F13*D12 -> -273743.9628
B15: Discount Rate 2 | C15: 0.4
B16: Multiplier | C16: =Summary!$S$10 -> 6
E17: ='Financial Model'!F460 -> 1234642.977 | F17: =F11 -> 0.3 | G17: =F17*E17 -> 370392.893 | I17: Wtd NPV 2
B18: Developer 2 - Land | D18: ='Financial Model'!F467 -> -122400 | I18: =G17+G19 -> 247992.893
E19: 0 | F19: =F13 -> 0.7 | G19: =F19*E19+D18 -> -122400
E22: Expected | G22: Weighted
D23: IRR | E23: NPV | F23: Prob | G23: NPV
B24: Profit Percent | C24: =Assumptions!G100 -> 0.08
E25: ='Financial Model'!F473 -> 1672189.758 | F25: =1-F27 -> 0.7 | G25: =F25*E25 -> 1170532.83 | I25: Wtd NPV 3
B26: EPC Contractor | I26: =G25*F25+G27*F27 -> 146220.0595
E27: =E25+Assumptions!G107+Assumptions!G101 -> -7479476.909 | F27: =Assumptions!G88 -> 0.3 | G27: =E27*F27 -> -2243843.073
B30: Advisors

Sheet Development and Advisory
C2: Developer 1 | K2: Developer 2
D3: Capacity | E3: kWp | F3: =Assumptions!G35 -> 61200 | L3: =D3 -> Capacity | M3: kWp | N3: =F3 -> 61200
D4: Cost per kW | E4: =Assumptions!G23&" /kWp" -> USD /kWp | F4: ='Sensitivity Factors'!$C$20 -> 7 | L4: =D4 -> Cost per kW | M4: =E4 -> USD /kWp | N4: ='Sensitivity Factors'!$C$21 -> 2
D5: Total Cost | E5: =Assumptions!G23 -> USD | F5: =F3*F4 -> 428400 | L5: Total Cost | M5: =E5 -> USD | N5: =N3*N4 -> 122400
D7: Development Period | E7: Months | F7: 18
D10: Milestone | F10: Month | G10: Cost | H10: Probability | L10: Milestone | M10: Month | N10: Cost | O10: Probability
D11: Permit1 | E11: Month/EUR | F11: 1 | G11: 1000 | L11: Land | M11: 1 | N11: =N5 -> 122400
D12: Permit1 | E12: Month/EUR | F12: 3 | G12: 1200 | L12: Permit1 | M12: 3
D13: Study | E13: Month/EUR | F13: 4 | G13: 500 | L13: Study | M13: 4
D14: Approval | E14: Month/EUR | F14: 1 | G14: 1000 | L14: Approval | M14: 1
D15: Approval | E15: Month/EUR | F15: 2 | G15: 800 | L15: Approval | M15: 2
D16: Approval | E16: Month/EUR | F16: 12 | G16: 2000 | L16: Approval | M16: 12
D17: Approval | E17: Month/EUR | F17: 15 | G17: 900 | L17: Approval | M17: 15
D18: Approval | E18: Month/EUR | F18: 13 | G18: 800 | L18: Approval | M18: 13
D19: Approval | E19: Month/EUR | F19: 14 | G19: 1000 | L19: Approval | M19: 14
D20: Permit1 | E20: Month/EUR | F20: 6 | G20: 700 | L20: Permit1 | M20: 6
D21: Permit1 | E21: Month/EUR | F21: 18 | G21: 900 | L21: Permit1 | M21: 18
D23: Total | E23: EUR | G23: =SUM(G11:G22) -> 10800 | N23: =SUM(N11:N22) -> 122400
F25: Amount | G25: Monthly | N25: Amount | O25: Monthly
D26: Salary Cost | E26: EUR | F26: =F5-G23 -> 417600 | G26: =F26/F7 -> 23200 | N26: =N5-N23 -> 0 | O26: =N26/F7 -> 0

Sheet Assumptions
A1: Timing
B2: Start of Development | F2: Date | G2: 2016-04-01
B3: Phase 01 - Development Phase | F3: Months | G3: 18 | I3: Foreign IRR | J3: ='Financial Model'!F189 -> 0.05745901167
B4: Event - Ready to Bid | F4: Date | G4: =EDATE(G2,G3) -> 2017-10-01
B5: Phase 02 EPC Bidding Phase | F5: Months | G5: 2
B6: Event - Ready to Build | F6: Date | G6: =EDATE(G4,G5) -> 2017-12-01
B7: Event - Financial Close | F7: Date | G7: =G6 -> 2017-12-01
B8: Phase 03 - Construction Phase | F8: Months | G8: 5
B9: Event - COD | F9: Date | G9: =EDATE(G7,G8) -> 2018-05-01
B10: Phase 04 - Operations | F10: Years | G10: =ROUND(H10,0) -> 25 | H10: 25 | I10: ='Sensitivity Factors'!D6 -> 1.03
B11: Months of EPC Bonding post COD | F11: Months | G11: 36
B12: Event - End of EPC liabilities | F12: Date | G12: =EDATE(G9,G11) -> 2021-05-01
B13: Event - End of Project Life | F13: Date | G13: =EDATE(G9,H10*12) -> 2043-05-01
B14: Phase 05 - Dismantling | F14: Months | G14: 12
B15: Event - Dismanteled Date | F15: Date | G15: =EDATE(G13,G14) -> 2044-05-01
B17: Pre-COD Months | F17: Months | G17: =DAYS360(G2,G9)/30 -> 25
B18: Months in Period Pre-COD | F18: Months | G18: 1
B19: Months in Period Post-COD | F19: Months | G19: 12
A21: General Macro Assumptions
B22: Local Currency | F22: Symbol | G22: PKR
B23: Foreign Currency Symbol | F23: Symbol | G23: USD
B25: =G22&" to " &G23&" Exchange Rate" -> PKR to USD Exchange Rate | F25: =G22&"/"&G23 -> PKR/USD | G25: =1/G26 -> 0.009553835865
B26: =G23&" to "&G22&" Exchange Rate" -> USD to PKR Exchange Rate | F26: =G23&"/"&G22 -> USD/PKR | G26: 104.67
B28: Year | H28: =YEAR(G2) -> 2016 | I28: =H28+4 -> 2020 | J28: =I28+4 -> 2024 | K28: 2028 | L28: 2032
B29: ='Sensitivity Factors'!B49 -> LOCAL Inflation Rate - 6% | F29: Annual % | G29: ='Sensitivity Factors'!C39 -> 1 | H29: ='Sensitivity Factors'!G49 -> 0.06 | I29: ='Sensitivity Factors'!H49 -> 0.06 | J29: ='Sensitivity Factors'!I49 -> 0.06 | K29: ='Sensitivity Factors'!J49 -> 0.06 | L29: ='Sensitivity Factors'!K49 -> 0.06
B30: ='Sensitivity Factors'!B59 -> FOREIGN Inflation Rate - Changing | F30: Annual % | G30: ='Sensitivity Factors'!C51 -> 3 | H30: ='Sensitivity Factors'!G59 -> 0 | I30: ='Sensitivity Factors'!H59 -> 0.01 | J30: ='Sensitivity Factors'!I59 -> 0.015 | K30: ='Sensitivity Factors'!J59 -> 0.02 | L30: ='Sensitivity Factors'!K59 -> 0.02
B32: ='Sensitivity Factors'!B69 -> 3% Devaluation in LOCAL Relative to PPP | F32: Annual % | G32: ='Sensitivity Factors'!C61 -> 2 | H32: ='Sensitivity Factors'!G69 -> 0.03 | I32: ='Sensitivity Factors'!H69 -> 0.03 | J32: ='Sensitivity Factors'!I69 -> 0.03 | K32: ='Sensitivity Factors'!J69 -> 0.03 | L32: ='Sensitivity Factors'!K69 -> 0
A34: Plant Characteristics | G34: Base | H34: Sensitivity | I34: Adjusted
B35: Plant Capacity at STC | F35: kWp | G35: ='Energy Yield Data "PVSyst"'!H24 -> 61200 | I35: =G35 -> 61200
B36: Average Irriadiation with Tilt (incl. Tracking) per day | F36: KWh/day | G36: 133.78767 | H36: ='Sensitivity Factors'!D7 -> 1 | I36: =G36*H36 -> 133.78767
B37: Increased Irriadiation from Tracking | F37: KWh/day | I37: =G37 -> 0
B39: Performance Ratio | F39: Percent | G39: ='Energy Yield Data "PVSyst"'!F40 -> 0.8111456415 | H39: ='Sensitivity Factors'!D9 -> 1 | I39: =G39*H39 -> 0.8111456415
B41: Degradation
C42: Year | G42: Senstivity | H42: 0 | I42: 1 | J42: 2 | K42: 3
C43: Base Percent | F43: Percent | G43: ='Sensitivity Factors'!D10 -> 1 | H43: 0.005 | I43: 0.005 | J43: 0.005 | K43: 0.005
A45: Development Costs and Fees
B46: Probability of Successful Development | F46: Percent | G46: 0.2
G48: Amount | H48: per kW
B49: Development Costs - Partner 1 | F49: =G23 -> USD | G49: ='Development and Advisory'!F5 -> 428400 | H49: ='Development and Advisory'!F4 -> 7
B50: Development Costs - Partner 2 | F50: =F49 -> USD | G50: ='Development and Advisory'!N5 -> 122400 | H50: ='Development and Advisory'!N4 -> 2
B52: Development Fee/Cost Ratio - Partner 1 | F52: x | G52: ='Sensitivity Factors'!C23 -> 8
B53: Development Fee/Cost Ratio - Partner 2 | F53: x | G53: ='Sensitivity Factors'!C24 -> 6
B55: Development Fee - Partner 1 | F55: =$G$23 -> USD | G55: =G49*G52 -> 3427200
B56: Development Fee - Partner 2 | F56: =$G$23 -> USD | G56: =G50*G53 -> 734400
B58: Development Profit - Partner 1 | F58: =$G$23 -> USD | G58: =G55-G49 -> 2998800
B59: Development Profit - Partner 2 | F59: =$G$23 -> USD | G59: =G56-G50 -> 612000
J61: Net Contribution
B62: Development Fee Option - Partner 1 | G62: 2 | H62: FC Payment | I62: Equity | J62: at FC | K62: FC Date
C63: Pay Fee and Cost at COD | F63: Switch | G63: =CHOOSE($G$62,TRUE,FALSE,FALSE) -> FALSE | H63: =G55 -> 3427200 | I63: 0 | J63: =-G49 -> -428400 | K63: =G7 -> 2017-12-01
C64: Retain Fee and Cost for Equity Contribution | F64: Switch | G64: =CHOOSE($G$62,FALSE,TRUE,FALSE) -> TRUE | H64: 0 | I64: =G49+G58 -> 3427200 | J64: =G58 -> 2998800 | K64: =K63 -> 2017-12-01
C65: Retain Profit for Contribution and Pay Cost | F65: Switch | G65: =CHOOSE($G$62,FALSE,FALSE,TRUE) -> FALSE | H65: =G49 -> 428400 | I65: =G58 -> 2998800 | J65: =J64+J63 -> 2570400 | K65: =K64 -> 2017-12-01
C67: =INDEX(C63:C65,$G$62) -> Retain Fee and Cost for Equity Contribution | F67: =INDEX(F63:F65,$G$62) -> Switch | G67: TRUE | H67: 0 | I67: 3427200 | J67: 2998800 | K67: =INDEX(K63:K65,$G$62) -> 2017-12-01
B69: Development Fee Option - Partner 2 | G69: =G62 -> 2 | H69: FC Payment | I69: Equity | K69: FC Date
C70: Pay Fee and Cost at COD | F70: Switch | G70: =CHOOSE(G69,TRUE,FALSE,FALSE) -> FALSE | H70: =$G$50+$G$56 -> 856800 | I70: =$G$50+$G$56-H70 -> 0 | J70: =-G50 -> -122400 | K70: =G12 -> 2021-05-01
C71: Retain Fee and Cost for Equity Contribution | F71: Switch | G71: =CHOOSE(G69,FALSE,TRUE,FALSE) -> TRUE | H71: 0 | I71: =$G$50+$G$56-H71 -> 856800 | J71: =G59 -> 612000 | K71: =K70 -> 2021-05-01
C72: Retain Profit for Contribution and Pay Cost | F72: Switch | G72: =CHOOSE(G69,FALSE,FALSE,TRUE) -> FALSE | H72: =G50 -> 122400 | I72: 734400 | J72: =J71+J70 -> 489600 | K72: =K71 -> 2021-05-01
C74: =INDEX(C70:C72,$G$69) -> Retain Fee and Cost for Equity Contribution | F74: =INDEX(F70:F72,$G$69) -> Switch | G74: TRUE | H74: 0 | I74: 856800 | J74: 612000 | K74: 2021-05-01
A76: Advisory Fees and Costs
B77: Advisory Costs | G77: Amount | H77: Start | I77: End | J77: Date
C78: Underlying Cost | F78: =$G$23 -> USD | G78: 3000 | H78: 5 | I78: =H78 -> 5 | J78: =EDATE($G$2,H78) -> 2016-09-01
C79: Retainer/Month | F79: EUR/Mnt | G79: 1000 | H79: 1 | I79: 5 | J79: =EDATE($G$2,I79) -> 2016-09-01
C80: Months of Retainer | F80: Mnths | G80: 5
C81: Retainer Total | F81: =$G$23 -> USD | G81: =G79*G80 -> 5000
C82: Success Fee Percent | F82: % of EPC | G82: 0.005
C83: Success Fee Amount | F83: =$G$23 -> USD | G83: =G82*G96 -> 260100 | H83: =I83 -> 20 | I83: =G3+G5 -> 20 | J83: =EDATE($G$2,I83) -> 2017-12-01
B85: Total Advisory Fees | F85: =$G$23 -> USD | G85: =G81+G83 -> 265100 | H85: =G85/G35 -> 4.331699346
A87: Capital Expenditures for EPC
B88: Cost Over-run Probability | F88: Percent | G88: 0.3
B89: Cost Over-run Percent | F89: Percent | G89: 0.2
B91: Currency for EPC Outlays | F91: Local | G91: FALSE
F92: Foreign | G92: =NOT(G91) -> TRUE
F93: Currency | G93: =IF(G91,$G$22,$G$23) -> USD
G95: Amount
B96: EPC Price | F96: =$G$23 -> USD | G96: =G97*G35 -> 52020000
B97: EPC Price | F97: per kW | G97: 850
B99: No Cost Over-Run Scenario
C100: EPC Profit | F100: Percent | G100: 0.08
C101: EPC Profit/Equity Constribution | F101: =$G$23 -> USD | G101: =G96-G102 -> 3853333.333
C102: Underlying EPC Cost | F102: =$G$23 -> USD | G102: =G96/(1+G100) -> 48166666.67 | H102: =G102/G35 -> 787.037037
B104: Cost Over-Run Scenario
C105: EPC Profit | F105: Percent | G105: =G100-G89 -> -0.12
C106: Underlying Cost | F106: =$G$23 -> USD | G106: =G96/(1-G89) -> 65025000
C107: EPC Profit | F107: =$G$23 -> USD | G107: =G96-G106 -> -13005000
C108: EPC Equity Contribution | F108: =$G$23 -> USD | G108: =G101 -> 3853333.333
A110: Revenues
B111: Currency of Revenues | F111: Local | G111: TRUE
F112: Foreign | G112: =NOT(G111) -> FALSE
F113: Currency | G113: =IF(G111,$G$22,$G$23) -> PKR
G115: Base | H115: Sensitivity | I115: Adjusted
B116: Price per kWh | F116: =F101&"/kWh" -> USD/kWh | G116: 0.055 | H116: ='Sensitivity Factors'!D11 -> 0.92 | I116: =G116*H116 -> 0.0506
B117: Price per kWh | F117: =G22&"/kWh" -> PKR/kWh | G117: =G116*G26 -> 5.75685 | H117: =H116 -> 0.92 | I117: =G117*H117 -> 5.296302
B119: Apply Price Inflation | F119: Switch | G119: ='Sensitivity Factors'!C35 -> TRUE
B120: Price Escalation | F120: Annual Pct | G120: 0.013 | H120: ='Sensitivity Factors'!D12 -> 1 | I120: =G120*H120 -> 0.013
A122: Operating Expenses
B123: Currency of Operating Expenses | F123: Local | G123: TRUE
F124: Foreign | G124: =NOT(G123) -> FALSE
F125: Currency | G125: =IF(G123,$G$22,$G$23) -> PKR
B127: Base O&M Fee | F127: =F101&"/kWp-yr" -> USD/kWp-yr | G127: 15 | H127: ='Sensitivity Factors'!D13 -> 1 | I127: =G127*H127 -> 15
B128: G&A, Insurance, Trustee | F128: =F127 -> USD/kWp-yr | G128: 3 | I128: =G128 -> 3
B129: Tracking O&M | F129: =F128 -> USD/kWp-yr | G129: ='Sensitivity Factors'!C16 -> 0 | I129: =G129 -> 0
C130: Total | F130: =F129 -> USD/kWp-yr | G130: =SUM(G127:G129) -> 18
B132: Base O&M Fee | F132: =G22&"/kWp-yr" -> PKR/kWp-yr | G132: =G127/G25 -> 1570.05 | H132: =H127 -> 1 | I132: =G132*H132 -> 1570.05
B133: G&A, Insurance, Trustee | F133: =F132 -> PKR/kWp-yr | G133: =G128/G25 -> 314.01 | I133: =G133 -> 314.01
B134: Tracking O&M | F134: =F133 -> PKR/kWp-yr | G134: =G129/G25 -> 0 | I134: =G134 -> 0
C135: Total | F135: =F134 -> PKR/kWp-yr | G135: =SUM(G132:G134) -> 1884.06
A137: Tax and Depreciation
B138: Currency of Tax Return | F138: =G22 -> PKR
B139: Depreciation Life | F139: Yrs | G139: 20
B140: Fee Amortisation Period | F140: Yrs | G140: 5
B141: Income Tax Rate | F141: Percent | G141: 0.2
A143: Financing
B144: Currency of Debt | F144: Local | G144: TRUE
F145: Foreign | G145: =NOT(G144) -> FALSE
F146: Currency | G146: =IF(G144,$G$22,$G$23) -> PKR | H146: =IF(G145,G22,G23) -> USD
G147: =G146 -> PKR
B148: Debt Percent | F148: Percent | G148: ='Sensitivity Factors'!D28 -> 0.6
B150: Debt Repayment | F150: Sculpt | G150: ='Sensitivity Factors'!C36 -> FALSE
B151: Debt Tenor | F151: Years | G151: ='Sensitivity Factors'!$C$29 -> 22
G153: =G23 -> USD | H153: =G22 -> PKR | I153: =IF($G$144,H153,G153) -> PKR | J153: Sensitivity | K153: Applied
B154: Up-Front Fee | F154: Percent | G154: 0.02 | H154: 0.03 | I154: =IF($G$144,H154,G154) -> 0.03 | K154: =I154 -> 0.03
B155: Base Rate | F155: Percent | G155: 0.02 | H155: 0.06 | I155: 0.06 | J155: ='Sensitivity Factors'!D30 -> 1 | K155: =I155*J155 -> 0.06
B156: Credit Spread | F156: Percent | G156: 0.07 | H156: 0.03 | I156: 0.03 | J156: ='Sensitivity Factors'!D31 -> 1 | K156: =I156*J156 -> 0.03
B157: Contry Risk Premium | F157: Percent | G157: 0.01 | H157: 0 | I157: 0 | J157: ='Sensitivity Factors'!D32 -> 1 | K157: 0
B159: DSRA Percent | F159: Percent | G159: 0.5
A161: Other
B162: LCOE Rate - Nominal | F162: Percent | G162: 0.05 | H162: Discount rate for moving future cash flows in comparing prices
B163: LCOE Rate - Real | F163: Percent | G163: 0.02 | H163: Discount rate for moving future cash flows in comparing prices, Real
A165: Discount Rate After COD
B166: Developer | F166: =$G$23 -> USD | G166: 0.12
B167: EPC | F167: =$G$23 -> USD | G167: 0.12
B168: Sponsor | F168: =$G$23 -> USD | G168: 0.12

Sheet Financial Model
B1: Period Number | G1: 1 | H1: 2 | I1: 3 | J1: 4 | K1: 5 | L1: 6 | M1: 7 | N1: 8 | O1: 9 | P1: 10 | Q1: 11 | R1: 12 | S1: 13 | T1: 14 | U1: 15 | V1: 16 | W1: 17 | X1: 18 | Y1: 19 | Z1: 20 | AA1: 21 | AB1: 22 | AC1: 23 | AD1: 24 | AE1: 25 | AF1: 26 | AG1: 27 | AH1: 28 | AI1: 29 | AJ1: 30 | AK1: 31 | AL1: 32 | AM1: 33 | AN1: 34 | AO1: 35 | AP1: 36 | AQ1: 37 | AR1: 38 | AS1: 39 | AT1: 40 | AU1: 41 | AV1: 42 | AW1: 43 | AX1: 44 | AY1: 45 | AZ1: 46 | BA1: 47 | BB1: 48 | BC1: 49 | BD1: 50 | BE1: 51 | BF1: 52 | BG1: 53 | BH1: 54 | BI1: 55 | BJ1: 56 | BK1: 57 | BL1: 58 | BM1: 59 | BN1: 60 | BO1: 61 | BP1: 62 | BQ1: 63 | BR1: 64 | BS1: 65 | BT1: 66 | BU1: 67 | BV1: 68 | BW1: 69 | BX1: 70
B2: Pre-Cod Period | E2: Months | F2: =Assumptions!G17 -> 25 | G2: =G1<=$F$2 -> TRUE | H2: =H1<=$F$2 -> TRUE | I2: TRUE | J2: TRUE | K2: TRUE | L2: TRUE | M2: TRUE | N2: TRUE | O2: TRUE | P2: TRUE | Q2: TRUE | R2: TRUE | S2: TRUE | T2: TRUE | U2: TRUE | V2: TRUE | W2: TRUE | X2: TRUE | Y2: TRUE | Z2: TRUE | AA2: TRUE | AB2: TRUE | AC2: TRUE | AD2: TRUE | AE2: TRUE | AF2: FALSE | AG2: FALSE | AH2: FALSE | AI2: FALSE | AJ2: FALSE | AK2: FALSE | AL2: FALSE | AM2: FALSE | AN2: FALSE | AO2: FALSE | AP2: FALSE | AQ2: FALSE | AR2: FALSE | AS2: FALSE | AT2: FALSE | AU2: FALSE | AV2: FALSE | AW2: FALSE | AX2: FALSE | AY2: FALSE | AZ2: FALSE | BA2: FALSE | BB2: FALSE | BC2: FALSE | BD2: FALSE | BE2: FALSE | BF2: FALSE | BG2: FALSE | BH2: FALSE | BI2: FALSE | BJ2: FALSE | BK2: FALSE | BL2: FALSE | BM2: FALSE | BN2: FALSE | BO2: FALSE | BP2: FALSE | BQ2: FALSE | BR2: FALSE | BS2: FALSE | BT2: =BT1<=$F$2 -> FALSE | BU2: FALSE | BV2: FALSE | BW2: FALSE | BX2: FALSE
B3: Months in Period | E3: =Assumptions!G18 -> 1 | F3: =Assumptions!G19 -> 12 | G3: =IF(G2,$E$3,$F$3) -> 1 | H3: =IF(H2,$E$3,$F$3) -> 1 | I3: 1 | J3: 1 | K3: 1 | L3: 1 | M3: 1 | N3: 1 | O3: 1 | P3: 1 | Q3: 1 | R3: 1 | S3: 1 | T3: 1 | U3: 1 | V3: 1 | W3: 1 | X3: 1 | Y3: 1 | Z3: 1 | AA3: 1 | AB3: 1 | AC3: 1 | AD3: 1 | AE3: 1 | AF3: 12 | AG3: 12 | AH3: 12 | AI3: 12 | AJ3: 12 | AK3: 12 | AL3: 12 | AM3: 12 | AN3: 12 | AO3: 12 | AP3: 12 | AQ3: 12 | AR3: 12 | AS3: 12 | AT3: 12 | AU3: 12 | AV3: 12 | AW3: 12 | AX3: 12 | AY3: 12 | AZ3: 12 | BA3: 12 | BB3: 12 | BC3: 12 | BD3: 12 | BE3: 12 | BF3: 12 | BG3: 12 | BH3: 12 | BI3: 12 | BJ3: 12 | BK3: 12 | BL3: 12 | BM3: 12 | BN3: 12 | BO3: 12 | BP3: 12 | BQ3: 12 | BR3: 12 | BS3: 12 | BT3: =IF(BT2,$E$3,$F$3) -> 12 | BU3: 12 | BV3: 12 | BW3: 12 | BX3: 12
B4: Start of Period | G4: =F5+1 -> 2016-04-01 | H4: =G5+1 -> 2016-05-01 | I4: 2016-06-01 | J4: 2016-07-01 | K4: 2016-08-01 | L4: 2016-09-01 | M4: 2016-10-01 | N4: 2016-11-01 | O4: 2016-12-01 | P4: 2017-01-01 | Q4: 2017-02-01 | R4: 2017-03-01 | S4: 2017-04-01 | T4: 2017-05-01 | U4: 2017-06-01 | V4: 2017-07-01 | W4: 2017-08-01 | X4: 2017-09-01 | Y4: 2017-10-01 | Z4: 2017-11-01 | AA4: 2017-12-01 | AB4: 2018-01-01 | AC4: 2018-02-01 | AD4: 2018-03-01 | AE4: 2018-04-01 | AF4: 2018-05-01 | AG4: 2019-05-01 | AH4: 2020-05-01 | AI4: 2021-05-01 | AJ4: 2022-05-01 | AK4: 2023-05-01 | AL4: 2024-05-01 | AM4: 2025-05-01 | AN4: 2026-05-01 | AO4: 2027-05-01 | AP4: 2028-05-01 | AQ4: 2029-05-01 | AR4: 2030-05-01 | AS4: 2031-05-01 | AT4: 2032-05-01 | AU4: 2033-05-01 | AV4: 2034-05-01 | AW4: 2035-05-01 | AX4: 2036-05-01 | AY4: 2037-05-01 | AZ4: 2038-05-01 | BA4: 2039-05-01 | BB4: 2040-05-01 | BC4: 2041-05-01 | BD4: 2042-05-01 | BE4: 2043-05-01 | BF4: 2044-05-01 | BG4: 2045-05-01 | BH4: 2046-05-01 | BI4: 2047-05-01 | BJ4: 2048-05-01 | BK4: 2049-05-01 | BL4: 2050-05-01 | BM4: 2051-05-01 | BN4: 2052-05-01 | BO4: 2053-05-01 | BP4: 2054-05-01 | BQ4: 2055-05-01 | BR4: 2056-05-01 | BS4: 2057-05-01 | BT4: =BS5+1 -> 2058-05-01 | BU4: 2059-05-01 | BV4: 2060-05-01 | BW4: 2061-05-01 | BX4: 2062-05-01
B5: End of Period | F5: =Assumptions!G2-1 -> 2016-03-31 | G5: =EDATE(G4,G3)-1 -> 2016-04-30 | H5: =EDATE(H4,H3)-1 -> 2016-05-31 | I5: 2016-06-30 | J5: 2016-07-31 | K5: 2016-08-31 | L5: 2016-09-30 | M5: 2016-10-31 | N5: 2016-11-30 | O5: 2016-12-31 | P5: 2017-01-31 | Q5: 2017-02-28 | R5: 2017-03-31 | S5: 2017-04-30 | T5: 2017-05-31 | U5: 2017-06-30 | V5: 2017-07-31 | W5: 2017-08-31 | X5: 2017-09-30 | Y5: 2017-10-31 | Z5: 2017-11-30 | AA5: 2017-12-31 | AB5: 2018-01-31 | AC5: 2018-02-28 | AD5: 2018-03-31 | AE5: 2018-04-30 | AF5: 2019-04-30 | AG5: 2020-04-30 | AH5: 2021-04-30 | AI5: 2022-04-30 | AJ5: 2023-04-30 | AK5: 2024-04-30 | AL5: 2025-04-30 | AM5: 2026-04-30 | AN5: 2027-04-30 | AO5: 2028-04-30 | AP5: 2029-04-30 | AQ5: 2030-04-30 | AR5: 2031-04-30 | AS5: 2032-04-30 | AT5: 2033-04-30 | AU5: 2034-04-30 | AV5: 2035-04-30 | AW5: 2036-04-30 | AX5: 2037-04-30 | AY5: 2038-04-30 | AZ5: 2039-04-30 | BA5: 2040-04-30 | BB5: 2041-04-30 | BC5: 2042-04-30 | BD5: 2043-04-30 | BE5: 2044-04-30 | BF5: 2045-04-30 | BG5: 2046-04-30 | BH5: 2047-04-30 | BI5: 2048-04-30 | BJ5: 2049-04-30 | BK5: 2050-04-30 | BL5: 2051-04-30 | BM5: 2052-04-30 | BN5: 2053-04-30 | BO5: 2054-04-30 | BP5: 2055-04-30 | BQ5: 2056-04-30 | BR5: 2057-04-30 | BS5: 2058-04-30 | BT5: =EDATE(BT4,BT3)-1 -> 2059-04-30 | BU5: 2060-04-30 | BV5: 2061-04-30 | BW5: 2062-04-30 | BX5: 2063-04-30
B6: Year | G6: =YEAR(G5) -> 2016 | H6: =YEAR(H5) -> 2016 | I6: 2016 | J6: 2016 | K6: 2016 | L6: 2016 | M6: 2016 | N6: 2016 | O6: 2016 | P6: 2017 | Q6: 2017 | R6: 2017 | S6: 2017 | T6: 2017 | U6: 2017 | V6: 2017 | W6: 2017 | X6: 2017 | Y6: 2017 | Z6: 2017 | AA6: 2017 | AB6: 2018 | AC6: 2018 | AD6: 2018 | AE6: 2018 | AF6: 2019 | AG6: 2020 | AH6: 2021 | AI6: 2022 | AJ6: 2023 | AK6: 2024 | AL6: 2025 | AM6: 2026 | AN6: 2027 | AO6: 2028 | AP6: 2029 | AQ6: 2030 | AR6: 2031 | AS6: 2032 | AT6: 2033 | AU6: 2034 | AV6: 2035 | AW6: 2036 | AX6: 2037 | AY6: 2038 | AZ6: 2039 | BA6: 2040 | BB6: 2041 | BC6: 2042 | BD6: 2043 | BE6: 2044 | BF6: 2045 | BG6: 2046 | BH6: 2047 | BI6: 2048 | BJ6: 2049 | BK6: 2050 | BL6: 2051 | BM6: 2052 | BN6: 2053 | BO6: 2054 | BP6: 2055 | BQ6: 2056 | BR6: 2057 | BS6: 2058 | BT6: =YEAR(BT5) -> 2059 | BU6: 2060 | BV6: 2061 | BW6: 2062 | BX6: 2063
B7: Development Phase | E7: =Assumptions!G2 -> 2016-04-01 | F7: =Assumptions!G4 -> 2017-10-01 | G7: =AND(G$4>=$E7,G$4<$F7) -> TRUE | H7: =AND(H$4>=$E7,H$4<$F7) -> TRUE | I7: TRUE | J7: TRUE | K7: TRUE | L7: TRUE | M7: TRUE | N7: TRUE | O7: TRUE | P7: TRUE | Q7: TRUE | R7: TRUE | S7: TRUE | T7: TRUE | U7: TRUE | V7: TRUE | W7: TRUE | X7: TRUE | Y7: FALSE | Z7: FALSE | AA7: FALSE | AB7: FALSE | AC7: FALSE | AD7: FALSE | AE7: FALSE | AF7: FALSE | AG7: FALSE | AH7: FALSE | AI7: FALSE | AJ7: FALSE | AK7: FALSE | AL7: FALSE | AM7: FALSE | AN7: FALSE | AO7: FALSE | AP7: FALSE | AQ7: FALSE | AR7: FALSE | AS7: FALSE | AT7: FALSE | AU7: FALSE | AV7: FALSE | AW7: FALSE | AX7: FALSE | AY7: FALSE | AZ7: FALSE | BA7: FALSE | BB7: FALSE | BC7: FALSE | BD7: FALSE | BE7: FALSE | BF7: FALSE | BG7: FALSE | BH7: FALSE | BI7: FALSE | BJ7: FALSE | BK7: FALSE | BL7: FALSE | BM7: FALSE | BN7: FALSE | BO7: FALSE | BP7: FALSE | BQ7: FALSE | BR7: FALSE | BS7: FALSE | BT7: =AND(BT$4>=$E7,BT$4<$F7) -> FALSE | BU7: FALSE | BV7: FALSE | BW7: FALSE | BX7: FALSE
B8: Bidding Phase | E8: =Assumptions!G4 -> 2017-10-01 | F8: =Assumptions!G6 -> 2017-12-01 | G8: =AND(G$4>=$E8,G$4<$F8) -> FALSE | H8: FALSE | I8: FALSE | J8: FALSE | K8: FALSE | L8: FALSE | M8: FALSE | N8: FALSE | O8: FALSE | P8: FALSE | Q8: FALSE | R8: FALSE | S8: FALSE | T8: FALSE | U8: FALSE | V8: FALSE | W8: FALSE | X8: FALSE | Y8: TRUE | Z8: TRUE | AA8: FALSE | AB8: FALSE | AC8: FALSE | AD8: FALSE | AE8: FALSE | AF8: FALSE | AG8: FALSE | AH8: FALSE | AI8: FALSE | AJ8: FALSE | AK8: FALSE | AL8: FALSE | AM8: FALSE | AN8: FALSE | AO8: FALSE | AP8: FALSE | AQ8: FALSE | AR8: FALSE | AS8: FALSE | AT8: FALSE | AU8: FALSE | AV8: FALSE | AW8: FALSE | AX8: FALSE | AY8: FALSE | AZ8: FALSE | BA8: FALSE | BB8: FALSE | BC8: FALSE | BD8: FALSE | BE8: FALSE | BF8: FALSE | BG8: FALSE | BH8: FALSE | BI8: FALSE | BJ8: FALSE | BK8: FALSE | BL8: FALSE | BM8: FALSE | BN8: FALSE | BO8: FALSE | BP8: FALSE | BQ8: FALSE | BR8: FALSE | BS8: FALSE | BT8: FALSE | BU8: FALSE | BV8: FALSE | BW8: FALSE | BX8: FALSE
B9: Construction Phase | E9: =F8 -> 2017-12-01 | F9: =Assumptions!G9 -> 2018-05-01 | G9: FALSE | H9: FALSE | I9: FALSE | J9: FALSE | K9: FALSE | L9: FALSE | M9: FALSE | N9: FALSE | O9: FALSE | P9: FALSE | Q9: FALSE | R9: FALSE | S9: FALSE | T9: FALSE | U9: FALSE | V9: FALSE | W9: FALSE | X9: FALSE | Y9: FALSE | Z9: FALSE | AA9: TRUE | AB9: TRUE | AC9: TRUE | AD9: TRUE | AE9: TRUE | AF9: FALSE | AG9: FALSE | AH9: FALSE | AI9: FALSE | AJ9: FALSE | AK9: FALSE | AL9: FALSE | AM9: FALSE | AN9: FALSE | AO9: FALSE | AP9: FALSE | AQ9: FALSE | AR9: FALSE | AS9: FALSE | AT9: FALSE | AU9: FALSE | AV9: FALSE | AW9: FALSE | AX9: FALSE | AY9: FALSE | AZ9: FALSE | BA9: FALSE | BB9: FALSE | BC9: FALSE | BD9: FALSE | BE9: FALSE | BF9: FALSE | BG9: FALSE | BH9: FALSE | BI9: FALSE | BJ9: FALSE | BK9: FALSE | BL9: FALSE | BM9: FALSE | BN9: FALSE | BO9: FALSE | BP9: FALSE | BQ9: FALSE | BR9: FALSE | BS9: FALSE | BT9: FALSE | BU9: FALSE | BV9: FALSE | BW9: FALSE | BX9: FALSE
B10: Operations Phase | E10: =F9 -> 2018-05-01 | F10: =Assumptions!G13 -> 2043-05-01 | G10: FALSE | H10: FALSE | I10: FALSE | J10: FALSE | K10: FALSE | L10: FALSE | M10: FALSE | N10: FALSE | O10: FALSE | P10: FALSE | Q10: FALSE | R10: FALSE | S10: FALSE | T10: FALSE | U10: FALSE | V10: FALSE | W10: FALSE | X10: FALSE | Y10: FALSE | Z10: FALSE | AA10: FALSE | AB10: FALSE | AC10: FALSE | AD10: FALSE | AE10: FALSE | AF10: TRUE | AG10: TRUE | AH10: TRUE | AI10: TRUE | AJ10: TRUE | AK10: TRUE | AL10: TRUE | AM10: TRUE | AN10: TRUE | AO10: TRUE | AP10: TRUE | AQ10: TRUE | AR10: TRUE | AS10: TRUE | AT10: TRUE | AU10: TRUE | AV10: TRUE | AW10: TRUE | AX10: TRUE | AY10: TRUE | AZ10: TRUE | BA10: TRUE | BB10: TRUE | BC10: TRUE | BD10: TRUE | BE10: FALSE | BF10: FALSE | BG10: FALSE | BH10: FALSE | BI10: FALSE | BJ10: FALSE | BK10: FALSE | BL10: FALSE | BM10: FALSE | BN10: FALSE | BO10: FALSE | BP10: FALSE | BQ10: FALSE | BR10: FALSE | BS10: FALSE | BT10: FALSE | BU10: FALSE | BV10: FALSE | BW10: FALSE | BX10: FALSE
B11: Dismanteling Phase | E11: =F10 -> 2043-05-01 | F11: =Assumptions!G15 -> 2044-05-01 | G11: FALSE | H11: FALSE | I11: FALSE | J11: FALSE | K11: FALSE | L11: FALSE | M11: FALSE | N11: FALSE | O11: FALSE | P11: FALSE | Q11: FALSE | R11: FALSE | S11: FALSE | T11: FALSE | U11: FALSE | V11: FALSE | W11: FALSE | X11: FALSE | Y11: FALSE | Z11: FALSE | AA11: FALSE | AB11: FALSE | AC11: FALSE | AD11: FALSE | AE11: FALSE | AF11: FALSE | AG11: FALSE | AH11: FALSE | AI11: FALSE | AJ11: FALSE | AK11: FALSE | AL11: FALSE | AM11: FALSE | AN11: FALSE | AO11: FALSE | AP11: FALSE | AQ11: FALSE | AR11: FALSE | AS11: FALSE | AT11: FALSE | AU11: FALSE | AV11: FALSE | AW11: FALSE | AX11: FALSE | AY11: FALSE | AZ11: FALSE | BA11: FALSE | BB11: FALSE | BC11: FALSE | BD11: FALSE | BE11: TRUE | BF11: FALSE | BG11: FALSE | BH11: FALSE | BI11: FALSE | BJ11: FALSE | BK11: FALSE | BL11: FALSE | BM11: FALSE | BN11: FALSE | BO11: =AND(BO$4>=$E11,BO$4<$F11) -> FALSE | BP11: FALSE | BQ11: FALSE | BR11: FALSE | BS11: FALSE | BT11: FALSE | BU11: FALSE | BV11: FALSE | BW11: FALSE | BX11: FALSE
B12: Retainer Phase | E12: =E7 -> 2016-04-01 | F12: =Assumptions!J79 -> 2016-09-01 | G12: TRUE | H12: TRUE | I12: TRUE | J12: TRUE | K12: TRUE | L12: FALSE | M12: FALSE | N12: FALSE | O12: FALSE | P12: FALSE | Q12: FALSE | R12: FALSE | S12: FALSE | T12: FALSE | U12: FALSE | V12: FALSE | W12: =AND(W$4>=$E12,W$4<$F12) -> FALSE | X12: FALSE | Y12: FALSE | Z12: FALSE | AA12: FALSE | AB12: FALSE | AC12: FALSE | AD12: FALSE | AE12: FALSE | AF12: FALSE | AG12: FALSE | AH12: FALSE | AI12: FALSE | AJ12: FALSE | AK12: FALSE | AL12: FALSE | AM12: FALSE | AN12: FALSE | AO12: FALSE | AP12: FALSE | AQ12: FALSE | AR12: FALSE | AS12: FALSE | AT12: FALSE | AU12: FALSE | AV12: FALSE | AW12: FALSE | AX12: FALSE | AY12: FALSE | AZ12: FALSE | BA12: FALSE | BB12: FALSE | BC12: FALSE | BD12: FALSE | BE12: FALSE | BF12: FALSE | BG12: FALSE | BH12: FALSE | BI12: FALSE | BJ12: FALSE | BK12: FALSE | BL12: FALSE | BM12: FALSE | BN12: FALSE | BO12: FALSE | BP12: FALSE | BQ12: FALSE | BR12: FALSE | BS12: FALSE | BT12: FALSE | BU12: FALSE | BV12: FALSE | BW12: FALSE | BX12: FALSE
B14: Ready to Bid | F14: =Assumptions!G4 -> 2017-10-01 | G14: =$F14=G$4 -> FALSE | H14: =$F14=H$4 -> FALSE | I14: FALSE | J14: FALSE | K14: FALSE | L14: FALSE | M14: FALSE | N14: FALSE | O14: FALSE | P14: FALSE | Q14: FALSE | R14: FALSE | S14: FALSE | T14: FALSE | U14: FALSE | V14: FALSE | W14: FALSE | X14: FALSE | Y14: TRUE | Z14: FALSE | AA14: FALSE | AB14: FALSE | AC14: FALSE | AD14: FALSE | AE14: FALSE | AF14: FALSE | AG14: FALSE | AH14: FALSE | AI14: FALSE | AJ14: FALSE | AK14: FALSE | AL14: FALSE | AM14: FALSE | AN14: FALSE | AO14: FALSE | AP14: FALSE | AQ14: FALSE | AR14: FALSE | AS14: FALSE | AT14: FALSE | AU14: FALSE | AV14: FALSE | AW14: FALSE | AX14: FALSE | AY14: FALSE | AZ14: FALSE | BA14: FALSE | BB14: FALSE | BC14: FALSE | BD14: FALSE | BE14: FALSE | BF14: FALSE | BG14: FALSE | BH14: FALSE | BI14: FALSE | BJ14: FALSE | BK14: FALSE | BL14: FALSE | BM14: FALSE | BN14: FALSE | BO14: FALSE | BP14: FALSE | BQ14: FALSE | BR14: FALSE | BS14: FALSE | BT14: =$F14=BT$4 -> FALSE | BU14: FALSE | BV14: FALSE | BW14: FALSE | BX14: FALSE
B15: Ready to Build | F15: =Assumptions!G6 -> 2017-12-01 | G15: =$F15=G$4 -> FALSE | H15: FALSE | I15: FALSE | J15: FALSE | K15: FALSE | L15: FALSE | M15: FALSE | N15: FALSE | O15: FALSE | P15: FALSE | Q15: FALSE | R15: FALSE | S15: FALSE | T15: FALSE | U15: FALSE | V15: FALSE | W15: FALSE | X15: FALSE | Y15: FALSE | Z15: FALSE | AA15: TRUE | AB15: FALSE | AC15: FALSE | AD15: FALSE | AE15: FALSE | AF15: FALSE | AG15: FALSE | AH15: FALSE | AI15: FALSE | AJ15: FALSE | AK15: FALSE | AL15: FALSE | AM15: FALSE | AN15: FALSE | AO15: FALSE | AP15: FALSE | AQ15: FALSE | AR15: FALSE | AS15: FALSE | AT15: FALSE | AU15: FALSE | AV15: FALSE | AW15: FALSE | AX15: FALSE | AY15: FALSE | AZ15: FALSE | BA15: FALSE | BB15: FALSE | BC15: FALSE | BD15: FALSE | BE15: FALSE | BF15: FALSE | BG15: FALSE | BH15: FALSE | BI15: FALSE | BJ15: FALSE | BK15: FALSE | BL15: FALSE | BM15: FALSE | BN15: FALSE | BO15: FALSE | BP15: FALSE | BQ15: FALSE | BR15: FALSE | BS15: FALSE | BT15: FALSE | BU15: FALSE | BV15: FALSE | BW15: FALSE | BX15: FALSE
B16: Financial Close | F16: =Assumptions!G7 -> 2017-12-01 | G16: FALSE | H16: FALSE | I16: FALSE | J16: FALSE | K16: FALSE | L16: FALSE | M16: FALSE | N16: FALSE | O16: FALSE | P16: FALSE | Q16: FALSE | R16: FALSE | S16: FALSE | T16: FALSE | U16: FALSE | V16: FALSE | W16: FALSE | X16: FALSE | Y16: FALSE | Z16: FALSE | AA16: TRUE | AB16: FALSE | AC16: FALSE | AD16: FALSE | AE16: FALSE | AF16: FALSE | AG16: FALSE | AH16: FALSE | AI16: FALSE | AJ16: FALSE | AK16: FALSE | AL16: FALSE | AM16: FALSE | AN16: FALSE | AO16: FALSE | AP16: FALSE | AQ16: FALSE | AR16: FALSE | AS16: FALSE | AT16: FALSE | AU16: FALSE | AV16: FALSE | AW16: FALSE | AX16: FALSE | AY16: FALSE | AZ16: FALSE | BA16: FALSE | BB16: FALSE | BC16: FALSE | BD16: FALSE | BE16: FALSE | BF16: FALSE | BG16: FALSE | BH16: FALSE | BI16: FALSE | BJ16: FALSE | BK16: FALSE | BL16: FALSE | BM16: FALSE | BN16: FALSE | BO16: FALSE | BP16: FALSE | BQ16: FALSE | BR16: FALSE | BS16: FALSE | BT16: FALSE | BU16: FALSE | BV16: FALSE | BW16: FALSE | BX16: FALSE
B17: COD | F17: =Assumptions!G9 -> 2018-05-01 | G17: FALSE | H17: FALSE | I17: FALSE | J17: FALSE | K17: FALSE | L17: FALSE | M17: FALSE | N17: FALSE | O17: FALSE | P17: FALSE | Q17: FALSE | R17: FALSE | S17: FALSE | T17: FALSE | U17: FALSE | V17: FALSE | W17: FALSE | X17: FALSE | Y17: FALSE | Z17: FALSE | AA17: FALSE | AB17: FALSE | AC17: FALSE | AD17: FALSE | AE17: FALSE | AF17: TRUE | AG17: FALSE | AH17: FALSE | AI17: FALSE | AJ17: FALSE | AK17: FALSE | AL17: FALSE | AM17: FALSE | AN17: FALSE | AO17: FALSE | AP17: FALSE | AQ17: FALSE | AR17: FALSE | AS17: FALSE | AT17: FALSE | AU17: FALSE | AV17: FALSE | AW17: FALSE | AX17: FALSE | AY17: FALSE | AZ17: FALSE | BA17: FALSE | BB17: FALSE | BC17: FALSE | BD17: FALSE | BE17: FALSE | BF17: FALSE | BG17: FALSE | BH17: FALSE | BI17: FALSE | BJ17: FALSE | BK17: FALSE | BL17: FALSE | BM17: FALSE | BN17: FALSE | BO17: FALSE | BP17: FALSE | BQ17: FALSE | BR17: FALSE | BS17: FALSE | BT17: FALSE | BU17: FALSE | BV17: FALSE | BW17: FALSE | BX17: FALSE
B18: End of Life | F18: =Assumptions!G13 -> 2043-05-01 | G18: FALSE | H18: FALSE | I18: FALSE | J18: FALSE | K18: FALSE | L18: FALSE | M18: FALSE | N18: FALSE | O18: FALSE | P18: FALSE | Q18: FALSE | R18: FALSE | S18: FALSE | T18: FALSE | U18: FALSE | V18: FALSE | W18: FALSE | X18: FALSE | Y18: FALSE | Z18: FALSE | AA18: FALSE | AB18: FALSE | AC18: FALSE | AD18: FALSE | AE18: FALSE | AF18: FALSE | AG18: FALSE | AH18: FALSE | AI18: FALSE | AJ18: FALSE | AK18: FALSE | AL18: FALSE | AM18: FALSE | AN18: FALSE | AO18: FALSE | AP18: FALSE | AQ18: FALSE | AR18: FALSE | AS18: FALSE | AT18: FALSE | AU18: FALSE | AV18: FALSE | AW18: FALSE | AX18: FALSE | AY18: FALSE | AZ18: FALSE | BA18: FALSE | BB18: FALSE | BC18: FALSE | BD18: FALSE | BE18: TRUE | BF18: FALSE | BG18: FALSE | BH18: FALSE | BI18: FALSE | BJ18: FALSE | BK18: FALSE | BL18: FALSE | BM18: FALSE | BN18: FALSE | BO18: =$F18=BO$4 -> FALSE | BP18: FALSE | BQ18: FALSE | BR18: FALSE | BS18: FALSE | BT18: FALSE | BU18: FALSE | BV18: FALSE | BW18: FALSE | BX18: FALSE
B19: Dismantelled | F19: =Assumptions!G15 -> 2044-05-01 | G19: FALSE | H19: FALSE | I19: FALSE | J19: FALSE | K19: FALSE | L19: FALSE | M19: FALSE | N19: FALSE | O19: FALSE | P19: FALSE | Q19: FALSE | R19: FALSE | S19: FALSE | T19: FALSE | U19: FALSE | V19: FALSE | W19: =$F19=W$4 -> FALSE | X19: FALSE | Y19: FALSE | Z19: FALSE | AA19: FALSE | AB19: FALSE | AC19: FALSE | AD19: FALSE | AE19: FALSE | AF19: FALSE | AG19: FALSE | AH19: FALSE | AI19: FALSE | AJ19: FALSE | AK19: FALSE | AL19: FALSE | AM19: FALSE | AN19: FALSE | AO19: FALSE | AP19: FALSE | AQ19: FALSE | AR19: FALSE | AS19: FALSE | AT19: FALSE | AU19: FALSE | AV19: FALSE | AW19: FALSE | AX19: FALSE | AY19: FALSE | AZ19: FALSE | BA19: FALSE | BB19: FALSE | BC19: FALSE | BD19: FALSE | BE19: FALSE | BF19: TRUE | BG19: FALSE | BH19: FALSE | BI19: FALSE | BJ19: FALSE | BK19: FALSE | BL19: FALSE | BM19: FALSE | BN19: FALSE | BO19: FALSE | BP19: FALSE | BQ19: FALSE | BR19: FALSE | BS19: FALSE | BT19: FALSE | BU19: FALSE | BV19: FALSE | BW19: FALSE | BX19: FALSE
B21: Life Period | G21: =F21+G10 -> 0 | H21: 0 | I21: 0 | J21: 0 | K21: 0 | L21: 0 | M21: 0 | N21: 0 | O21: 0 | P21: 0 | Q21: 0 | R21: 0 | S21: 0 | T21: 0 | U21: 0 | V21: 0 | W21: 0 | X21: 0 | Y21: 0 | Z21: 0 | AA21: 0 | AB21: 0 | AC21: 0 | AD21: 0 | AE21: 0 | AF21: 1 | AG21: 2 | AH21: 3 | AI21: 4 | AJ21: 5 | AK21: 6 | AL21: 7 | AM21: =AL21+AM10 -> 8 | AN21: 9 | AO21: 10 | AP21: 11 | AQ21: 12 | AR21: 13 | AS21: 14 | AT21: 15 | AU21: 16 | AV21: 17 | AW21: 18 | AX21: 19 | AY21: 20 | AZ21: 21 | BA21: 22 | BB21: 23 | BC21: 24 | BD21: 25 | BE21: 25 | BF21: 25 | BG21: 25 | BH21: 25 | BI21: 25 | BJ21: 25 | BK21: 25 | BL21: 25 | BM21: 25 | BN21: 25 | BO21: 25 | BP21: 25 | BQ21: 25 | BR21: 25 | BS21: =BR21+BS10 -> 25 | BT21: 25 | BU21: 25 | BV21: 25 | BW21: 25 | BX21: 25
B22: Life | E22: Yrs | F22: =Assumptions!G10 -> 25 | G22: =G10 -> FALSE | H22: FALSE | I22: FALSE | J22: FALSE | K22: FALSE | L22: FALSE | M22: FALSE | N22: FALSE | O22: FALSE | P22: FALSE | Q22: FALSE | R22: FALSE | S22: FALSE | T22: FALSE | U22: FALSE | V22: FALSE | W22: FALSE | X22: FALSE | Y22: FALSE | Z22: FALSE | AA22: FALSE | AB22: FALSE | AC22: FALSE | AD22: FALSE | AE22: FALSE | AF22: TRUE | AG22: TRUE | AH22: TRUE | AI22: TRUE | AJ22: TRUE | AK22: TRUE | AL22: TRUE | AM22: =AM10 -> TRUE | AN22: TRUE | AO22: TRUE | AP22: TRUE | AQ22: TRUE | AR22: TRUE | AS22: TRUE | AT22: TRUE | AU22: TRUE | AV22: TRUE | AW22: TRUE | AX22: TRUE | AY22: TRUE | AZ22: TRUE | BA22: TRUE | BB22: TRUE | BC22: TRUE | BD22: TRUE | BE22: FALSE | BF22: FALSE | BG22: FALSE | BH22: FALSE | BI22: FALSE | BJ22: FALSE | BK22: FALSE | BL22: FALSE | BM22: FALSE | BN22: FALSE | BO22: FALSE | BP22: FALSE | BQ22: FALSE | BR22: FALSE | BS22: =BS10 -> FALSE | BT22: FALSE | BU22: FALSE | BV22: FALSE | BW22: FALSE | BX22: FALSE
B23: Local Inflation Percent | E23: =Assumptions!G22 -> PKR | G23: =(1+LOOKUP(G6,Assumptions!28:28,Assumptions!29:29))^(G3/12)-1 -> 0.004867550565 | H23: =(1+LOOKUP(H6,Assumptions!28:28,Assumptions!29:29))^(H3/12)-1 -> 0.004867550565 | I23: =(1+LOOKUP(I6,Assumptions!28:28,Assumptions!29:29))^(I3/12)-1 -> 0.004867550565 | J23: =(1+LOOKUP(J6,Assumptions!28:28,Assumptions!29:29))^(J3/12)-1 -> 0.004867550565 | K23: =(1+LOOKUP(K6,Assumptions!28:28,Assumptions!29:29))^(K3/12)-1 -> 0.004867550565 | L23: =(1+LOOKUP(L6,Assumptions!28:28,Assumptions!29:29))^(L3/12)-1 -> 0.004867550565 | M23: =(1+LOOKUP(M6,Assumptions!28:28,Assumptions!29:29))^(M3/12)-1 -> 0.004867550565 | N23: =(1+LOOKUP(N6,Assumptions!28:28,Assumptions!29:29))^(N3/12)-1 -> 0.004867550565 | O23: =(1+LOOKUP(O6,Assumptions!28:28,Assumptions!29:29))^(O3/12)-1 -> 0.004867550565 | P23: =(1+LOOKUP(P6,Assumptions!28:28,Assumptions!29:29))^(P3/12)-1 -> 0.004867550565 | Q23: =(1+LOOKUP(Q6,Assumptions!28:28,Assumptions!29:29))^(Q3/12)-1 -> 0.004867550565 | R23: =(1+LOOKUP(R6,Assumptions!28:28,Assumptions!29:29))^(R3/12)-1 -> 0.004867550565 | S23: =(1+LOOKUP(S6,Assumptions!28:28,Assumptions!29:29))^(S3/12)-1 -> 0.004867550565 | T23: =(1+LOOKUP(T6,Assumptions!28:28,Assumptions!29:29))^(T3/12)-1 -> 0.004867550565 | U23: =(1+LOOKUP(U6,Assumptions!28:28,Assumptions!29:29))^(U3/12)-1 -> 0.004867550565 | V23: =(1+LOOKUP(V6,Assumptions!28:28,Assumptions!29:29))^(V3/12)-1 -> 0.004867550565 | W23: =(1+LOOKUP(W6,Assumptions!28:28,Assumptions!29:29))^(W3/12)-1 -> 0.004867550565 | X23: =(1+LOOKUP(X6,Assumptions!28:28,Assumptions!29:29))^(X3/12)-1 -> 0.004867550565 | Y23: =(1+LOOKUP(Y6,Assumptions!28:28,Assumptions!29:29))^(Y3/12)-1 -> 0.004867550565 | Z23: =(1+LOOKUP(Z6,Assumptions!28:28,Assumptions!29:29))^(Z3/12)-1 -> 0.004867550565 | AA23: =(1+LOOKUP(AA6,Assumptions!28:28,Assumptions!29:29))^(AA3/12)-1 -> 0.004867550565 | AB23: =(1+LOOKUP(AB6,Assumptions!28:28,Assumptions!29:29))^(AB3/12)-1 -> 0.004867550565 | AC23: =(1+LOOKUP(AC6,Assumptions!28:28,Assumptions!29:29))^(AC3/12)-1 -> 0.004867550565 | AD23: =(1+LOOKUP(AD6,Assumptions!28:28,Assumptions!29:29))^(AD3/12)-1 -> 0.004867550565 | AE23: =(1+LOOKUP(AE6,Assumptions!28:28,Assumptions!29:29))^(AE3/12)-1 -> 0.004867550565 | AF23: =(1+LOOKUP(AF6,Assumptions!28:28,Assumptions!29:29))^(AF3/12)-1 -> 0.06 | AG23: =(1+LOOKUP(AG6,Assumptions!28:28,Assumptions!29:29))^(AG3/12)-1 -> 0.06 | AH23: =(1+LOOKUP(AH6,Assumptions!28:28,Assumptions!29:29))^(AH3/12)-1 -> 0.06 | AI23: =(1+LOOKUP(AI6,Assumptions!28:28,Assumptions!29:29))^(AI3/12)-1 -> 0.06 | AJ23: =(1+LOOKUP(AJ6,Assumptions!28:28,Assumptions!29:29))^(AJ3/12)-1 -> 0.06 | AK23: =(1+LOOKUP(AK6,Assumptions!28:28,Assumptions!29:29))^(AK3/12)-1 -> 0.06 | AL23: =(1+LOOKUP(AL6,Assumptions!28:28,Assumptions!29:29))^(AL3/12)-1 -> 0.06 | AM23: =(1+LOOKUP(AM6,Assumptions!28:28,Assumptions!29:29))^(AM3/12)-1 -> 0.06 | AN23: =(1+LOOKUP(AN6,Assumptions!28:28,Assumptions!29:29))^(AN3/12)-1 -> 0.06 | AO23: =(1+LOOKUP(AO6,Assumptions!28:28,Assumptions!29:29))^(AO3/12)-1 -> 0.06 | AP23: =(1+LOOKUP(AP6,Assumptions!28:28,Assumptions!29:29))^(AP3/12)-1 -> 0.06 | AQ23: =(1+LOOKUP(AQ6,Assumptions!28:28,Assumptions!29:29))^(AQ3/12)-1 -> 0.06 | AR23: =(1+LOOKUP(AR6,Assumptions!28:28,Assumptions!29:29))^(AR3/12)-1 -> 0.06 | AS23: =(1+LOOKUP(AS6,Assumptions!28:28,Assumptions!29:29))^(AS3/12)-1 -> 0.06 | AT23: =(1+LOOKUP(AT6,Assumptions!28:28,Assumptions!29:29))^(AT3/12)-1 -> 0.06 | AU23: =(1+LOOKUP(AU6,Assumptions!28:28,Assumptions!29:29))^(AU3/12)-1 -> 0.06 | AV23: =(1+LOOKUP(AV6,Assumptions!28:28,Assumptions!29:29))^(AV3/12)-1 -> 0.06 | AW23: =(1+LOOKUP(AW6,Assumptions!28:28,Assumptions!29:29))^(AW3/12)-1 -> 0.06 | AX23: =(1+LOOKUP(AX6,Assumptions!28:28,Assumptions!29:29))^(AX3/12)-1 -> 0.06 | AY23: =(1+LOOKUP(AY6,Assumptions!28:28,Assumptions!29:29))^(AY3/12)-1 -> 0.06 | AZ23: =(1+LOOKUP(AZ6,Assumptions!28:28,Assumptions!29:29))^(AZ3/12)-1 -> 0.06 | BA23: =(1+LOOKUP(BA6,Assumptions!28:28,Assumptions!29:29))^(BA3/12)-1 -> 0.06 | BB23: =(1+LOOKUP(BB6,Assumptions!28:28,Assumptions!29:29))^(BB3/12)-1 -> 0.06 | BC23: =(1+LOOKUP(BC6,Assumptions!28:28,Assumptions!29:29))^(BC3/12)-1 -> 0.06 | BD23: =(1+LOOKUP(BD6,Assumptions!28:28,Assumptions!29:29))^(BD3/12)-1 -> 0.06 | BE23: =(1+LOOKUP(BE6,Assumptions!28:28,Assumptions!29:29))^(BE3/12)-1 -> 0.06 | BF23: =(1+LOOKUP(BF6,Assumptions!28:28,Assumptions!29:29))^(BF3/12)-1 -> 0.06 | BG23: =(1+LOOKUP(BG6,Assumptions!28:28,Assumptions!29:29))^(BG3/12)-1 -> 0.06 | BH23: =(1+LOOKUP(BH6,Assumptions!28:28,Assumptions!29:29))^(BH3/12)-1 -> 0.06 | BI23: =(1+LOOKUP(BI6,Assumptions!28:28,Assumptions!29:29))^(BI3/12)-1 -> 0.06 | BJ23: =(1+LOOKUP(BJ6,Assumptions!28:28,Assumptions!29:29))^(BJ3/12)-1 -> 0.06 | BK23: =(1+LOOKUP(BK6,Assumptions!28:28,Assumptions!29:29))^(BK3/12)-1 -> 0.06 | BL23: =(1+LOOKUP(BL6,Assumptions!28:28,Assumptions!29:29))^(BL3/12)-1 -> 0.06 | BM23: =(1+LOOKUP(BM6,Assumptions!28:28,Assumptions!29:29))^(BM3/12)-1 -> 0.06 | BN23: =(1+LOOKUP(BN6,Assumptions!28:28,Assumptions!29:29))^(BN3/12)-1 -> 0.06 | BO23: =(1+LOOKUP(BO6,Assumptions!28:28,Assumptions!29:29))^(BO3/12)-1 -> 0.06 | BP23: =(1+LOOKUP(BP6,Assumptions!28:28,Assumptions!29:29))^(BP3/12)-1 -> 0.06 | BQ23: =(1+LOOKUP(BQ6,Assumptions!28:28,Assumptions!29:29))^(BQ3/12)-1 -> 0.06 | BR23: =(1+LOOKUP(BR6,Assumptions!28:28,Assumptions!29:29))^(BR3/12)-1 -> 0.06 | BS23: =(1+LOOKUP(BS6,Assumptions!28:28,Assumptions!29:29))^(BS3/12)-1 -> 0.06 | BT23: =(1+LOOKUP(BT6,Assumptions!28:28,Assumptions!29:29))^(BT3/12)-1 -> 0.06 | BU23: =(1+LOOKUP(BU6,Assumptions!28:28,Assumptions!29:29))^(BU3/12)-1 -> 0.06 | BV23: =(1+LOOKUP(BV6,Assumptions!28:28,Assumptions!29:29))^(BV3/12)-1 -> 0.06 | BW23: =(1+LOOKUP(BW6,Assumptions!28:28,Assumptions!29:29))^(BW3/12)-1 -> 0.06 | BX23: =(1+LOOKUP(BX6,Assumptions!28:28,Assumptions!29:29))^(BX3/12)-1 -> 0.06
B24: Foreign Inflation Percent | E24: =Assumptions!G23 -> USD | G24: =(1+LOOKUP(G6,Assumptions!28:28,Assumptions!30:30))^(G3/12)-1 -> 0 | H24: =(1+LOOKUP(H6,Assumptions!28:28,Assumptions!30:30))^(H3/12)-1 -> 0 | I24: =(1+LOOKUP(I6,Assumptions!28:28,Assumptions!30:30))^(I3/12)-1 -> 0 | J24: =(1+LOOKUP(J6,Assumptions!28:28,Assumptions!30:30))^(J3/12)-1 -> 0 | K24: =(1+LOOKUP(K6,Assumptions!28:28,Assumptions!30:30))^(K3/12)-1 -> 0 | L24: =(1+LOOKUP(L6,Assumptions!28:28,Assumptions!30:30))^(L3/12)-1 -> 0 | M24: =(1+LOOKUP(M6,Assumptions!28:28,Assumptions!30:30))^(M3/12)-1 -> 0 | N24: =(1+LOOKUP(N6,Assumptions!28:28,Assumptions!30:30))^(N3/12)-1 -> 0 | O24: =(1+LOOKUP(O6,Assumptions!28:28,Assumptions!30:30))^(O3/12)-1 -> 0 | P24: =(1+LOOKUP(P6,Assumptions!28:28,Assumptions!30:30))^(P3/12)-1 -> 0 | Q24: =(1+LOOKUP(Q6,Assumptions!28:28,Assumptions!30:30))^(Q3/12)-1 -> 0 | R24: =(1+LOOKUP(R6,Assumptions!28:28,Assumptions!30:30))^(R3/12)-1 -> 0 | S24: =(1+LOOKUP(S6,Assumptions!28:28,Assumptions!30:30))^(S3/12)-1 -> 0 | T24: =(1+LOOKUP(T6,Assumptions!28:28,Assumptions!30:30))^(T3/12)-1 -> 0 | U24: =(1+LOOKUP(U6,Assumptions!28:28,Assumptions!30:30))^(U3/12)-1 -> 0 | V24: =(1+LOOKUP(V6,Assumptions!28:28,Assumptions!30:30))^(V3/12)-1 -> 0 | W24: =(1+LOOKUP(W6,Assumptions!28:28,Assumptions!30:30))^(W3/12)-1 -> 0 | X24: =(1+LOOKUP(X6,Assumptions!28:28,Assumptions!30:30))^(X3/12)-1 -> 0 | Y24: =(1+LOOKUP(Y6,Assumptions!28:28,Assumptions!30:30))^(Y3/12)-1 -> 0 | Z24: =(1+LOOKUP(Z6,Assumptions!28:28,Assumptions!30:30))^(Z3/12)-1 -> 0 | AA24: =(1+LOOKUP(AA6,Assumptions!28:28,Assumptions!30:30))^(AA3/12)-1 -> 0 | AB24: =(1+LOOKUP(AB6,Assumptions!28:28,Assumptions!30:30))^(AB3/12)-1 -> 0 | AC24: =(1+LOOKUP(AC6,Assumptions!28:28,Assumptions!30:30))^(AC3/12)-1 -> 0 | AD24: =(1+LOOKUP(AD6,Assumptions!28:28,Assumptions!30:30))^(AD3/12)-1 -> 0 | AE24: =(1+LOOKUP(AE6,Assumptions!28:28,Assumptions!30:30))^(AE3/12)-1 -> 0 | AF24: =(1+LOOKUP(AF6,Assumptions!28:28,Assumptions!30:30))^(AF3/12)-1 -> 0 | AG24: =(1+LOOKUP(AG6,Assumptions!28:28,Assumptions!30:30))^(AG3/12)-1 -> 0.01 | AH24: =(1+LOOKUP(AH6,Assumptions!28:28,Assumptions!30:30))^(AH3/12)-1 -> 0.01 | AI24: =(1+LOOKUP(AI6,Assumptions!28:28,Assumptions!30:30))^(AI3/12)-1 -> 0.01 | AJ24: =(1+LOOKUP(AJ6,Assumptions!28:28,Assumptions!30:30))^(AJ3/12)-1 -> 0.01 | AK24: =(1+LOOKUP(AK6,Assumptions!28:28,Assumptions!30:30))^(AK3/12)-1 -> 0.015 | AL24: =(1+LOOKUP(AL6,Assumptions!28:28,Assumptions!30:30))^(AL3/12)-1 -> 0.015 | AM24: =(1+LOOKUP(AM6,Assumptions!28:28,Assumptions!30:30))^(AM3/12)-1 -> 0.015 | AN24: =(1+LOOKUP(AN6,Assumptions!28:28,Assumptions!30:30))^(AN3/12)-1 -> 0.015 | AO24: =(1+LOOKUP(AO6,Assumptions!28:28,Assumptions!30:30))^(AO3/12)-1 -> 0.02 | AP24: =(1+LOOKUP(AP6,Assumptions!28:28,Assumptions!30:30))^(AP3/12)-1 -> 0.02 | AQ24: =(1+LOOKUP(AQ6,Assumptions!28:28,Assumptions!30:30))^(AQ3/12)-1 -> 0.02 | AR24: =(1+LOOKUP(AR6,Assumptions!28:28,Assumptions!30:30))^(AR3/12)-1 -> 0.02 | AS24: =(1+LOOKUP(AS6,Assumptions!28:28,Assumptions!30:30))^(AS3/12)-1 -> 0.02 | AT24: =(1+LOOKUP(AT6,Assumptions!28:28,Assumptions!30:30))^(AT3/12)-1 -> 0.02 | AU24: =(1+LOOKUP(AU6,Assumptions!28:28,Assumptions!30:30))^(AU3/12)-1 -> 0.02 | AV24: =(1+LOOKUP(AV6,Assumptions!28:28,Assumptions!30:30))^(AV3/12)-1 -> 0.02 | AW24: =(1+LOOKUP(AW6,Assumptions!28:28,Assumptions!30:30))^(AW3/12)-1 -> 0.02 | AX24: =(1+LOOKUP(AX6,Assumptions!28:28,Assumptions!30:30))^(AX3/12)-1 -> 0.02 | AY24: =(1+LOOKUP(AY6,Assumptions!28:28,Assumptions!30:30))^(AY3/12)-1 -> 0.02 | AZ24: =(1+LOOKUP(AZ6,Assumptions!28:28,Assumptions!30:30))^(AZ3/12)-1 -> 0.02 | BA24: =(1+LOOKUP(BA6,Assumptions!28:28,Assumptions!30:30))^(BA3/12)-1 -> 0.02 | BB24: =(1+LOOKUP(BB6,Assumptions!28:28,Assumptions!30:30))^(BB3/12)-1 -> 0.02 | BC24: =(1+LOOKUP(BC6,Assumptions!28:28,Assumptions!30:30))^(BC3/12)-1 -> 0.02 | BD24: =(1+LOOKUP(BD6,Assumptions!28:28,Assumptions!30:30))^(BD3/12)-1 -> 0.02 | BE24: =(1+LOOKUP(BE6,Assumptions!28:28,Assumptions!30:30))^(BE3/12)-1 -> 0.02 | BF24: =(1+LOOKUP(BF6,Assumptions!28:28,Assumptions!30:30))^(BF3/12)-1 -> 0.02 | BG24: =(1+LOOKUP(BG6,Assumptions!28:28,Assumptions!30:30))^(BG3/12)-1 -> 0.02 | BH24: =(1+LOOKUP(BH6,Assumptions!28:28,Assumptions!30:30))^(BH3/12)-1 -> 0.02 | BI24: =(1+LOOKUP(BI6,Assumptions!28:28,Assumptions!30:30))^(BI3/12)-1 -> 0.02 | BJ24: =(1+LOOKUP(BJ6,Assumptions!28:28,Assumptions!30:30))^(BJ3/12)-1 -> 0.02 | BK24: =(1+LOOKUP(BK6,Assumptions!28:28,Assumptions!30:30))^(BK3/12)-1 -> 0.02 | BL24: =(1+LOOKUP(BL6,Assumptions!28:28,Assumptions!30:30))^(BL3/12)-1 -> 0.02 | BM24: =(1+LOOKUP(BM6,Assumptions!28:28,Assumptions!30:30))^(BM3/12)-1 -> 0.02 | BN24: =(1+LOOKUP(BN6,Assumptions!28:28,Assumptions!30:30))^(BN3/12)-1 -> 0.02 | BO24: =(1+LOOKUP(BO6,Assumptions!28:28,Assumptions!30:30))^(BO3/12)-1 -> 0.02 | BP24: =(1+LOOKUP(BP6,Assumptions!28:28,Assumptions!30:30))^(BP3/12)-1 -> 0.02 | BQ24: =(1+LOOKUP(BQ6,Assumptions!28:28,Assumptions!30:30))^(BQ3/12)-1 -> 0.02 | BR24: =(1+LOOKUP(BR6,Assumptions!28:28,Assumptions!30:30))^(BR3/12)-1 -> 0.02 | BS24: =(1+LOOKUP(BS6,Assumptions!28:28,Assumptions!30:30))^(BS3/12)-1 -> 0.02 | BT24: =(1+LOOKUP(BT6,Assumptions!28:28,Assumptions!30:30))^(BT3/12)-1 -> 0.02 | BU24: =(1+LOOKUP(BU6,Assumptions!28:28,Assumptions!30:30))^(BU3/12)-1 -> 0.02 | BV24: =(1+LOOKUP(BV6,Assumptions!28:28,Assumptions!30:30))^(BV3/12)-1 -> 0.02 | BW24: =(1+LOOKUP(BW6,Assumptions!28:28,Assumptions!30:30))^(BW3/12)-1 -> 0.02 | BX24: =(1+LOOKUP(BX6,Assumptions!28:28,Assumptions!30:30))^(BX3/12)-1 -> 0.02
B26: PPP Exchange Rate | E26: =Assumptions!F26 -> USD/PKR | F26: =Assumptions!G26 -> 104.67 | G26: =F26*(1+G23)/(1+G24) -> 105.1794865 | H26: =G26*(1+H23)/(1+H24) -> 105.691453 | I26: 106.2059115 | J26: 106.7228741 | K26: 107.2423531 | L26: 107.7643607 | M26: 108.2889092 | N26: 108.8160109 | O26: 109.3456783 | P26: 109.877924 | Q26: 110.4127603 | R26: 110.9502 | S26: 111.4902557 | T26: 112.0329402 | U26: 112.5782662 | V26: 113.1262466 | W26: 113.6768943 | X26: 114.2302223 | Y26: 114.7862437 | Z26: 115.3449716 | AA26: 115.906419 | AB26: 116.4705994 | AC26: 117.0375259 | AD26: 117.607212 | AE26: 118.1796711 | AF26: 125.2704513 | AG26: 131.4719588 | AH26: 137.9804716 | AI26: 144.811188 | AJ26: 151.9800587 | AK26: 158.7180909 | AL26: 165.7548535 | AM26: 173.1035909 | AN26: 180.7781343 | AO26: 187.8674729 | AP26: 195.2348248 | AQ26: 202.8910924 | AR26: 210.8476059 | AS26: 219.1161394 | AT26: 227.7089292 | AU26: 236.6386912 | AV26: 245.9186398 | AW26: 255.5625081 | AX26: 265.5845672 | AY26: 275.9996483 | AZ26: 286.8231639 | BA26: 298.0711311 | BB26: 309.7601951 | BC26: 321.9076537 | BD26: 334.5314832 | BE26: 347.6503649 | BF26: 361.2837126 | BG26: 375.4517013 | BH26: 390.1752974 | BI26: 405.4762895 | BJ26: 421.3773205 | BK26: 437.9019213 | BL26: 455.0745456 | BM26: 472.9206062 | BN26: 491.4665124 | BO26: 510.7397089 | BP26: 530.7687171 | BQ26: 551.5831766 | BR26: 573.2138894 | BS26: 595.6928655 | BT26: =BS26*(1+BT23)/(1+BT24) -> 619.05337 | BU26: 643.3299727 | BV26: 668.5585991 | BW26: 694.7765834 | BX26: 722.0227239
B28: Added Devaluation of Local | E28: % | G28: =(1+LOOKUP(G6,Assumptions!28:28,Assumptions!32:32))^(G3/12)-1 -> 0.002466269772 | H28: =(1+LOOKUP(H6,Assumptions!28:28,Assumptions!32:32))^(H3/12)-1 -> 0.002466269772 | I28: =(1+LOOKUP(I6,Assumptions!28:28,Assumptions!32:32))^(I3/12)-1 -> 0.002466269772 | J28: =(1+LOOKUP(J6,Assumptions!28:28,Assumptions!32:32))^(J3/12)-1 -> 0.002466269772 | K28: =(1+LOOKUP(K6,Assumptions!28:28,Assumptions!32:32))^(K3/12)-1 -> 0.002466269772 | L28: =(1+LOOKUP(L6,Assumptions!28:28,Assumptions!32:32))^(L3/12)-1 -> 0.002466269772 | M28: =(1+LOOKUP(M6,Assumptions!28:28,Assumptions!32:32))^(M3/12)-1 -> 0.002466269772 | N28: =(1+LOOKUP(N6,Assumptions!28:28,Assumptions!32:32))^(N3/12)-1 -> 0.002466269772 | O28: =(1+LOOKUP(O6,Assumptions!28:28,Assumptions!32:32))^(O3/12)-1 -> 0.002466269772 | P28: =(1+LOOKUP(P6,Assumptions!28:28,Assumptions!32:32))^(P3/12)-1 -> 0.002466269772 | Q28: =(1+LOOKUP(Q6,Assumptions!28:28,Assumptions!32:32))^(Q3/12)-1 -> 0.002466269772 | R28: =(1+LOOKUP(R6,Assumptions!28:28,Assumptions!32:32))^(R3/12)-1 -> 0.002466269772 | S28: =(1+LOOKUP(S6,Assumptions!28:28,Assumptions!32:32))^(S3/12)-1 -> 0.002466269772 | T28: =(1+LOOKUP(T6,Assumptions!28:28,Assumptions!32:32))^(T3/12)-1 -> 0.002466269772 | U28: =(1+LOOKUP(U6,Assumptions!28:28,Assumptions!32:32))^(U3/12)-1 -> 0.002466269772 | V28: =(1+LOOKUP(V6,Assumptions!28:28,Assumptions!32:32))^(V3/12)-1 -> 0.002466269772 | W28: =(1+LOOKUP(W6,Assumptions!28:28,Assumptions!32:32))^(W3/12)-1 -> 0.002466269772 | X28: =(1+LOOKUP(X6,Assumptions!28:28,Assumptions!32:32))^(X3/12)-1 -> 0.002466269772 | Y28: =(1+LOOKUP(Y6,Assumptions!28:28,Assumptions!32:32))^(Y3/12)-1 -> 0.002466269772 | Z28: =(1+LOOKUP(Z6,Assumptions!28:28,Assumptions!32:32))^(Z3/12)-1 -> 0.002466269772 | AA28: =(1+LOOKUP(AA6,Assumptions!28:28,Assumptions!32:32))^(AA3/12)-1 -> 0.002466269772 | AB28: =(1+LOOKUP(AB6,Assumptions!28:28,Assumptions!32:32))^(AB3/12)-1 -> 0.002466269772 | AC28: =(1+LOOKUP(AC6,Assumptions!28:28,Assumptions!32:32))^(AC3/12)-1 -> 0.002466269772 | AD28: =(1+LOOKUP(AD6,Assumptions!28:28,Assumptions!32:32))^(AD3/12)-1 -> 0.002466269772 | AE28: =(1+LOOKUP(AE6,Assumptions!28:28,Assumptions!32:32))^(AE3/12)-1 -> 0.002466269772 | AF28: =(1+LOOKUP(AF6,Assumptions!28:28,Assumptions!32:32))^(AF3/12)-1 -> 0.03 | AG28: =(1+LOOKUP(AG6,Assumptions!28:28,Assumptions!32:32))^(AG3/12)-1 -> 0.03 | AH28: =(1+LOOKUP(AH6,Assumptions!28:28,Assumptions!32:32))^(AH3/12)-1 -> 0.03 | AI28: =(1+LOOKUP(AI6,Assumptions!28:28,Assumptions!32:32))^(AI3/12)-1 -> 0.03 | AJ28: =(1+LOOKUP(AJ6,Assumptions!28:28,Assumptions!32:32))^(AJ3/12)-1 -> 0.03 | AK28: =(1+LOOKUP(AK6,Assumptions!28:28,Assumptions!32:32))^(AK3/12)-1 -> 0.03 | AL28: =(1+LOOKUP(AL6,Assumptions!28:28,Assumptions!32:32))^(AL3/12)-1 -> 0.03 | AM28: =(1+LOOKUP(AM6,Assumptions!28:28,Assumptions!32:32))^(AM3/12)-1 -> 0.03 | AN28: =(1+LOOKUP(AN6,Assumptions!28:28,Assumptions!32:32))^(AN3/12)-1 -> 0.03 | AO28: =(1+LOOKUP(AO6,Assumptions!28:28,Assumptions!32:32))^(AO3/12)-1 -> 0.03 | AP28: =(1+LOOKUP(AP6,Assumptions!28:28,Assumptions!32:32))^(AP3/12)-1 -> 0.03 | AQ28: =(1+LOOKUP(AQ6,Assumptions!28:28,Assumptions!32:32))^(AQ3/12)-1 -> 0.03 | AR28: =(1+LOOKUP(AR6,Assumptions!28:28,Assumptions!32:32))^(AR3/12)-1 -> 0.03 | AS28: =(1+LOOKUP(AS6,Assumptions!28:28,Assumptions!32:32))^(AS3/12)-1 -> 0 | AT28: =(1+LOOKUP(AT6,Assumptions!28:28,Assumptions!32:32))^(AT3/12)-1 -> 0 | AU28: =(1+LOOKUP(AU6,Assumptions!28:28,Assumptions!32:32))^(AU3/12)-1 -> 0 | AV28: =(1+LOOKUP(AV6,Assumptions!28:28,Assumptions!32:32))^(AV3/12)-1 -> 0 | AW28: =(1+LOOKUP(AW6,Assumptions!28:28,Assumptions!32:32))^(AW3/12)-1 -> 0 | AX28: =(1+LOOKUP(AX6,Assumptions!28:28,Assumptions!32:32))^(AX3/12)-1 -> 0 | AY28: =(1+LOOKUP(AY6,Assumptions!28:28,Assumptions!32:32))^(AY3/12)-1 -> 0 | AZ28: =(1+LOOKUP(AZ6,Assumptions!28:28,Assumptions!32:32))^(AZ3/12)-1 -> 0 | BA28: =(1+LOOKUP(BA6,Assumptions!28:28,Assumptions!32:32))^(BA3/12)-1 -> 0 | BB28: =(1+LOOKUP(BB6,Assumptions!28:28,Assumptions!32:32))^(BB3/12)-1 -> 0 | BC28: =(1+LOOKUP(BC6,Assumptions!28:28,Assumptions!32:32))^(BC3/12)-1 -> 0 | BD28: =(1+LOOKUP(BD6,Assumptions!28:28,Assumptions!32:32))^(BD3/12)-1 -> 0 | BE28: =(1+LOOKUP(BE6,Assumptions!28:28,Assumptions!32:32))^(BE3/12)-1 -> 0 | BF28: =(1+LOOKUP(BF6,Assumptions!28:28,Assumptions!32:32))^(BF3/12)-1 -> 0 | BG28: =(1+LOOKUP(BG6,Assumptions!28:28,Assumptions!32:32))^(BG3/12)-1 -> 0 | BH28: =(1+LOOKUP(BH6,Assumptions!28:28,Assumptions!32:32))^(BH3/12)-1 -> 0 | BI28: =(1+LOOKUP(BI6,Assumptions!28:28,Assumptions!32:32))^(BI3/12)-1 -> 0 | BJ28: =(1+LOOKUP(BJ6,Assumptions!28:28,Assumptions!32:32))^(BJ3/12)-1 -> 0 | BK28: =(1+LOOKUP(BK6,Assumptions!28:28,Assumptions!32:32))^(BK3/12)-1 -> 0 | BL28: =(1+LOOKUP(BL6,Assumptions!28:28,Assumptions!32:32))^(BL3/12)-1 -> 0 | BM28: =(1+LOOKUP(BM6,Assumptions!28:28,Assumptions!32:32))^(BM3/12)-1 -> 0 | BN28: =(1+LOOKUP(BN6,Assumptions!28:28,Assumptions!32:32))^(BN3/12)-1 -> 0 | BO28: =(1+LOOKUP(BO6,Assumptions!28:28,Assumptions!32:32))^(BO3/12)-1 -> 0 | BP28: =(1+LOOKUP(BP6,Assumptions!28:28,Assumptions!32:32))^(BP3/12)-1 -> 0 | BQ28: =(1+LOOKUP(BQ6,Assumptions!28:28,Assumptions!32:32))^(BQ3/12)-1 -> 0 | BR28: =(1+LOOKUP(BR6,Assumptions!28:28,Assumptions!32:32))^(BR3/12)-1 -> 0 | BS28: =(1+LOOKUP(BS6,Assumptions!28:28,Assumptions!32:32))^(BS3/12)-1 -> 0 | BT28: =(1+LOOKUP(BT6,Assumptions!28:28,Assumptions!32:32))^(BT3/12)-1 -> 0 | BU28: =(1+LOOKUP(BU6,Assumptions!28:28,Assumptions!32:32))^(BU3/12)-1 -> 0 | BV28: =(1+LOOKUP(BV6,Assumptions!28:28,Assumptions!32:32))^(BV3/12)-1 -> 0 | BW28: =(1+LOOKUP(BW6,Assumptions!28:28,Assumptions!32:32))^(BW3/12)-1 -> 0 | BX28: =(1+LOOKUP(BX6,Assumptions!28:28,Assumptions!32:32))^(BX3/12)-1 -> 0
B29: Added Devaluation Index | F29: 1 | G29: =F29*(1+G28) -> 1.00246627 | H29: =G29*(1+H28) -> 1.004938622 | I29: 1.007417072 | J29: 1.009901634 | K29: 1.012392324 | L29: 1.014889157 | M29: 1.017392147 | N29: 1.01990131 | O29: 1.022416662 | P29: 1.024938218 | Q29: 1.027465992 | R29: 1.03 | S29: 1.032540258 | T29: 1.035086781 | U29: 1.037639584 | V29: 1.040198683 | W29: 1.042764094 | X29: 1.045335831 | Y29: 1.047913911 | Z29: 1.05049835 | AA29: 1.053089162 | AB29: 1.055686364 | AC29: 1.058289971 | AD29: 1.0609 | AE29: 1.063516466 | AF29: 1.09542196 | AG29: 1.128284618 | AH29: 1.162133157 | AI29: 1.196997152 | AJ29: 1.232907066 | AK29: 1.269894278 | AL29: 1.307991106 | AM29: 1.34723084 | AN29: 1.387647765 | AO29: 1.429277198 | AP29: 1.472155514 | AQ29: 1.516320179 | AR29: 1.561809785 | AS29: 1.561809785 | AT29: 1.561809785 | AU29: 1.561809785 | AV29: 1.561809785 | AW29: 1.561809785 | AX29: 1.561809785 | AY29: 1.561809785 | AZ29: 1.561809785 | BA29: 1.561809785 | BB29: 1.561809785 | BC29: 1.561809785 | BD29: 1.561809785 | BE29: 1.561809785 | BF29: 1.561809785 | BG29: 1.561809785 | BH29: 1.561809785 | BI29: 1.561809785 | BJ29: 1.561809785 | BK29: 1.561809785 | BL29: 1.561809785 | BM29: 1.561809785 | BN29: 1.561809785 | BO29: 1.561809785 | BP29: 1.561809785 | BQ29: 1.561809785 | BR29: 1.561809785 | BS29: 1.561809785 | BT29: =BS29*(1+BT28) -> 1.561809785 | BU29: 1.561809785 | BV29: 1.561809785 | BW29: 1.561809785 | BX29: 1.561809785
B30: Final Exchange Rate | E30: =Assumptions!F26 -> USD/PKR | G30: =G26*G29 -> 105.4388875 | H30: =H26*H29 -> 106.2134231 | I30: 106.9936483 | J30: 107.779605 | K30: 108.5713351 | L30: 109.3688811 | M30: 110.1722858 | N30: 110.9815921 | O30: 111.7968435 | P30: 112.6180835 | Q30: 113.4453563 | R30: 114.278706 | S30: 115.1181774 | T30: 115.9638154 | U30: 116.8156653 | V30: 117.6737727 | W30: 118.5381836 | X30: 119.4089444 | Y30: 120.2861016 | Z30: 121.1697023 | AA30: 122.0597937 | AB30: 122.9564236 | AC30: 123.85964 | AD30: 124.7694912 | AE30: 125.6860261 | AF30: 137.2240033 | AG30: 148.3377889 | AH30: 160.3516811 | AI30: 173.3385796 | AJ30: 187.3772883 | AK30: 201.5551955 | AL30: 216.8058743 | AM30: 233.2104961 | AN30: 250.856374 | AO30: 268.5146953 | AP30: 287.4160238 | AQ30: 307.6478577 | AR30: 329.3038539 | AS30: 342.2177305 | AT30: 355.6380337 | AU30: 369.5846232 | AV30: 384.0781379 | AW30: 399.1400256 | AX30: 414.7925757 | AY30: 431.0589512 | AZ30: 447.9632238 | BA30: 465.530409 | BB30: 483.7865035 | BC30: 502.7585232 | BD30: 522.4745438 | BE30: 542.9637416 | BF30: 564.2564373 | BG30: 586.3841407 | BH30: 609.3795972 | BI30: 633.2768363 | BJ30: 658.1112221 | BK30: 683.9195053 | BL30: 710.739878 | BM30: 738.6120301 | BN30: 767.5772078 | BO30: 797.6782747 | BP30: 828.9597757 | BQ30: 861.4680022 | BR30: 895.2510611 | BS30: 930.3589459 | BT30: =BT26*BT29 -> 966.8436104 | BU30: 1004.759046 | BV30: 1044.161362 | BW30: 1085.108866 | BX30: 1127.662155
B31: Exchange Rate | E31: =Assumptions!F25 -> PKR/USD | G31: =1/G30 -> 0.009484166835 | H31: =1/H30 -> 0.009415005849 | I31: 0.009346349203 | J31: 0.009278193219 | K31: 0.009210534246 | L31: 0.00914336866 | M31: 0.009076692862 | N31: 0.009010503282 | O31: 0.008944796373 | P31: 0.008879568615 | Q31: 0.008814816516 | R31: 0.008750536605 | S31: 0.00868672544 | T31: 0.008623379602 | U31: 0.008560495698 | V31: 0.00849807036 | W31: 0.008436100244 | X31: 0.00837458203 | Y31: 0.008313512422 | Z31: 0.00825288815 | AA31: 0.008192705965 | AB31: 0.008132962645 | AC31: 0.008073654988 | AD31: 0.008014779818 | AE31: 0.00795633398 | AF31: 0.007287354809 | AG31: 0.006741370541 | AH31: 0.006236292587 | AI31: 0.005769056158 | AJ31: 0.005336826085 | AK31: 0.00496142011 | AL31: 0.00461242115 | AM31: 0.004287971668 | AN31: 0.003986344791 | AO31: 0.003724190957 | AP31: 0.003479277135 | AQ31: 0.003250469571 | AR31: 0.00303670907 | AS31: 0.002922116275 | AT31: 0.002811847736 | AU31: 0.002705740275 | AV31: 0.002603636868 | AW31: 0.00250538642 | AX31: 0.002410843536 | AY31: 0.002319868309 | AZ31: 0.002232326108 | BA31: 0.002148087387 | BB31: 0.002067027486 | BC31: 0.001989026449 | BD31: 0.001913968847 | BE31: 0.001841743607 | BF31: 0.001772243849 | BG31: 0.001705366722 | BH31: 0.001641013261 | BI31: 0.001579088232 | BJ31: 0.001519499997 | BK31: 0.001462160375 | BL31: 0.001406984511 | BM31: 0.001353890756 | BN31: 0.001302800539 | BO31: 0.001253638254 | BP31: 0.001206331151 | BQ31: 0.00116080922 | BR31: 0.001117005099 | BS31: 0.001074853963 | BT31: =1/BT30 -> 0.001034293436 | BU31: 0.0009952634951 | BV31: 0.0009577063821 | BW31: 0.0009215665186 | BX31: 0.0008867904236
B33: Price Index - Local | E33: Index | F33: 1 | G33: =F33*(1+G23) -> 1.004867551 | H33: 1.009758794 | I33: 1.014673846 | J33: 1.019612822 | K33: 1.024575839 | L33: 1.029563014 | M33: 1.034574464 | N33: 1.039610308 | O33: 1.044670663 | P33: 1.049755651 | Q33: 1.054865389 | R33: 1.06 | S33: 1.065159604 | T33: 1.070344322 | U33: 1.075554277 | V33: 1.080789592 | W33: 1.08605039 | X33: 1.091336795 | Y33: 1.096648932 | Z33: 1.101986926 | AA33: 1.107350903 | AB33: 1.11274099 | AC33: 1.118157313 | AD33: 1.1236 | AE33: 1.12906918 | AF33: 1.196813331 | AG33: 1.26862213 | AH33: 1.344739458 | AI33: 1.425423826 | AJ33: 1.510949255 | AK33: 1.601606211 | AL33: 1.697702583 | AM33: =AL33*(1+AM23) -> 1.799564738 | AN33: 1.907538623 | AO33: 2.02199094 | AP33: 2.143310396 | AQ33: 2.27190902 | AR33: 2.408223561 | AS33: 2.552716975 | AT33: 2.705879993 | AU33: 2.868232793 | AV33: 3.040326761 | AW33: 3.222746366 | AX33: 3.416111148 | AY33: 3.621077817 | AZ33: 3.838342486 | BA33: 4.068643035 | BB33: 4.312761617 | BC33: 4.571527315 | BD33: 4.845818953 | BE33: 5.136568091 | BF33: 5.444762176 | BG33: 5.771447907 | BH33: 6.117734781 | BI33: 6.484798868 | BJ33: 6.8738868 | BK33: 7.286320008 | BL33: 7.723499208 | BM33: 8.186909161 | BN33: 8.678123711 | BO33: 9.198811133 | BP33: 9.750739801 | BQ33: 10.33578419 | BR33: 10.95593124 | BS33: =BR33*(1+BS23) -> 11.61328712 | BT33: 12.31008434 | BU33: 13.0486894 | BV33: 13.83161077 | BW33: 14.66150741 | BX33: 15.54119786
B34: Price Index - Foreign | E34: Index | F34: 1 | G34: =F34*(1+G24) -> 1 | H34: =G34*(1+H24) -> 1 | I34: 1 | J34: 1 | K34: 1 | L34: 1 | M34: 1 | N34: 1 | O34: 1 | P34: 1 | Q34: 1 | R34: 1 | S34: 1 | T34: 1 | U34: 1 | V34: 1 | W34: 1 | X34: 1 | Y34: 1 | Z34: 1 | AA34: 1 | AB34: 1 | AC34: 1 | AD34: 1 | AE34: 1 | AF34: 1 | AG34: 1.01 | AH34: 1.0201 | AI34: 1.030301 | AJ34: 1.04060401 | AK34: 1.05621307 | AL34: 1.072056266 | AM34: 1.08813711 | AN34: 1.104459167 | AO34: 1.12654835 | AP34: 1.149079317 | AQ34: 1.172060904 | AR34: 1.195502122 | AS34: 1.219412164 | AT34: 1.243800407 | AU34: 1.268676415 | AV34: 1.294049944 | AW34: 1.319930943 | AX34: 1.346329562 | AY34: 1.373256153 | AZ34: 1.400721276 | BA34: 1.428735701 | BB34: 1.457310415 | BC34: 1.486456624 | BD34: 1.516185756 | BE34: 1.546509471 | BF34: 1.577439661 | BG34: 1.608988454 | BH34: 1.641168223 | BI34: 1.673991587 | BJ34: 1.707471419 | BK34: 1.741620848 | BL34: 1.776453264 | BM34: 1.81198233 | BN34: 1.848221976 | BO34: 1.885186416 | BP34: 1.922890144 | BQ34: 1.961347947 | BR34: 2.000574906 | BS34: 2.040586404 | BT34: =BS34*(1+BT24) -> 2.081398132 | BU34: 2.123026095 | BV34: 2.165486617 | BW34: 2.208796349 | BX34: 2.252972276
B35: Hrs per Year (leap yrs. considered) | E35: =((3*365)+(1*366))/4*24 -> 8766
A37: Operational
B38: Nominal Plant Output (Pnom) | E38: KWp | F38: =Assumptions!G35 -> 61200 | G38: =$F$38*G22 -> 0 | H38: 0 | I38: 0 | J38: 0 | K38: 0 | L38: 0 | M38: 0 | N38: 0 | O38: 0 | P38: 0 | Q38: 0 | R38: 0 | S38: 0 | T38: 0 | U38: 0 | V38: 0 | W38: 0 | X38: 0 | Y38: 0 | Z38: 0 | AA38: 0 | AB38: 0 | AC38: 0 | AD38: 0 | AE38: 0 | AF38: 61200 | AG38: 61200 | AH38: 61200 | AI38: 61200 | AJ38: 61200 | AK38: 61200 | AL38: 61200 | AM38: =$F$38*AM22 -> 61200 | AN38: 61200 | AO38: 61200 | AP38: 61200 | AQ38: 61200 | AR38: 61200 | AS38: 61200 | AT38: 61200 | AU38: 61200 | AV38: 61200 | AW38: 61200 | AX38: 61200 | AY38: 61200 | AZ38: 61200 | BA38: 61200 | BB38: 61200 | BC38: 61200 | BD38: 61200 | BE38: 0 | BF38: 0 | BG38: 0 | BH38: 0 | BI38: 0 | BJ38: 0 | BK38: 0 | BL38: 0 | BM38: 0 | BN38: 0 | BO38: 0 | BP38: 0 | BQ38: 0 | BR38: 0 | BS38: =$F$38*BS22 -> 0 | BT38: 0 | BU38: 0 | BV38: 0 | BW38: 0 | BX38: 0
B40: Maximum Energy Output (theoretical) / hr | E40: kW/h | F40: ='Energy Yield Data "PVSyst"'!H30/E35 -> 16478.44113 | G40: =$F$40*G22 -> 0 | H40: 0 | I40: 0 | J40: 0 | K40: 0 | L40: 0 | M40: 0 | N40: 0 | O40: 0 | P40: 0 | Q40: 0 | R40: 0 | S40: 0 | T40: 0 | U40: 0 | V40: 0 | W40: 0 | X40: 0 | Y40: 0 | Z40: 0 | AA40: 0 | AB40: 0 | AC40: 0 | AD40: 0 | AE40: 0 | AF40: 16478.44113 | AG40: 16478.44113 | AH40: 16478.44113 | AI40: 16478.44113 | AJ40: 16478.44113 | AK40: 16478.44113 | AL40: 16478.44113 | AM40: =$F$40*AM22 -> 16478.44113 | AN40: 16478.44113 | AO40: 16478.44113 | AP40: 16478.44113 | AQ40: 16478.44113 | AR40: 16478.44113 | AS40: 16478.44113 | AT40: 16478.44113 | AU40: 16478.44113 | AV40: 16478.44113 | AW40: 16478.44113 | AX40: 16478.44113 | AY40: 16478.44113 | AZ40: 16478.44113 | BA40: 16478.44113 | BB40: 16478.44113 | BC40: 16478.44113 | BD40: 16478.44113 | BE40: 0 | BF40: 0 | BG40: 0 | BH40: 0 | BI40: 0 | BJ40: 0 | BK40: 0 | BL40: 0 | BM40: 0 | BN40: 0 | BO40: 0 | BP40: 0 | BQ40: 0 | BR40: 0 | BS40: =$F$40*BS22 -> 0 | BT40: 0 | BU40: 0 | BV40: 0 | BW40: 0 | BX40: 0
B41: + additional Energy from Tracking | E41: kW/h | F41: =Assumptions!I37 -> 0 | G41: =$F$41 -> 0 | H41: =$F$41 -> 0 | I41: =$F$41 -> 0 | J41: 0 | K41: 0 | L41: 0 | M41: 0 | N41: 0 | O41: 0 | P41: 0 | Q41: 0 | R41: 0 | S41: 0 | T41: 0 | U41: 0 | V41: 0 | W41: 0 | X41: 0 | Y41: 0 | Z41: 0 | AA41: 0 | AB41: 0 | AC41: 0 | AD41: 0 | AE41: 0 | AF41: 0 | AG41: 0 | AH41: 0 | AI41: 0 | AJ41: 0 | AK41: 0 | AL41: 0 | AM41: 0 | AN41: 0 | AO41: 0 | AP41: 0 | AQ41: 0 | AR41: 0 | AS41: 0 | AT41: 0 | AU41: 0 | AV41: 0 | AW41: 0 | AX41: 0 | AY41: 0 | AZ41: 0 | BA41: 0 | BB41: 0 | BC41: 0 | BD41: 0 | BE41: 0 | BF41: 0 | BG41: 0 | BH41: 0 | BI41: 0 | BJ41: 0 | BK41: 0 | BL41: 0 | BM41: 0 | BN41: 0 | BO41: 0 | BP41: 0 | BQ41: 0 | BR41: 0 | BS41: 0 | BT41: 0 | BU41: =$F$41 -> 0 | BV41: 0 | BW41: 0 | BX41: 0
C42: Total - Maximum Energy Output / hr | E42: kW/h | F42: =F40 -> 16478.44113 | G42: =SUM(G40:G41) -> 0 | H42: =SUM(H40:H41) -> 0 | I42: =SUM(I40:I41) -> 0 | J42: 0 | K42: 0 | L42: 0 | M42: 0 | N42: 0 | O42: 0 | P42: 0 | Q42: 0 | R42: 0 | S42: 0 | T42: 0 | U42: 0 | V42: 0 | W42: 0 | X42: 0 | Y42: 0 | Z42: 0 | AA42: 0 | AB42: 0 | AC42: 0 | AD42: 0 | AE42: 0 | AF42: 16478.44113 | AG42: 16478.44113 | AH42: 16478.44113 | AI42: 16478.44113 | AJ42: 16478.44113 | AK42: 16478.44113 | AL42: 16478.44113 | AM42: 16478.44113 | AN42: 16478.44113 | AO42: 16478.44113 | AP42: 16478.44113 | AQ42: 16478.44113 | AR42: 16478.44113 | AS42: 16478.44113 | AT42: 16478.44113 | AU42: 16478.44113 | AV42: 16478.44113 | AW42: 16478.44113 | AX42: 16478.44113 | AY42: 16478.44113 | AZ42: 16478.44113 | BA42: 16478.44113 | BB42: 16478.44113 | BC42: 16478.44113 | BD42: 16478.44113 | BE42: 0 | BF42: 0 | BG42: 0 | BH42: 0 | BI42: 0 | BJ42: 0 | BK42: 0 | BL42: 0 | BM42: 0 | BN42: 0 | BO42: 0 | BP42: 0 | BQ42: 0 | BR42: 0 | BS42: 0 | BT42: 0 | BU42: =SUM(BU40:BU41) -> 0 | BV42: 0 | BW42: 0 | BX42: 0
B43: Performance Ratio (PVSyst) | E43: Percent | F43: =Assumptions!I39 -> 0.8111456415 | G43: =$F$43 -> 0.8111456415 | H43: =$F$43 -> 0.8111456415 | I43: =$F$43 -> 0.8111456415 | J43: 0.8111456415 | K43: 0.8111456415 | L43: 0.8111456415 | M43: 0.8111456415 | N43: 0.8111456415 | O43: 0.8111456415 | P43: 0.8111456415 | Q43: 0.8111456415 | R43: 0.8111456415 | S43: 0.8111456415 | T43: 0.8111456415 | U43: 0.8111456415 | V43: 0.8111456415 | W43: 0.8111456415 | X43: 0.8111456415 | Y43: 0.8111456415 | Z43: 0.8111456415 | AA43: 0.8111456415 | AB43: 0.8111456415 | AC43: 0.8111456415 | AD43: 0.8111456415 | AE43: 0.8111456415 | AF43: 0.8111456415 | AG43: 0.8111456415 | AH43: 0.8111456415 | AI43: 0.8111456415 | AJ43: 0.8111456415 | AK43: 0.8111456415 | AL43: 0.8111456415 | AM43: 0.8111456415 | AN43: 0.8111456415 | AO43: 0.8111456415 | AP43: 0.8111456415 | AQ43: 0.8111456415 | AR43: 0.8111456415 | AS43: 0.8111456415 | AT43: 0.8111456415 | AU43: 0.8111456415 | AV43: 0.8111456415 | AW43: 0.8111456415 | AX43: 0.8111456415 | AY43: 0.8111456415 | AZ43: 0.8111456415 | BA43: 0.8111456415 | BB43: 0.8111456415 | BC43: 0.8111456415 | BD43: 0.8111456415 | BE43: 0.8111456415 | BF43: 0.8111456415 | BG43: 0.8111456415 | BH43: 0.8111456415 | BI43: 0.8111456415 | BJ43: 0.8111456415 | BK43: 0.8111456415 | BL43: 0.8111456415 | BM43: 0.8111456415 | BN43: 0.8111456415 | BO43: 0.8111456415 | BP43: 0.8111456415 | BQ43: 0.8111456415 | BR43: 0.8111456415 | BS43: 0.8111456415 | BT43: 0.8111456415 | BU43: =$F$43 -> 0.8111456415 | BV43: 0.8111456415 | BW43: 0.8111456415 | BX43: 0.8111456415
C44: System Energy Output | E44: KW/h | F44: =PRODUCT(F42:F43) -> 13366.4157 | G44: =PRODUCT(G42:G43) -> 0 | H44: =PRODUCT(H42:H43) -> 0 | I44: =PRODUCT(I42:I43) -> 0 | J44: 0 | K44: 0 | L44: 0 | M44: 0 | N44: 0 | O44: 0 | P44: 0 | Q44: 0 | R44: 0 | S44: 0 | T44: 0 | U44: 0 | V44: 0 | W44: 0 | X44: 0 | Y44: 0 | Z44: 0 | AA44: 0 | AB44: 0 | AC44: 0 | AD44: 0 | AE44: 0 | AF44: 13366.4157 | AG44: 13366.4157 | AH44: 13366.4157 | AI44: 13366.4157 | AJ44: 13366.4157 | AK44: 13366.4157 | AL44: 13366.4157 | AM44: 13366.4157 | AN44: 13366.4157 | AO44: 13366.4157 | AP44: 13366.4157 | AQ44: 13366.4157 | AR44: 13366.4157 | AS44: 13366.4157 | AT44: 13366.4157 | AU44: 13366.4157 | AV44: 13366.4157 | AW44: 13366.4157 | AX44: 13366.4157 | AY44: 13366.4157 | AZ44: 13366.4157 | BA44: 13366.4157 | BB44: 13366.4157 | BC44: 13366.4157 | BD44: 13366.4157 | BE44: 0 | BF44: 0 | BG44: 0 | BH44: 0 | BI44: 0 | BJ44: 0 | BK44: 0 | BL44: 0 | BM44: 0 | BN44: 0 | BO44: 0 | BP44: 0 | BQ44: 0 | BR44: 0 | BS44: 0 | BT44: 0 | BU44: =PRODUCT(BU42:BU43) -> 0 | BV44: 0 | BW44: 0 | BX44: 0
B45: Real Energy Produced w/o Degradation | E45: kWh/Year | F45: =F44*E35 -> 117170000 | G45: =G44*$E$35 -> 0 | H45: =H44*$E$35 -> 0 | I45: =I44*$E$35 -> 0 | J45: 0 | K45: 0 | L45: 0 | M45: 0 | N45: 0 | O45: 0 | P45: 0 | Q45: 0 | R45: 0 | S45: 0 | T45: 0 | U45: 0 | V45: 0 | W45: 0 | X45: 0 | Y45: 0 | Z45: 0 | AA45: 0 | AB45: 0 | AC45: 0 | AD45: 0 | AE45: 0 | AF45: 117170000 | AG45: 117170000 | AH45: 117170000 | AI45: 117170000 | AJ45: 117170000 | AK45: 117170000 | AL45: 117170000 | AM45: 117170000 | AN45: 117170000 | AO45: 117170000 | AP45: 117170000 | AQ45: 117170000 | AR45: 117170000 | AS45: 117170000 | AT45: 117170000 | AU45: 117170000 | AV45: 117170000 | AW45: 117170000 | AX45: 117170000 | AY45: 117170000 | AZ45: 117170000 | BA45: 117170000 | BB45: 117170000 | BC45: 117170000 | BD45: 117170000 | BE45: 0 | BF45: 0 | BG45: 0 | BH45: 0 | BI45: 0 | BJ45: 0 | BK45: 0 | BL45: 0 | BM45: 0 | BN45: 0 | BO45: 0 | BP45: 0 | BQ45: 0 | BR45: 0 | BS45: 0 | BT45: 0 | BU45: =BU44*$E$35 -> 0 | BV45: 0 | BW45: 0 | BX45: 0
B47: Degradation Rate | E47: Percent / Year | G47: =((1+LOOKUP(G21,Assumptions!42:42,Assumptions!43:43))^(G3/12)-1)*G22 -> 0 | H47: =((1+LOOKUP(H21,Assumptions!42:42,Assumptions!43:43))^(H3/12)-1)*H22 -> 0 | I47: =((1+LOOKUP(I21,Assumptions!42:42,Assumptions!43:43))^(I3/12)-1)*I22 -> 0 | J47: =((1+LOOKUP(J21,Assumptions!42:42,Assumptions!43:43))^(J3/12)-1)*J22 -> 0 | K47: =((1+LOOKUP(K21,Assumptions!42:42,Assumptions!43:43))^(K3/12)-1)*K22 -> 0 | L47: =((1+LOOKUP(L21,Assumptions!42:42,Assumptions!43:43))^(L3/12)-1)*L22 -> 0 | M47: =((1+LOOKUP(M21,Assumptions!42:42,Assumptions!43:43))^(M3/12)-1)*M22 -> 0 | N47: =((1+LOOKUP(N21,Assumptions!42:42,Assumptions!43:43))^(N3/12)-1)*N22 -> 0 | O47: =((1+LOOKUP(O21,Assumptions!42:42,Assumptions!43:43))^(O3/12)-1)*O22 -> 0 | P47: =((1+LOOKUP(P21,Assumptions!42:42,Assumptions!43:43))^(P3/12)-1)*P22 -> 0 | Q47: =((1+LOOKUP(Q21,Assumptions!42:42,Assumptions!43:43))^(Q3/12)-1)*Q22 -> 0 | R47: =((1+LOOKUP(R21,Assumptions!42:42,Assumptions!43:43))^(R3/12)-1)*R22 -> 0 | S47: =((1+LOOKUP(S21,Assumptions!42:42,Assumptions!43:43))^(S3/12)-1)*S22 -> 0 | T47: =((1+LOOKUP(T21,Assumptions!42:42,Assumptions!43:43))^(T3/12)-1)*T22 -> 0 | U47: =((1+LOOKUP(U21,Assumptions!42:42,Assumptions!43:43))^(U3/12)-1)*U22 -> 0 | V47: =((1+LOOKUP(V21,Assumptions!42:42,Assumptions!43:43))^(V3/12)-1)*V22 -> 0 | W47: =((1+LOOKUP(W21,Assumptions!42:42,Assumptions!43:43))^(W3/12)-1)*W22 -> 0 | X47: =((1+LOOKUP(X21,Assumptions!42:42,Assumptions!43:43))^(X3/12)-1)*X22 -> 0 | Y47: =((1+LOOKUP(Y21,Assumptions!42:42,Assumptions!43:43))^(Y3/12)-1)*Y22 -> 0 | Z47: =((1+LOOKUP(Z21,Assumptions!42:42,Assumptions!43:43))^(Z3/12)-1)*Z22 -> 0 | AA47: =((1+LOOKUP(AA21,Assumptions!42:42,Assumptions!43:43))^(AA3/12)-1)*AA22 -> 0 | AB47: =((1+LOOKUP(AB21,Assumptions!42:42,Assumptions!43:43))^(AB3/12)-1)*AB22 -> 0 | AC47: =((1+LOOKUP(AC21,Assumptions!42:42,Assumptions!43:43))^(AC3/12)-1)*AC22 -> 0 | AD47: =((1+LOOKUP(AD21,Assumptions!42:42,Assumptions!43:43))^(AD3/12)-1)*AD22 -> 0 | AE47: =((1+LOOKUP(AE21,Assumptions!42:42,Assumptions!43:43))^(AE3/12)-1)*AE22 -> 0 | AF47: =((1+LOOKUP(AF21,Assumptions!42:42,Assumptions!43:43))^(AF3/12)-1)*AF22 -> 0.005 | AG47: =((1+LOOKUP(AG21,Assumptions!42:42,Assumptions!43:43))^(AG3/12)-1)*AG22 -> 0.005 | AH47: =((1+LOOKUP(AH21,Assumptions!42:42,Assumptions!43:43))^(AH3/12)-1)*AH22 -> 0.005 | AI47: =((1+LOOKUP(AI21,Assumptions!42:42,Assumptions!43:43))^(AI3/12)-1)*AI22 -> 0.005 | AJ47: =((1+LOOKUP(AJ21,Assumptions!42:42,Assumptions!43:43))^(AJ3/12)-1)*AJ22 -> 0.005 | AK47: =((1+LOOKUP(AK21,Assumptions!42:42,Assumptions!43:43))^(AK3/12)-1)*AK22 -> 0.005 | AL47: =((1+LOOKUP(AL21,Assumptions!42:42,Assumptions!43:43))^(AL3/12)-1)*AL22 -> 0.005 | AM47: =((1+LOOKUP(AM21,Assumptions!42:42,Assumptions!43:43))^(AM3/12)-1)*AM22 -> 0.005 | AN47: =((1+LOOKUP(AN21,Assumptions!42:42,Assumptions!43:43))^(AN3/12)-1)*AN22 -> 0.005 | AO47: =((1+LOOKUP(AO21,Assumptions!42:42,Assumptions!43:43))^(AO3/12)-1)*AO22 -> 0.005 | AP47: =((1+LOOKUP(AP21,Assumptions!42:42,Assumptions!43:43))^(AP3/12)-1)*AP22 -> 0.005 | AQ47: =((1+LOOKUP(AQ21,Assumptions!42:42,Assumptions!43:43))^(AQ3/12)-1)*AQ22 -> 0.005 | AR47: =((1+LOOKUP(AR21,Assumptions!42:42,Assumptions!43:43))^(AR3/12)-1)*AR22 -> 0.005 | AS47: =((1+LOOKUP(AS21,Assumptions!42:42,Assumptions!43:43))^(AS3/12)-1)*AS22 -> 0.005 | AT47: =((1+LOOKUP(AT21,Assumptions!42:42,Assumptions!43:43))^(AT3/12)-1)*AT22 -> 0.005 | AU47: =((1+LOOKUP(AU21,Assumptions!42:42,Assumptions!43:43))^(AU3/12)-1)*AU22 -> 0.005 | AV47: =((1+LOOKUP(AV21,Assumptions!42:42,Assumptions!43:43))^(AV3/12)-1)*AV22 -> 0.005 | AW47: =((1+LOOKUP(AW21,Assumptions!42:42,Assumptions!43:43))^(AW3/12)-1)*AW22 -> 0.005 | AX47: =((1+LOOKUP(AX21,Assumptions!42:42,Assumptions!43:43))^(AX3/12)-1)*AX22 -> 0.005 | AY47: =((1+LOOKUP(AY21,Assumptions!42:42,Assumptions!43:43))^(AY3/12)-1)*AY22 -> 0.005 | AZ47: =((1+LOOKUP(AZ21,Assumptions!42:42,Assumptions!43:43))^(AZ3/12)-1)*AZ22 -> 0.005 | BA47: =((1+LOOKUP(BA21,Assumptions!42:42,Assumptions!43:43))^(BA3/12)-1)*BA22 -> 0.005 | BB47: =((1+LOOKUP(BB21,Assumptions!42:42,Assumptions!43:43))^(BB3/12)-1)*BB22 -> 0.005 | BC47: =((1+LOOKUP(BC21,Assumptions!42:42,Assumptions!43:43))^(BC3/12)-1)*BC22 -> 0.005 | BD47: =((1+LOOKUP(BD21,Assumptions!42:42,Assumptions!43:43))^(BD3/12)-1)*BD22 -> 0.005 | BE47: =((1+LOOKUP(BE21,Assumptions!42:42,Assumptions!43:43))^(BE3/12)-1)*BE22 -> 0 | BF47: =((1+LOOKUP(BF21,Assumptions!42:42,Assumptions!43:43))^(BF3/12)-1)*BF22 -> 0 | BG47: =((1+LOOKUP(BG21,Assumptions!42:42,Assumptions!43:43))^(BG3/12)-1)*BG22 -> 0 | BH47: =((1+LOOKUP(BH21,Assumptions!42:42,Assumptions!43:43))^(BH3/12)-1)*BH22 -> 0 | BI47: =((1+LOOKUP(BI21,Assumptions!42:42,Assumptions!43:43))^(BI3/12)-1)*BI22 -> 0 | BJ47: =((1+LOOKUP(BJ21,Assumptions!42:42,Assumptions!43:43))^(BJ3/12)-1)*BJ22 -> 0 | BK47: =((1+LOOKUP(BK21,Assumptions!42:42,Assumptions!43:43))^(BK3/12)-1)*BK22 -> 0 | BL47: =((1+LOOKUP(BL21,Assumptions!42:42,Assumptions!43:43))^(BL3/12)-1)*BL22 -> 0 | BM47: =((1+LOOKUP(BM21,Assumptions!42:42,Assumptions!43:43))^(BM3/12)-1)*BM22 -> 0 | BN47: =((1+LOOKUP(BN21,Assumptions!42:42,Assumptions!43:43))^(BN3/12)-1)*BN22 -> 0 | BO47: =((1+LOOKUP(BO21,Assumptions!42:42,Assumptions!43:43))^(BO3/12)-1)*BO22 -> 0 | BP47: =((1+LOOKUP(BP21,Assumptions!42:42,Assumptions!43:43))^(BP3/12)-1)*BP22 -> 0 | BQ47: =((1+LOOKUP(BQ21,Assumptions!42:42,Assumptions!43:43))^(BQ3/12)-1)*BQ22 -> 0 | BR47: =((1+LOOKUP(BR21,Assumptions!42:42,Assumptions!43:43))^(BR3/12)-1)*BR22 -> 0 | BS47: =((1+LOOKUP(BS21,Assumptions!42:42,Assumptions!43:43))^(BS3/12)-1)*BS22 -> 0 | BT47: =((1+LOOKUP(BT21,Assumptions!42:42,Assumptions!43:43))^(BT3/12)-1)*BT22 -> 0 | BU47: =((1+LOOKUP(BU21,Assumptions!42:42,Assumptions!43:43))^(BU3/12)-1)*BU22 -> 0 | BV47: =((1+LOOKUP(BV21,Assumptions!42:42,Assumptions!43:43))^(BV3/12)-1)*BV22 -> 0 | BW47: =((1+LOOKUP(BW21,Assumptions!42:42,Assumptions!43:43))^(BW3/12)-1)*BW22 -> 0 | BX47: =((1+LOOKUP(BX21,Assumptions!42:42,Assumptions!43:43))^(BX3/12)-1)*BX22 -> 0
B48: Degradation Index | E48: Index | G48: 1 | H48: =G48*(1-H47) -> 1 | I48: =H48*(1-I47) -> 1 | J48: 1 | K48: 1 | L48: 1 | M48: 1 | N48: 1 | O48: 1 | P48: 1 | Q48: 1 | R48: 1 | S48: 1 | T48: 1 | U48: 1 | V48: 1 | W48: 1 | X48: 1 | Y48: 1 | Z48: 1 | AA48: 1 | AB48: 1 | AC48: 1 | AD48: 1 | AE48: 1 | AF48: 0.995 | AG48: 0.990025 | AH48: 0.985074875 | AI48: 0.9801495006 | AJ48: 0.9752487531 | AK48: 0.9703725094 | AL48: 0.9655206468 | AM48: 0.9606930436 | AN48: 0.9558895784 | AO48: 0.9511101305 | AP48: 0.9463545798 | AQ48: =AP48*(1-AQ47) -> 0.9416228069 | AR48: =AQ48*(1-AR47) -> 0.9369146929 | AS48: =AR48*(1-AS47) -> 0.9322301194 | AT48: =AS48*(1-AT47) -> 0.9275689688 | AU48: =AT48*(1-AU47) -> 0.922931124 | AV48: =AU48*(1-AV47) -> 0.9183164684 | AW48: =AV48*(1-AW47) -> 0.913724886 | AX48: =AW48*(1-AX47) -> 0.9091562616 | AY48: =AX48*(1-AY47) -> 0.9046104803 | AZ48: =AY48*(1-AZ47) -> 0.9000874279 | BA48: =AZ48*(1-BA47) -> 0.8955869907 | BB48: =BA48*(1-BB47) -> 0.8911090558 | BC48: =BB48*(1-BC47) -> 0.8866535105 | BD48: =BC48*(1-BD47) -> 0.8822202429 | BE48: =BD48*(1-BE47) -> 0.8822202429 | BF48: =BE48*(1-BF47) -> 0.8822202429 | BG48: =BF48*(1-BG47) -> 0.8822202429 | BH48: =BG48*(1-BH47) -> 0.8822202429 | BI48: =BH48*(1-BI47) -> 0.8822202429 | BJ48: =BI48*(1-BJ47) -> 0.8822202429 | BK48: =BJ48*(1-BK47) -> 0.8822202429 | BL48: =BK48*(1-BL47) -> 0.8822202429 | BM48: =BL48*(1-BM47) -> 0.8822202429 | BN48: =BM48*(1-BN47) -> 0.8822202429 | BO48: =BN48*(1-BO47) -> 0.8822202429 | BP48: =BO48*(1-BP47) -> 0.8822202429 | BQ48: =BP48*(1-BQ47) -> 0.8822202429 | BR48: =BQ48*(1-BR47) -> 0.8822202429 | BS48: =BR48*(1-BS47) -> 0.8822202429 | BT48: =BS48*(1-BT47) -> 0.8822202429 | BU48: =BT48*(1-BU47) -> 0.8822202429 | BV48: =BU48*(1-BV47) -> 0.8822202429 | BW48: =BV48*(1-BW47) -> 0.8822202429 | BX48: =BW48*(1-BX47) -> 0.8822202429
B50: Real Energy Produced w Degradation (Energy --> GRID) | E50: kWh /Year | F50: =F45*G48 -> 117170000 | H50: =H45*H48 -> 0 | I50: =I45*I48 -> 0 | J50: 0 | K50: 0 | L50: 0 | M50: 0 | N50: 0 | O50: 0 | P50: 0 | Q50: 0 | R50: 0 | S50: 0 | T50: 0 | U50: 0 | V50: 0 | W50: 0 | X50: 0 | Y50: 0 | Z50: 0 | AA50: 0 | AB50: 0 | AC50: 0 | AD50: 0 | AE50: 0 | AF50: 116584150 | AG50: 116001229.3 | AH50: 115421223.1 | AI50: 114844117 | AJ50: 114269896.4 | AK50: 113698546.9 | AL50: 113130054.2 | AM50: 112564403.9 | AN50: 112001581.9 | AO50: 111441574 | AP50: 110884366.1 | AQ50: 110329944.3 | AR50: 109778294.6 | AS50: 109229403.1 | AT50: 108683256.1 | AU50: 108139839.8 | AV50: 107599140.6 | AW50: 107061144.9 | AX50: 106525839.2 | AY50: 105993210 | AZ50: 105463243.9 | BA50: 104935927.7 | BB50: 104411248.1 | BC50: 103889191.8 | BD50: 103369745.9 | BE50: 0 | BF50: 0 | BG50: 0 | BH50: 0 | BI50: 0 | BJ50: 0 | BK50: 0 | BL50: 0 | BM50: 0 | BN50: 0 | BO50: 0 | BP50: 0 | BQ50: 0 | BR50: 0 | BS50: 0 | BT50: 0 | BU50: =BU45*BU48 -> 0 | BV50: 0 | BW50: 0 | BX50: 0
B51: Capacity Utilization Factor (CUF) w Degradation | E51: Percent | F51: =F50/(F38*$E$35) -> 0.2184054852 | G51: =$F$51*G48 -> 0.2184054852 | H51: =$F$51*H48 -> 0.2184054852 | I51: =$F$51*I48 -> 0.2184054852 | J51: 0.2184054852 | K51: 0.2184054852 | L51: 0.2184054852 | M51: 0.2184054852 | N51: 0.2184054852 | O51: 0.2184054852 | P51: 0.2184054852 | Q51: 0.2184054852 | R51: 0.2184054852 | S51: 0.2184054852 | T51: 0.2184054852 | U51: 0.2184054852 | V51: 0.2184054852 | W51: 0.2184054852 | X51: 0.2184054852 | Y51: 0.2184054852 | Z51: 0.2184054852 | AA51: 0.2184054852 | AB51: 0.2184054852 | AC51: 0.2184054852 | AD51: 0.2184054852 | AE51: 0.2184054852 | AF51: 0.2173134578 | AG51: 0.2162268905 | AH51: 0.2151457561 | AI51: 0.2140700273 | AJ51: 0.2129996772 | AK51: 0.2119346788 | AL51: 0.2108750054 | AM51: 0.2098206304 | AN51: 0.2087715272 | AO51: 0.2077276696 | AP51: 0.2066890312 | AQ51: 0.2056555861 | AR51: 0.2046273081 | AS51: 0.2036041716 | AT51: 0.2025861507 | AU51: 0.20157322 | AV51: 0.2005653539 | AW51: 0.1995625271 | AX51: 0.1985647145 | AY51: 0.1975718909 | AZ51: 0.1965840314 | BA51: 0.1956011113 | BB51: 0.1946231057 | BC51: 0.1936499902 | BD51: 0.1926817403 | BE51: 0.1926817403 | BF51: 0.1926817403 | BG51: 0.1926817403 | BH51: 0.1926817403 | BI51: 0.1926817403 | BJ51: 0.1926817403 | BK51: 0.1926817403 | BL51: 0.1926817403 | BM51: 0.1926817403 | BN51: 0.1926817403 | BO51: 0.1926817403 | BP51: 0.1926817403 | BQ51: 0.1926817403 | BR51: 0.1926817403 | BS51: 0.1926817403 | BT51: 0.1926817403 | BU51: =$F$51*BU48 -> 0.1926817403 | BV51: 0.1926817403 | BW51: 0.1926817403 | BX51: 0.1926817403
A53: Revenues
B54: Base Price | E54: =Assumptions!G22&"/kWh" -> PKR/kWh | F54: =Assumptions!I117 -> 5.296302 | G54: =$F$54 -> 5.296302 | H54: 5.296302 | I54: 5.296302 | J54: 5.296302 | K54: 5.296302 | L54: 5.296302 | M54: 5.296302 | N54: 5.296302 | O54: 5.296302 | P54: 5.296302 | Q54: 5.296302 | R54: 5.296302 | S54: 5.296302 | T54: 5.296302 | U54: 5.296302 | V54: 5.296302 | W54: 5.296302 | X54: 5.296302 | Y54: 5.296302 | Z54: 5.296302 | AA54: 5.296302 | AB54: 5.296302 | AC54: 5.296302 | AD54: 5.296302 | AE54: 5.296302 | AF54: 5.296302 | AG54: 5.296302 | AH54: 5.296302 | AI54: 5.296302 | AJ54: 5.296302 | AK54: 5.296302 | AL54: 5.296302 | AM54: =$F$54 -> 5.296302 | AN54: 5.296302 | AO54: 5.296302 | AP54: 5.296302 | AQ54: 5.296302 | AR54: 5.296302 | AS54: 5.296302 | AT54: 5.296302 | AU54: 5.296302 | AV54: 5.296302 | AW54: 5.296302 | AX54: 5.296302 | AY54: 5.296302 | AZ54: 5.296302 | BA54: 5.296302 | BB54: 5.296302 | BC54: 5.296302 | BD54: 5.296302 | BE54: 5.296302 | BF54: 5.296302 | BG54: 5.296302 | BH54: 5.296302 | BI54: 5.296302 | BJ54: 5.296302 | BK54: 5.296302 | BL54: 5.296302 | BM54: 5.296302 | BN54: 5.296302 | BO54: 5.296302 | BP54: 5.296302 | BQ54: 5.296302 | BR54: 5.296302 | BS54: =$F$54 -> 5.296302 | BT54: 5.296302 | BU54: 5.296302 | BV54: 5.296302 | BW54: 5.296302 | BX54: 5.296302
B55: Base Price | E55: =Assumptions!G23&"/kWh" -> USD/kWh | F55: =Assumptions!I116 -> 0.0506 | G55: =$F$55 -> 0.0506 | H55: 0.0506 | I55: 0.0506 | J55: 0.0506 | K55: 0.0506 | L55: 0.0506 | M55: 0.0506 | N55: 0.0506 | O55: 0.0506 | P55: 0.0506 | Q55: 0.0506 | R55: 0.0506 | S55: 0.0506 | T55: 0.0506 | U55: 0.0506 | V55: 0.0506 | W55: 0.0506 | X55: 0.0506 | Y55: 0.0506 | Z55: 0.0506 | AA55: 0.0506 | AB55: 0.0506 | AC55: 0.0506 | AD55: 0.0506 | AE55: 0.0506 | AF55: 0.0506 | AG55: 0.0506 | AH55: 0.0506 | AI55: 0.0506 | AJ55: 0.0506 | AK55: 0.0506 | AL55: 0.0506 | AM55: =$F$55 -> 0.0506 | AN55: 0.0506 | AO55: 0.0506 | AP55: 0.0506 | AQ55: 0.0506 | AR55: 0.0506 | AS55: 0.0506 | AT55: 0.0506 | AU55: 0.0506 | AV55: 0.0506 | AW55: 0.0506 | AX55: 0.0506 | AY55: 0.0506 | AZ55: 0.0506 | BA55: 0.0506 | BB55: 0.0506 | BC55: 0.0506 | BD55: 0.0506 | BE55: 0.0506 | BF55: 0.0506 | BG55: 0.0506 | BH55: 0.0506 | BI55: 0.0506 | BJ55: 0.0506 | BK55: 0.0506 | BL55: 0.0506 | BM55: 0.0506 | BN55: 0.0506 | BO55: 0.0506 | BP55: 0.0506 | BQ55: 0.0506 | BR55: 0.0506 | BS55: =$F$55 -> 0.0506 | BT55: 0.0506 | BU55: 0.0506 | BV55: 0.0506 | BW55: 0.0506 | BX55: 0.0506
F56: Basis
B57: Escalated Price - Local | E57: =E54 -> PKR/kWh | F57: =Assumptions!G111 -> TRUE | G57: =IF($F$57,G54*G33,G58*G30) -> 5.322082018 | H57: =IF($F$57,H54*H33,H58*H30) -> 5.347987521 | I57: 5.374019121 | J57: 5.400177431 | K57: 5.426463067 | L57: 5.452876651 | M57: 5.479418804 | N57: 5.506090152 | O57: 5.532891324 | P57: 5.559822952 | Q57: 5.586885671 | R57: 5.61408012 | S57: 5.641406939 | T57: 5.668866772 | U57: 5.696460268 | V57: 5.724188076 | W57: 5.752050851 | X57: 5.78004925 | Y57: 5.808183932 | Z57: 5.836455561 | AA57: 5.864864803 | AB57: 5.893412329 | AC57: 5.922098812 | AD57: 5.950924927 | AE57: 5.979891355 | AF57: =IF($F$57,AF54*AF33,AF58*AF30) -> 6.338684837 | AG57: 6.719005927 | AH57: 7.122146282 | AI57: 7.549475059 | AJ57: 8.002443563 | AK57: 8.482590177 | AL57: 8.991545587 | AM57: 9.531038322 | AN57: 10.10290062 | AO57: 10.70907466 | AP57: 11.35161914 | AQ57: 12.03271629 | AR57: 12.75467926 | AS57: 13.51996002 | AT57: 14.33115762 | AU57: 15.19102708 | AV57: 16.1024887 | AW57: 17.06863803 | AX57: 18.09275631 | AY57: 19.17832169 | AZ57: 20.32902099 | BA57: 21.54876225 | BB57: 22.84168798 | BC57: 24.21218926 | BD57: 25.66492061 | BE57: 27.20481585 | BF57: 28.8371048 | BG57: 30.56733109 | BH57: 32.40137096 | BI57: 34.34545321 | BJ57: 36.40618041 | BK57: 38.59055123 | BL57: 40.9059843 | BM57: 43.36034336 | BN57: 45.96196396 | BO57: 48.7196818 | BP57: 51.64286271 | BQ57: 54.74143447 | BR57: 58.02592054 | BS57: 61.50747577 | BT57: =IF($F$57,BT54*BT33,BT58*BT30) -> 65.19792432 | BU57: 69.10979978 | BV57: 73.25638777 | BW57: 77.65177103 | BX57: 82.31087729
B58: Escalated Price - Foreign | E58: =E55 -> USD/kWh | F58: =Assumptions!G112 -> FALSE | G58: =IF($F$58,G55*G34,G57/G30) -> 0.05047551377 | H58: =IF($F$58,H55*H34,H57/H30) -> 0.05035133379 | I58: 0.05022745933 | J58: 0.05010388962 | K58: 0.04998062392 | L58: 0.04985766148 | M58: 0.04973500154 | N58: 0.04961264338 | O58: 0.04949058624 | P58: 0.04936882939 | Q58: 0.04924737209 | R58: 0.04912621359 | S58: 0.04900535317 | T58: 0.04888479009 | U58: 0.04876452362 | V58: 0.04864455303 | W58: 0.04852487759 | X58: 0.04840549658 | Y58: 0.04828640927 | Z58: 0.04816761493 | AA58: 0.04804911286 | AB58: 0.04793090232 | AC58: 0.04781298261 | AD58: 0.047695353 | AE58: 0.04757801279 | AF58: 0.04619224542 | AG58: 0.04529530862 | AH58: 0.04441578806 | AI58: 0.04355334558 | AJ58: 0.04270764955 | AK58: 0.04208569349 | AL58: 0.04147279504 | AM58: 0.04086882229 | AN58: 0.04027364527 | AO58: 0.03988263901 | AP58: 0.03949542892 | AQ58: 0.03911197815 | AR58: 0.03873225021 | AS58: 0.03950689521 | AT58: 0.04029703312 | AU58: 0.04110297378 | AV58: 0.04192503325 | AW58: 0.04276353392 | AX58: 0.0436188046 | AY58: 0.04449118069 | AZ58: 0.0453810043 | BA58: 0.04628862439 | BB58: 0.04721439688 | BC58: 0.04815868482 | BD58: 0.04912185851 | BE58: 0.05010429568 | BF58: 0.0511063816 | BG58: 0.05212850923 | BH58: 0.05317107941 | BI58: 0.054234501 | BJ58: 0.05531919102 | BK58: 0.05642557484 | BL58: 0.05755408634 | BM58: 0.05870516806 | BN58: 0.05987927143 | BO58: 0.06107685685 | BP58: 0.06229839399 | BQ58: 0.06354436187 | BR58: 0.06481524911 | BS58: 0.06611155409 | BT58: =IF($F$58,BT55*BT34,BT57/BT30) -> 0.06743378517 | BU58: 0.06878246088 | BV58: 0.07015811009 | BW58: 0.0715612723 | BX58: 0.07299249774
B60: Revenue - Local | E60: =Assumptions!G22 -> PKR | G60: =G57*G45 -> 0 | H60: =H57*H45 -> 0 | I60: 0 | J60: 0 | K60: 0 | L60: 0 | M60: 0 | N60: 0 | O60: 0 | P60: 0 | Q60: 0 | R60: 0 | S60: 0 | T60: 0 | U60: 0 | V60: 0 | W60: 0 | X60: 0 | Y60: 0 | Z60: 0 | AA60: 0 | AB60: 0 | AC60: 0 | AD60: 0 | AE60: 0 | AF60: =AF57*AF45 -> 742703702.3 | AG60: 787265924.4 | AH60: 834501879.9 | AI60: 884571992.7 | AJ60: 937646312.3 | AK60: 993905091 | AL60: 1053539396 | AM60: 1116751760 | AN60: 1183756866 | AO60: 1254782278 | AP60: 1330069214 | AQ60: 1409873367 | AR60: 1494465769 | AS60: 1584133716 | AT60: 1679181738 | AU60: 1779932643 | AV60: 1886728601 | AW60: 1999932317 | AX60: 2119928256 | AY60: 2247123952 | AZ60: 2381951389 | BA60: 2524868472 | BB60: 2676360581 | BC60: 2836942215 | BD60: 3007158748 | BE60: 0 | BF60: 0 | BG60: 0 | BH60: 0 | BI60: 0 | BJ60: 0 | BK60: 0 | BL60: 0 | BM60: 0 | BN60: 0 | BO60: 0 | BP60: 0 | BQ60: 0 | BR60: 0 | BS60: 0 | BT60: =BT57*BT45 -> 0 | BU60: 0 | BV60: 0 | BW60: 0 | BX60: 0
B61: Revenues - Foreign | E61: =Assumptions!G23 -> USD | G61: =G58*G45 -> 0 | H61: =H58*H45 -> 0 | I61: 0 | J61: 0 | K61: 0 | L61: 0 | M61: 0 | N61: 0 | O61: 0 | P61: 0 | Q61: 0 | R61: 0 | S61: 0 | T61: 0 | U61: 0 | V61: 0 | W61: 0 | X61: 0 | Y61: 0 | Z61: 0 | AA61: 0 | AB61: 0 | AC61: 0 | AD61: 0 | AE61: 0 | AF61: =AF58*AF45 -> 5412345.396 | AG61: 5307251.311 | AH61: 5204197.888 | AI61: 5103145.501 | AJ61: 5004055.297 | AK61: 4931180.706 | AL61: 4859367.394 | AM61: 4788599.908 | AN61: 4718863.016 | AO61: 4673048.812 | AP61: 4627679.406 | AQ61: 4582750.48 | AR61: 4538257.757 | AS61: 4629022.912 | AT61: 4721603.37 | AU61: 4816035.438 | AV61: 4912356.146 | AW61: 5010603.269 | AX61: 5110815.335 | AY61: 5213031.641 | AZ61: 5317292.274 | BA61: 5423638.12 | BB61: 5532110.882 | BC61: 5642753.1 | BD61: 5755608.162 | BE61: 0 | BF61: 0 | BG61: 0 | BH61: 0 | BI61: 0 | BJ61: 0 | BK61: 0 | BL61: 0 | BM61: 0 | BN61: 0 | BO61: 0 | BP61: 0 | BQ61: 0 | BR61: 0 | BS61: 0 | BT61: =BT58*BT45 -> 0 | BU61: 0 | BV61: 0 | BW61: 0 | BX61: 0
A63: O&M Expenses
B64: Base O&M per kW - Local | E64: =Assumptions!F132 -> PKR/kWp-yr | F64: =Assumptions!I132+Assumptions!I133+Assumptions!I134 -> 1884.06 | G64: =$F$64 -> 1884.06 | H64: =$F$64 -> 1884.06 | I64: 1884.06 | J64: 1884.06 | K64: 1884.06 | L64: 1884.06 | M64: 1884.06 | N64: 1884.06 | O64: 1884.06 | P64: 1884.06 | Q64: 1884.06 | R64: 1884.06 | S64: 1884.06 | T64: 1884.06 | U64: 1884.06 | V64: 1884.06 | W64: 1884.06 | X64: 1884.06 | Y64: 1884.06 | Z64: 1884.06 | AA64: 1884.06 | AB64: 1884.06 | AC64: 1884.06 | AD64: 1884.06 | AE64: 1884.06 | AF64: 1884.06 | AG64: 1884.06 | AH64: 1884.06 | AI64: 1884.06 | AJ64: 1884.06 | AK64: 1884.06 | AL64: 1884.06 | AM64: 1884.06 | AN64: 1884.06 | AO64: 1884.06 | AP64: 1884.06 | AQ64: 1884.06 | AR64: 1884.06 | AS64: 1884.06 | AT64: 1884.06 | AU64: 1884.06 | AV64: 1884.06 | AW64: 1884.06 | AX64: 1884.06 | AY64: 1884.06 | AZ64: 1884.06 | BA64: 1884.06 | BB64: 1884.06 | BC64: 1884.06 | BD64: 1884.06 | BE64: 1884.06 | BF64: 1884.06 | BG64: 1884.06 | BH64: 1884.06 | BI64: 1884.06 | BJ64: 1884.06 | BK64: 1884.06 | BL64: 1884.06 | BM64: 1884.06 | BN64: 1884.06 | BO64: 1884.06 | BP64: 1884.06 | BQ64: 1884.06 | BR64: 1884.06 | BS64: 1884.06 | BT64: =$F$64 -> 1884.06 | BU64: 1884.06 | BV64: 1884.06 | BW64: 1884.06 | BX64: 1884.06
B65: Base O&M per kW - Foreigh | E65: =Assumptions!F127 -> USD/kWp-yr | F65: =Assumptions!I127+Assumptions!I128+Assumptions!I129 -> 18 | G65: =$F$65 -> 18 | H65: =$F$65 -> 18 | I65: 18 | J65: 18 | K65: 18 | L65: 18 | M65: 18 | N65: 18 | O65: 18 | P65: 18 | Q65: 18 | R65: 18 | S65: 18 | T65: 18 | U65: 18 | V65: 18 | W65: 18 | X65: 18 | Y65: 18 | Z65: 18 | AA65: 18 | AB65: 18 | AC65: 18 | AD65: 18 | AE65: 18 | AF65: 18 | AG65: 18 | AH65: 18 | AI65: 18 | AJ65: 18 | AK65: 18 | AL65: 18 | AM65: 18 | AN65: 18 | AO65: 18 | AP65: 18 | AQ65: 18 | AR65: 18 | AS65: 18 | AT65: 18 | AU65: 18 | AV65: 18 | AW65: 18 | AX65: 18 | AY65: 18 | AZ65: 18 | BA65: 18 | BB65: 18 | BC65: 18 | BD65: 18 | BE65: 18 | BF65: 18 | BG65: 18 | BH65: 18 | BI65: 18 | BJ65: 18 | BK65: 18 | BL65: 18 | BM65: 18 | BN65: 18 | BO65: 18 | BP65: 18 | BQ65: 18 | BR65: 18 | BS65: 18 | BT65: =$F$65 -> 18 | BU65: 18 | BV65: 18 | BW65: 18 | BX65: 18
B67: Inflated O&M - Local | E67: =E64 -> PKR/kWp-yr | F67: =Assumptions!G123 -> TRUE | G67: =IF($F$67,G64*G33,G68*G30) -> 1893.230757 | H67: =IF($F$67,H64*H33,H68*H30) -> 1902.446154 | I67: 1911.706407 | J67: 1921.011734 | K67: 1930.362356 | L67: 1939.758492 | M67: 1949.200365 | N67: 1958.688196 | O67: 1968.22221 | P67: 1977.802631 | Q67: 1987.429686 | R67: 1997.1036 | S67: 2006.824603 | T67: 2016.592923 | U67: 2026.408791 | V67: 2036.272438 | W67: 2046.184097 | X67: 2056.144002 | Y67: 2066.152387 | Z67: 2076.209488 | AA67: 2086.315543 | AB67: 2096.470789 | AC67: 2106.675467 | AD67: 2116.929816 | AE67: 2127.234079 | AF67: 2254.868124 | AG67: 2390.160211 | AH67: 2533.569824 | AI67: 2685.584013 | AJ67: 2846.719054 | AK67: 3017.522197 | AL67: 3198.573529 | AM67: 3390.487941 | AN67: 3593.917217 | AO67: 3809.55225 | AP67: 4038.125385 | AQ67: 4280.412908 | AR67: 4537.237683 | AS67: 4809.471944 | AT67: 5098.04026 | AU67: 5403.922676 | AV67: 5728.158037 | AW67: 6071.847519 | AX67: 6436.15837 | AY67: 6822.327872 | AZ67: 7231.667545 | BA67: 7665.567597 | BB67: 8125.501653 | BC67: 8613.031752 | BD67: 9129.813657 | BE67: 9677.602477 | BF67: 10258.25863 | BG67: 10873.75414 | BH67: 11526.17939 | BI67: 12217.75016 | BJ67: 12950.81516 | BK67: 13727.86407 | BL67: 14551.53592 | BM67: 15424.62807 | BN67: 16350.10576 | BO67: 17331.1121 | BP67: 18370.97883 | BQ67: 19473.23756 | BR67: 20641.63181 | BS67: 21880.12972 | BT67: =IF($F$67,BT64*BT33,BT68*BT30) -> 23192.93751 | BU67: 24584.51376 | BV67: 26059.58458 | BW67: 27623.15966 | BX67: 29280.54924
B68: Inflated O&M - Foreign | E68: =E65 -> USD/kWp-yr | F68: =Assumptions!G124 -> FALSE | G68: =IF($F$68,G65*G34,G67/G30) -> 17.95571636 | H68: =IF($F$68,H65*H34,H67/H30) -> 17.91154167 | I68: 17.86747565 | J68: 17.82351805 | K68: 17.77966859 | L68: 17.73592701 | M68: 17.69229304 | N68: 17.64876642 | O68: 17.60534689 | P68: 17.56203417 | Q68: 17.51882802 | R68: 17.47572816 | S68: 17.43273433 | T68: 17.38984628 | U68: 17.34706374 | V68: 17.30438645 | W68: 17.26181416 | X68: 17.21934661 | Y68: 17.17698353 | Z68: 17.13472468 | AA68: 17.09256979 | AB68: 17.05051861 | AC68: 17.00857089 | AD68: 16.96672636 | AE68: 16.92498479 | AF68: 16.43202406 | AG68: 16.11295564 | AH68: 15.80008271 | AI68: 15.49328499 | AJ68: 15.1924445 | AK68: 14.97119531 | AL68: 14.75316819 | AM68: 14.53831623 | AN68: 14.32659318 | AO68: 14.18750004 | AP68: 14.04975732 | AQ68: 13.91335191 | AR68: 13.77827083 | AS68: 14.05383624 | AT68: 14.33491297 | AU68: 14.62161123 | AV68: 14.91404345 | AW68: 15.21232432 | AX68: 15.51657081 | AY68: 15.82690222 | AZ68: 16.14344027 | BA68: 16.46630907 | BB68: 16.79563525 | BC68: 17.13154796 | BD68: 17.47417892 | BE68: 17.8236625 | BF68: 18.18013575 | BG68: 18.54373846 | BH68: 18.91461323 | BI68: 19.29290549 | BJ68: 19.6787636 | BK68: 20.07233888 | BL68: 20.47378565 | BM68: 20.88326137 | BN68: 21.30092659 | BO68: 21.72694513 | BP68: 22.16148403 | BQ68: 22.60471371 | BR68: 23.05680798 | BS68: 23.51794414 | BT68: =IF($F$68,BT65*BT34,BT67/BT30) -> 23.98830303 | BU68: 24.46806909 | BV68: 24.95743047 | BW68: 25.45657908 | BX68: 25.96571066
B70: O&M in Local Currency | E70: =Assumptions!G22 -> PKR | G70: =G67*G38 -> 0 | H70: =H67*H38 -> 0 | I70: 0 | J70: 0 | K70: 0 | L70: 0 | M70: 0 | N70: 0 | O70: 0 | P70: 0 | Q70: 0 | R70: 0 | S70: 0 | T70: 0 | U70: 0 | V70: 0 | W70: 0 | X70: 0 | Y70: 0 | Z70: 0 | AA70: 0 | AB70: 0 | AC70: 0 | AD70: 0 | AE70: 0 | AF70: 137997929.2 | AG70: 146277804.9 | AH70: 155054473.2 | AI70: 164357741.6 | AJ70: 174219206.1 | AK70: 184672358.5 | AL70: 195752700 | AM70: 207497862 | AN70: 219947733.7 | AO70: 233144597.7 | AP70: 247133273.6 | AQ70: 261961270 | AR70: 277678946.2 | AS70: 294339683 | AT70: 312000063.9 | AU70: 330720067.8 | AV70: 350563271.8 | AW70: 371597068.2 | AX70: 393892892.2 | AY70: 417526465.8 | AZ70: 442578053.7 | BA70: 469132736.9 | BB70: 497280701.2 | BC70: 527117543.2 | BD70: 558744595.8 | BE70: 0 | BF70: 0 | BG70: 0 | BH70: 0 | BI70: 0 | BJ70: 0 | BK70: 0 | BL70: 0 | BM70: 0 | BN70: 0 | BO70: 0 | BP70: 0 | BQ70: 0 | BR70: 0 | BS70: 0 | BT70: =BT67*BT38 -> 0 | BU70: 0 | BV70: 0 | BW70: 0 | BX70: 0
B71: O&M in Foreign | E71: =Assumptions!G23 -> USD | G71: =G68*G38 -> 0 | H71: =H68*H38 -> 0 | I71: 0 | J71: 0 | K71: 0 | L71: 0 | M71: 0 | N71: 0 | O71: 0 | P71: 0 | Q71: 0 | R71: 0 | S71: 0 | T71: 0 | U71: 0 | V71: 0 | W71: 0 | X71: 0 | Y71: 0 | Z71: 0 | AA71: 0 | AB71: 0 | AC71: 0 | AD71: 0 | AE71: 0 | AF71: 1005639.873 | AG71: 986112.8849 | AH71: 966965.0619 | AI71: 948189.0413 | AJ71: 929777.6036 | AK71: 916237.153 | AL71: 902893.8935 | AM71: 889744.9533 | AN71: 876787.5026 | AO71: 868275.0025 | AP71: 859845.1481 | AQ71: 851497.137 | AR71: 843230.1745 | AS71: 860094.778 | AT71: 877296.6735 | AU71: 894842.607 | AV71: 912739.4592 | AW71: 930994.2483 | AX71: 949614.1333 | AY71: 968606.416 | AZ71: 987978.5443 | BA71: 1007738.115 | BB71: 1027892.877 | BC71: 1048450.735 | BD71: 1069419.75 | BE71: 0 | BF71: 0 | BG71: 0 | BH71: 0 | BI71: 0 | BJ71: 0 | BK71: 0 | BL71: 0 | BM71: 0 | BN71: 0 | BO71: 0 | BP71: 0 | BQ71: 0 | BR71: 0 | BS71: 0 | BT71: =BT68*BT38 -> 0 | BU71: 0 | BV71: 0 | BW71: 0 | BX71: 0
A73: EBITDA and Pre-tax Cash Flow
B74: EBITDA - Local | E74: =E67 -> PKR/kWp-yr | G74: =G60-G70 -> 0 | H74: =H60-H70 -> 0 | I74: 0 | J74: 0 | K74: 0 | L74: 0 | M74: 0 | N74: 0 | O74: 0 | P74: 0 | Q74: 0 | R74: 0 | S74: 0 | T74: 0 | U74: 0 | V74: 0 | W74: 0 | X74: 0 | Y74: 0 | Z74: 0 | AA74: 0 | AB74: 0 | AC74: 0 | AD74: 0 | AE74: 0 | AF74: 604705773.1 | AG74: 640988119.5 | AH74: 679447406.7 | AI74: 720214251.1 | AJ74: 763427106.1 | AK74: 809232732.5 | AL74: 857786696.5 | AM74: 909253898.3 | AN74: 963809132.2 | AO74: 1021637680 | AP74: 1082935941 | AQ74: 1147912097 | AR74: 1216786823 | AS74: 1289794033 | AT74: 1367181675 | AU74: 1449212575 | AV74: 1536165329 | AW74: 1628335249 | AX74: 1726035364 | AY74: 1829597486 | AZ74: 1939373335 | BA74: 2055735735 | BB74: 2179079879 | BC74: 2309824672 | BD74: 2448414153 | BE74: 0 | BF74: 0 | BG74: 0 | BH74: 0 | BI74: 0 | BJ74: 0 | BK74: 0 | BL74: 0 | BM74: 0 | BN74: 0 | BO74: 0 | BP74: 0 | BQ74: 0 | BR74: 0 | BS74: 0 | BT74: =BT60-BT70 -> 0 | BU74: 0 | BV74: 0 | BW74: 0 | BX74: 0
B75: EBITDA - Foreign | E75: =E68 -> USD/kWp-yr | G75: =G61-G71 -> 0 | H75: =H61-H71 -> 0 | I75: 0 | J75: 0 | K75: 0 | L75: 0 | M75: 0 | N75: 0 | O75: 0 | P75: 0 | Q75: 0 | R75: 0 | S75: 0 | T75: 0 | U75: 0 | V75: 0 | W75: 0 | X75: 0 | Y75: 0 | Z75: 0 | AA75: 0 | AB75: 0 | AC75: 0 | AD75: 0 | AE75: 0 | AF75: 4406705.524 | AG75: 4321138.426 | AH75: 4237232.826 | AI75: 4154956.46 | AJ75: 4074277.694 | AK75: 4014943.553 | AL75: 3956473.501 | AM75: 3898854.955 | AN75: 3842075.514 | AO75: 3804773.81 | AP75: 3767834.258 | AQ75: 3731253.343 | AR75: 3695027.582 | AS75: 3768928.134 | AT75: 3844306.697 | AU75: 3921192.831 | AV75: 3999616.687 | AW75: 4079609.021 | AX75: 4161201.201 | AY75: 4244425.226 | AZ75: 4329313.73 | BA75: 4415900.005 | BB75: 4504218.005 | BC75: 4594302.365 | BD75: 4686188.412 | BE75: 0 | BF75: 0 | BG75: 0 | BH75: 0 | BI75: 0 | BJ75: 0 | BK75: 0 | BL75: 0 | BM75: 0 | BN75: 0 | BO75: 0 | BP75: 0 | BQ75: 0 | BR75: 0 | BS75: 0 | BT75: =BT61-BT71 -> 0 | BU75: 0 | BV75: 0 | BW75: 0 | BX75: 0
A77: Funding Requirements - Foreign
B78: Partner 1 Expenditures | E78: =Assumptions!$F$78 -> USD | G78: =SUMIF('Development and Advisory'!$F$11:$F$21,'Financial Model'!G1,'Development and Advisory'!$G$11:$G$21) -> 2000 | H78: =SUMIF('Development and Advisory'!$F$11:$F$21,'Financial Model'!H1,'Development and Advisory'!$G$11:$G$21) -> 800 | I78: =SUMIF('Development and Advisory'!$F$11:$F$21,'Financial Model'!I1,'Development and Advisory'!$G$11:$G$21) -> 1200 | J78: =SUMIF('Development and Advisory'!$F$11:$F$21,'Financial Model'!J1,'Development and Advisory'!$G$11:$G$21) -> 500 | K78: =SUMIF('Development and Advisory'!$F$11:$F$21,'Financial Model'!K1,'Development and Advisory'!$G$11:$G$21) -> 0 | L78: =SUMIF('Development and Advisory'!$F$11:$F$21,'Financial Model'!L1,'Development and Advisory'!$G$11:$G$21) -> 700 | M78: =SUMIF('Development and Advisory'!$F$11:$F$21,'Financial Model'!M1,'Development and Advisory'!$G$11:$G$21) -> 0 | N78: =SUMIF('Development and Advisory'!$F$11:$F$21,'Financial Model'!N1,'Development and Advisory'!$G$11:$G$21) -> 0 | O78: =SUMIF('Development and Advisory'!$F$11:$F$21,'Financial Model'!O1,'Development and Advisory'!$G$11:$G$21) -> 0 | P78: =SUMIF('Development and Advisory'!$F$11:$F$21,'Financial Model'!P1,'Development and Advisory'!$G$11:$G$21) -> 0 | Q78: =SUMIF('Development and Advisory'!$F$11:$F$21,'Financial Model'!Q1,'Development and Advisory'!$G$11:$G$21) -> 0 | R78: =SUMIF('Development and Advisory'!$F$11:$F$21,'Financial Model'!R1,'Development and Advisory'!$G$11:$G$21) -> 2000 | S78: =SUMIF('Development and Advisory'!$F$11:$F$21,'Financial Model'!S1,'Development and Advisory'!$G$11:$G$21) -> 800 | T78: =SUMIF('Development and Advisory'!$F$11:$F$21,'Financial Model'!T1,'Development and Advisory'!$G$11:$G$21) -> 1000 | U78: =SUMIF('Development and Advisory'!$F$11:$F$21,'Financial Model'!U1,'Development and Advisory'!$G$11:$G$21) -> 900 | V78: =SUMIF('Development and Advisory'!$F$11:$F$21,'Financial Model'!V1,'Development and Advisory'!$G$11:$G$21) -> 0 | W78: =SUMIF('Development and Advisory'!$F$11:$F$21,'Financial Model'!W1,'Development and Advisory'!$G$11:$G$21) -> 0 | X78: =SUMIF('Development and Advisory'!$F$11:$F$21,'Financial Model'!X1,'Development and Advisory'!$G$11:$G$21) -> 900 | Y78: =SUMIF('Development and Advisory'!$F$11:$F$21,'Financial Model'!Y1,'Development and Advisory'!$G$11:$G$21) -> 0 | Z78: =SUMIF('Development and Advisory'!$F$11:$F$21,'Financial Model'!Z1,'Development and Advisory'!$G$11:$G$21) -> 0 | AA78: =SUMIF('Development and Advisory'!$F$11:$F$21,'Financial Model'!AA1,'Development and Advisory'!$G$11:$G$21) -> 0 | AB78: =SUMIF('Development and Advisory'!$F$11:$F$21,'Financial Model'!AB1,'Development and Advisory'!$G$11:$G$21) -> 0 | AC78: =SUMIF('Development and Advisory'!$F$11:$F$21,'Financial Model'!AC1,'Development and Advisory'!$G$11:$G$21) -> 0 | AD78: =SUMIF('Development and Advisory'!$F$11:$F$21,'Financial Model'!AD1,'Development and Advisory'!$G$11:$G$21) -> 0 | AE78: =SUMIF('Development and Advisory'!$F$11:$F$21,'Financial Model'!AE1,'Development and Advisory'!$G$11:$G$21) -> 0 | AF78: =SUMIF('Development and Advisory'!$F$11:$F$21,'Financial Model'!AF1,'Development and Advisory'!$G$11:$G$21) -> 0 | AG78: =SUMIF('Development and Advisory'!$F$11:$F$21,'Financial Model'!AG1,'Development and Advisory'!$G$11:$G$21) -> 0 | AH78: =SUMIF('Development and Advisory'!$F$11:$F$21,'Financial Model'!AH1,'Development and Advisory'!$G$11:$G$21) -> 0 | AI78: =SUMIF('Development and Advisory'!$F$11:$F$21,'Financial Model'!AI1,'Development and Advisory'!$G$11:$G$21) -> 0 | AJ78: =SUMIF('Development and Advisory'!$F$11:$F$21,'Financial Model'!AJ1,'Development and Advisory'!$G$11:$G$21) -> 0 | AK78: =SUMIF('Development and Advisory'!$F$11:$F$21,'Financial Model'!AK1,'Development and Advisory'!$G$11:$G$21) -> 0 | AL78: =SUMIF('Development and Advisory'!$F$11:$F$21,'Financial Model'!AL1,'Development and Advisory'!$G$11:$G$21) -> 0 | AM78: =SUMIF('Development and Advisory'!$F$11:$F$21,'Financial Model'!AM1,'Development and Advisory'!$G$11:$G$21) -> 0 | AN78: =SUMIF('Development and Advisory'!$F$11:$F$21,'Financial Model'!AN1,'Development and Advisory'!$G$11:$G$21) -> 0 | AO78: =SUMIF('Development and Advisory'!$F$11:$F$21,'Financial Model'!AO1,'Development and Advisory'!$G$11:$G$21) -> 0 | AP78: =SUMIF('Development and Advisory'!$F$11:$F$21,'Financial Model'!AP1,'Development and Advisory'!$G$11:$G$21) -> 0 | AQ78: =SUMIF('Development and Advisory'!$F$11:$F$21,'Financial Model'!AQ1,'Development and Advisory'!$G$11:$G$21) -> 0 | AR78: =SUMIF('Development and Advisory'!$F$11:$F$21,'Financial Model'!AR1,'Development and Advisory'!$G$11:$G$21) -> 0 | AS78: =SUMIF('Development and Advisory'!$F$11:$F$21,'Financial Model'!AS1,'Development and Advisory'!$G$11:$G$21) -> 0 | AT78: =SUMIF('Development and Advisory'!$F$11:$F$21,'Financial Model'!AT1,'Development and Advisory'!$G$11:$G$21) -> 0 | AU78: =SUMIF('Development and Advisory'!$F$11:$F$21,'Financial Model'!AU1,'Development and Advisory'!$G$11:$G$21) -> 0 | AV78: =SUMIF('Development and Advisory'!$F$11:$F$21,'Financial Model'!AV1,'Development and Advisory'!$G$11:$G$21) -> 0 | AW78: =SUMIF('Development and Advisory'!$F$11:$F$21,'Financial Model'!AW1,'Development and Advisory'!$G$11:$G$21) -> 0 | AX78: =SUMIF('Development and Advisory'!$F$11:$F$21,'Financial Model'!AX1,'Development and Advisory'!$G$11:$G$21) -> 0 | AY78: =SUMIF('Development and Advisory'!$F$11:$F$21,'Financial Model'!AY1,'Development and Advisory'!$G$11:$G$21) -> 0 | AZ78: =SUMIF('Development and Advisory'!$F$11:$F$21,'Financial Model'!AZ1,'Development and Advisory'!$G$11:$G$21) -> 0 | BA78: =SUMIF('Development and Advisory'!$F$11:$F$21,'Financial Model'!BA1,'Development and Advisory'!$G$11:$G$21) -> 0 | BB78: =SUMIF('Development and Advisory'!$F$11:$F$21,'Financial Model'!BB1,'Development and Advisory'!$G$11:$G$21) -> 0 | BC78: =SUMIF('Development and Advisory'!$F$11:$F$21,'Financial Model'!BC1,'Development and Advisory'!$G$11:$G$21) -> 0 | BD78: =SUMIF('Development and Advisory'!$F$11:$F$21,'Financial Model'!BD1,'Development and Advisory'!$G$11:$G$21) -> 0 | BE78: =SUMIF('Development and Advisory'!$F$11:$F$21,'Financial Model'!BE1,'Development and Advisory'!$G$11:$G$21) -> 0 | BF78: =SUMIF('Development and Advisory'!$F$11:$F$21,'Financial Model'!BF1,'Development and Advisory'!$G$11:$G$21) -> 0 | BG78: =SUMIF('Development and Advisory'!$F$11:$F$21,'Financial Model'!BG1,'Development and Advisory'!$G$11:$G$21) -> 0 | BH78: =SUMIF('Development and Advisory'!$F$11:$F$21,'Financial Model'!BH1,'Development and Advisory'!$G$11:$G$21) -> 0 | BI78: =SUMIF('Development and Advisory'!$F$11:$F$21,'Financial Model'!BI1,'Development and Advisory'!$G$11:$G$21) -> 0 | BJ78: =SUMIF('Development and Advisory'!$F$11:$F$21,'Financial Model'!BJ1,'Development and Advisory'!$G$11:$G$21) -> 0 | BK78: =SUMIF('Development and Advisory'!$F$11:$F$21,'Financial Model'!BK1,'Development and Advisory'!$G$11:$G$21) -> 0 | BL78: =SUMIF('Development and Advisory'!$F$11:$F$21,'Financial Model'!BL1,'Development and Advisory'!$G$11:$G$21) -> 0 | BM78: =SUMIF('Development and Advisory'!$F$11:$F$21,'Financial Model'!BM1,'Development and Advisory'!$G$11:$G$21) -> 0 | BN78: =SUMIF('Development and Advisory'!$F$11:$F$21,'Financial Model'!BN1,'Development and Advisory'!$G$11:$G$21) -> 0 | BO78: =SUMIF('Development and Advisory'!$F$11:$F$21,'Financial Model'!BO1,'Development and Advisory'!$G$11:$G$21) -> 0 | BP78: =SUMIF('Development and Advisory'!$F$11:$F$21,'Financial Model'!BP1,'Development and Advisory'!$G$11:$G$21) -> 0 | BQ78: =SUMIF('Development and Advisory'!$F$11:$F$21,'Financial Model'!BQ1,'Development and Advisory'!$G$11:$G$21) -> 0 | BR78: =SUMIF('Development and Advisory'!$F$11:$F$21,'Financial Model'!BR1,'Development and Advisory'!$G$11:$G$21) -> 0 | BS78: =SUMIF('Development and Advisory'!$F$11:$F$21,'Financial Model'!BS1,'Development and Advisory'!$G$11:$G$21) -> 0 | BT78: =SUMIF('Development and Advisory'!$F$11:$F$21,'Financial Model'!BT1,'Development and Advisory'!$G$11:$G$21) -> 0 | BU78: =SUMIF('Development and Advisory'!$F$11:$F$21,'Financial Model'!BU1,'Development and Advisory'!$G$11:$G$21) -> 0 | BV78: =SUMIF('Development and Advisory'!$F$11:$F$21,'Financial Model'!BV1,'Development and Advisory'!$G$11:$G$21) -> 0 | BW78: =SUMIF('Development and Advisory'!$F$11:$F$21,'Financial Model'!BW1,'Development and Advisory'!$G$11:$G$21) -> 0 | BX78: =SUMIF('Development and Advisory'!$F$11:$F$21,'Financial Model'!BX1,'Development and Advisory'!$G$11:$G$21) -> 0
B79: Partner 1 Constant | E79: =Assumptions!$F$78 -> USD | F79: ='Development and Advisory'!G26 -> 23200 | G79: =$F$79*G7 -> 23200 | H79: 23200 | I79: 23200 | J79: 23200 | K79: 23200 | L79: 23200 | M79: 23200 | N79: 23200 | O79: 23200 | P79: 23200 | Q79: 23200 | R79: 23200 | S79: 23200 | T79: 23200 | U79: 23200 | V79: 23200 | W79: 23200 | X79: 23200 | Y79: 0 | Z79: 0 | AA79: 0 | AB79: 0 | AC79: 0 | AD79: 0 | AE79: 0 | AF79: 0 | AG79: 0 | AH79: 0 | AI79: 0 | AJ79: 0 | AK79: 0 | AL79: 0 | AM79: =$F$79*AM7 -> 0 | AN79: 0 | AO79: 0 | AP79: 0 | AQ79: 0 | AR79: 0 | AS79: 0 | AT79: 0 | AU79: 0 | AV79: 0 | AW79: 0 | AX79: 0 | AY79: 0 | AZ79: 0 | BA79: 0 | BB79: 0 | BC79: 0 | BD79: 0 | BE79: 0 | BF79: 0 | BG79: 0 | BH79: 0 | BI79: 0 | BJ79: 0 | BK79: 0 | BL79: 0 | BM79: 0 | BN79: 0 | BO79: 0 | BP79: 0 | BQ79: 0 | BR79: 0 | BS79: =$F$79*BS7 -> 0 | BT79: 0 | BU79: 0 | BV79: 0 | BW79: 0 | BX79: 0
B80: Partner 2 Expenditures | E80: =Assumptions!$F$78 -> USD | G80: =SUMIF('Development and Advisory'!$M$11:$M$21,'Financial Model'!G1,'Development and Advisory'!$N$11:$N$21) -> 122400 | H80: =SUMIF('Development and Advisory'!$M$11:$M$21,'Financial Model'!H1,'Development and Advisory'!$N$11:$N$21) -> 0 | I80: =SUMIF('Development and Advisory'!$M$11:$M$21,'Financial Model'!I1,'Development and Advisory'!$N$11:$N$21) -> 0 | J80: =SUMIF('Development and Advisory'!$M$11:$M$21,'Financial Model'!J1,'Development and Advisory'!$N$11:$N$21) -> 0 | K80: =SUMIF('Development and Advisory'!$M$11:$M$21,'Financial Model'!K1,'Development and Advisory'!$N$11:$N$21) -> 0 | L80: =SUMIF('Development and Advisory'!$M$11:$M$21,'Financial Model'!L1,'Development and Advisory'!$N$11:$N$21) -> 0 | M80: =SUMIF('Development and Advisory'!$M$11:$M$21,'Financial Model'!M1,'Development and Advisory'!$N$11:$N$21) -> 0 | N80: =SUMIF('Development and Advisory'!$M$11:$M$21,'Financial Model'!N1,'Development and Advisory'!$N$11:$N$21) -> 0 | O80: =SUMIF('Development and Advisory'!$M$11:$M$21,'Financial Model'!O1,'Development and Advisory'!$N$11:$N$21) -> 0 | P80: =SUMIF('Development and Advisory'!$M$11:$M$21,'Financial Model'!P1,'Development and Advisory'!$N$11:$N$21) -> 0 | Q80: =SUMIF('Development and Advisory'!$M$11:$M$21,'Financial Model'!Q1,'Development and Advisory'!$N$11:$N$21) -> 0 | R80: =SUMIF('Development and Advisory'!$M$11:$M$21,'Financial Model'!R1,'Development and Advisory'!$N$11:$N$21) -> 0 | S80: =SUMIF('Development and Advisory'!$M$11:$M$21,'Financial Model'!S1,'Development and Advisory'!$N$11:$N$21) -> 0 | T80: =SUMIF('Development and Advisory'!$M$11:$M$21,'Financial Model'!T1,'Development and Advisory'!$N$11:$N$21) -> 0 | U80: =SUMIF('Development and Advisory'!$M$11:$M$21,'Financial Model'!U1,'Development and Advisory'!$N$11:$N$21) -> 0 | V80: =SUMIF('Development and Advisory'!$M$11:$M$21,'Financial Model'!V1,'Development and Advisory'!$N$11:$N$21) -> 0 | W80: =SUMIF('Development and Advisory'!$M$11:$M$21,'Financial Model'!W1,'Development and Advisory'!$N$11:$N$21) -> 0 | X80: =SUMIF('Development and Advisory'!$M$11:$M$21,'Financial Model'!X1,'Development and Advisory'!$N$11:$N$21) -> 0 | Y80: =SUMIF('Development and Advisory'!$M$11:$M$21,'Financial Model'!Y1,'Development and Advisory'!$N$11:$N$21) -> 0 | Z80: =SUMIF('Development and Advisory'!$M$11:$M$21,'Financial Model'!Z1,'Development and Advisory'!$N$11:$N$21) -> 0 | AA80: =SUMIF('Development and Advisory'!$M$11:$M$21,'Financial Model'!AA1,'Development and Advisory'!$N$11:$N$21) -> 0 | AB80: =SUMIF('Development and Advisory'!$M$11:$M$21,'Financial Model'!AB1,'Development and Advisory'!$N$11:$N$21) -> 0 | AC80: =SUMIF('Development and Advisory'!$M$11:$M$21,'Financial Model'!AC1,'Development and Advisory'!$N$11:$N$21) -> 0 | AD80: =SUMIF('Development and Advisory'!$M$11:$M$21,'Financial Model'!AD1,'Development and Advisory'!$N$11:$N$21) -> 0 | AE80: =SUMIF('Development and Advisory'!$M$11:$M$21,'Financial Model'!AE1,'Development and Advisory'!$N$11:$N$21) -> 0 | AF80: =SUMIF('Development and Advisory'!$M$11:$M$21,'Financial Model'!AF1,'Development and Advisory'!$N$11:$N$21) -> 0 | AG80: =SUMIF('Development and Advisory'!$M$11:$M$21,'Financial Model'!AG1,'Development and Advisory'!$N$11:$N$21) -> 0 | AH80: =SUMIF('Development and Advisory'!$M$11:$M$21,'Financial Model'!AH1,'Development and Advisory'!$N$11:$N$21) -> 0 | AI80: =SUMIF('Development and Advisory'!$M$11:$M$21,'Financial Model'!AI1,'Development and Advisory'!$N$11:$N$21) -> 0 | AJ80: =SUMIF('Development and Advisory'!$M$11:$M$21,'Financial Model'!AJ1,'Development and Advisory'!$N$11:$N$21) -> 0 | AK80: =SUMIF('Development and Advisory'!$M$11:$M$21,'Financial Model'!AK1,'Development and Advisory'!$N$11:$N$21) -> 0 | AL80: =SUMIF('Development and Advisory'!$M$11:$M$21,'Financial Model'!AL1,'Development and Advisory'!$N$11:$N$21) -> 0 | AM80: =SUMIF('Development and Advisory'!$M$11:$M$21,'Financial Model'!AM1,'Development and Advisory'!$N$11:$N$21) -> 0 | AN80: =SUMIF('Development and Advisory'!$M$11:$M$21,'Financial Model'!AN1,'Development and Advisory'!$N$11:$N$21) -> 0 | AO80: =SUMIF('Development and Advisory'!$M$11:$M$21,'Financial Model'!AO1,'Development and Advisory'!$N$11:$N$21) -> 0 | AP80: =SUMIF('Development and Advisory'!$M$11:$M$21,'Financial Model'!AP1,'Development and Advisory'!$N$11:$N$21) -> 0 | AQ80: =SUMIF('Development and Advisory'!$M$11:$M$21,'Financial Model'!AQ1,'Development and Advisory'!$N$11:$N$21) -> 0 | AR80: =SUMIF('Development and Advisory'!$M$11:$M$21,'Financial Model'!AR1,'Development and Advisory'!$N$11:$N$21) -> 0 | AS80: =SUMIF('Development and Advisory'!$M$11:$M$21,'Financial Model'!AS1,'Development and Advisory'!$N$11:$N$21) -> 0 | AT80: =SUMIF('Development and Advisory'!$M$11:$M$21,'Financial Model'!AT1,'Development and Advisory'!$N$11:$N$21) -> 0 | AU80: =SUMIF('Development and Advisory'!$M$11:$M$21,'Financial Model'!AU1,'Development and Advisory'!$N$11:$N$21) -> 0 | AV80: =SUMIF('Development and Advisory'!$M$11:$M$21,'Financial Model'!AV1,'Development and Advisory'!$N$11:$N$21) -> 0 | AW80: =SUMIF('Development and Advisory'!$M$11:$M$21,'Financial Model'!AW1,'Development and Advisory'!$N$11:$N$21) -> 0 | AX80: =SUMIF('Development and Advisory'!$M$11:$M$21,'Financial Model'!AX1,'Development and Advisory'!$N$11:$N$21) -> 0 | AY80: =SUMIF('Development and Advisory'!$M$11:$M$21,'Financial Model'!AY1,'Development and Advisory'!$N$11:$N$21) -> 0 | AZ80: =SUMIF('Development and Advisory'!$M$11:$M$21,'Financial Model'!AZ1,'Development and Advisory'!$N$11:$N$21) -> 0 | BA80: =SUMIF('Development and Advisory'!$M$11:$M$21,'Financial Model'!BA1,'Development and Advisory'!$N$11:$N$21) -> 0 | BB80: =SUMIF('Development and Advisory'!$M$11:$M$21,'Financial Model'!BB1,'Development and Advisory'!$N$11:$N$21) -> 0 | BC80: =SUMIF('Development and Advisory'!$M$11:$M$21,'Financial Model'!BC1,'Development and Advisory'!$N$11:$N$21) -> 0 | BD80: =SUMIF('Development and Advisory'!$M$11:$M$21,'Financial Model'!BD1,'Development and Advisory'!$N$11:$N$21) -> 0 | BE80: =SUMIF('Development and Advisory'!$M$11:$M$21,'Financial Model'!BE1,'Development and Advisory'!$N$11:$N$21) -> 0 | BF80: =SUMIF('Development and Advisory'!$M$11:$M$21,'Financial Model'!BF1,'Development and Advisory'!$N$11:$N$21) -> 0 | BG80: =SUMIF('Development and Advisory'!$M$11:$M$21,'Financial Model'!BG1,'Development and Advisory'!$N$11:$N$21) -> 0 | BH80: =SUMIF('Development and Advisory'!$M$11:$M$21,'Financial Model'!BH1,'Development and Advisory'!$N$11:$N$21) -> 0 | BI80: =SUMIF('Development and Advisory'!$M$11:$M$21,'Financial Model'!BI1,'Development and Advisory'!$N$11:$N$21) -> 0 | BJ80: =SUMIF('Development and Advisory'!$M$11:$M$21,'Financial Model'!BJ1,'Development and Advisory'!$N$11:$N$21) -> 0 | BK80: =SUMIF('Development and Advisory'!$M$11:$M$21,'Financial Model'!BK1,'Development and Advisory'!$N$11:$N$21) -> 0 | BL80: =SUMIF('Development and Advisory'!$M$11:$M$21,'Financial Model'!BL1,'Development and Advisory'!$N$11:$N$21) -> 0 | BM80: =SUMIF('Development and Advisory'!$M$11:$M$21,'Financial Model'!BM1,'Development and Advisory'!$N$11:$N$21) -> 0 | BN80: =SUMIF('Development and Advisory'!$M$11:$M$21,'Financial Model'!BN1,'Development and Advisory'!$N$11:$N$21) -> 0 | BO80: =SUMIF('Development and Advisory'!$M$11:$M$21,'Financial Model'!BO1,'Development and Advisory'!$N$11:$N$21) -> 0 | BP80: =SUMIF('Development and Advisory'!$M$11:$M$21,'Financial Model'!BP1,'Development and Advisory'!$N$11:$N$21) -> 0 | BQ80: =SUMIF('Development and Advisory'!$M$11:$M$21,'Financial Model'!BQ1,'Development and Advisory'!$N$11:$N$21) -> 0 | BR80: =SUMIF('Development and Advisory'!$M$11:$M$21,'Financial Model'!BR1,'Development and Advisory'!$N$11:$N$21) -> 0 | BS80: =SUMIF('Development and Advisory'!$M$11:$M$21,'Financial Model'!BS1,'Development and Advisory'!$N$11:$N$21) -> 0 | BT80: =SUMIF('Development and Advisory'!$M$11:$M$21,'Financial Model'!BT1,'Development and Advisory'!$N$11:$N$21) -> 0 | BU80: =SUMIF('Development and Advisory'!$M$11:$M$21,'Financial Model'!BU1,'Development and Advisory'!$N$11:$N$21) -> 0 | BV80: =SUMIF('Development and Advisory'!$M$11:$M$21,'Financial Model'!BV1,'Development and Advisory'!$N$11:$N$21) -> 0 | BW80: =SUMIF('Development and Advisory'!$M$11:$M$21,'Financial Model'!BW1,'Development and Advisory'!$N$11:$N$21) -> 0 | BX80: =SUMIF('Development and Advisory'!$M$11:$M$21,'Financial Model'!BX1,'Development and Advisory'!$N$11:$N$21) -> 0
B81: Partner 2 Constant | E81: =Assumptions!$F$78 -> USD | F81: ='Development and Advisory'!O26 -> 0 | G81: =$F$81*G7 -> 0 | H81: 0 | I81: 0 | J81: 0 | K81: 0 | L81: 0 | M81: 0 | N81: 0 | O81: 0 | P81: 0 | Q81: 0 | R81: 0 | S81: 0 | T81: 0 | U81: 0 | V81: 0 | W81: 0 | X81: 0 | Y81: 0 | Z81: 0 | AA81: 0 | AB81: 0 | AC81: 0 | AD81: 0 | AE81: 0 | AF81: 0 | AG81: 0 | AH81: 0 | AI81: 0 | AJ81: 0 | AK81: 0 | AL81: 0 | AM81: =$F$81*AM7 -> 0 | AN81: 0 | AO81: 0 | AP81: 0 | AQ81: 0 | AR81: 0 | AS81: 0 | AT81: 0 | AU81: 0 | AV81: 0 | AW81: 0 | AX81: 0 | AY81: 0 | AZ81: 0 | BA81: 0 | BB81: 0 | BC81: 0 | BD81: 0 | BE81: 0 | BF81: 0 | BG81: 0 | BH81: 0 | BI81: 0 | BJ81: 0 | BK81: 0 | BL81: 0 | BM81: 0 | BN81: 0 | BO81: 0 | BP81: 0 | BQ81: 0 | BR81: 0 | BS81: =$F$81*BS7 -> 0 | BT81: 0 | BU81: 0 | BV81: 0 | BW81: 0 | BX81: 0
B82: Partner 1 Development Profit | E82: =Assumptions!$F$78 -> USD | F82: =Assumptions!G58 -> 2998800 | G82: =$F$82*G16 -> 0 | H82: 0 | I82: 0 | J82: 0 | K82: 0 | L82: 0 | M82: 0 | N82: 0 | O82: 0 | P82: 0 | Q82: 0 | R82: 0 | S82: 0 | T82: 0 | U82: 0 | V82: 0 | W82: 0 | X82: 0 | Y82: 0 | Z82: 0 | AA82: 2998800 | AB82: 0 | AC82: 0 | AD82: 0 | AE82: 0 | AF82: 0 | AG82: 0 | AH82: 0 | AI82: 0 | AJ82: 0 | AK82: 0 | AL82: 0 | AM82: =$F$82*AM16 -> 0 | AN82: 0 | AO82: 0 | AP82: 0 | AQ82: 0 | AR82: 0 | AS82: 0 | AT82: 0 | AU82: 0 | AV82: 0 | AW82: 0 | AX82: 0 | AY82: 0 | AZ82: 0 | BA82: 0 | BB82: 0 | BC82: 0 | BD82: 0 | BE82: 0 | BF82: 0 | BG82: 0 | BH82: 0 | BI82: 0 | BJ82: 0 | BK82: 0 | BL82: 0 | BM82: 0 | BN82: 0 | BO82: 0 | BP82: 0 | BQ82: 0 | BR82: 0 | BS82: =$F$82*BS16 -> 0 | BT82: 0 | BU82: 0 | BV82: 0 | BW82: 0 | BX82: 0
B83: Partner 2 Development Profit | E83: =Assumptions!$F$78 -> USD | F83: =Assumptions!G59 -> 612000 | G83: =$F$83*G16 -> 0 | H83: 0 | I83: 0 | J83: 0 | K83: 0 | L83: 0 | M83: 0 | N83: 0 | O83: 0 | P83: 0 | Q83: 0 | R83: 0 | S83: 0 | T83: 0 | U83: 0 | V83: 0 | W83: 0 | X83: 0 | Y83: 0 | Z83: 0 | AA83: 612000 | AB83: 0 | AC83: 0 | AD83: 0 | AE83: 0 | AF83: 0 | AG83: 0 | AH83: 0 | AI83: 0 | AJ83: 0 | AK83: 0 | AL83: 0 | AM83: =$F$83*AM16 -> 0 | AN83: 0 | AO83: 0 | AP83: 0 | AQ83: 0 | AR83: 0 | AS83: 0 | AT83: 0 | AU83: 0 | AV83: 0 | AW83: 0 | AX83: 0 | AY83: 0 | AZ83: 0 | BA83: 0 | BB83: 0 | BC83: 0 | BD83: 0 | BE83: 0 | BF83: 0 | BG83: 0 | BH83: 0 | BI83: 0 | BJ83: 0 | BK83: 0 | BL83: 0 | BM83: 0 | BN83: 0 | BO83: 0 | BP83: 0 | BQ83: 0 | BR83: 0 | BS83: =$F$83*BS16 -> 0 | BT83: 0 | BU83: 0 | BV83: 0 | BW83: 0 | BX83: 0
B84: Advisory Success Fee | E84: =Assumptions!$F$78 -> USD | F84: =Assumptions!G83 -> 260100 | G84: =$F$84*G16 -> 0 | H84: 0 | I84: 0 | J84: 0 | K84: 0 | L84: 0 | M84: 0 | N84: 0 | O84: 0 | P84: 0 | Q84: 0 | R84: 0 | S84: 0 | T84: 0 | U84: 0 | V84: 0 | W84: 0 | X84: 0 | Y84: 0 | Z84: 0 | AA84: 260100 | AB84: 0 | AC84: 0 | AD84: 0 | AE84: 0 | AF84: 0 | AG84: 0 | AH84: 0 | AI84: 0 | AJ84: 0 | AK84: 0 | AL84: 0 | AM84: =$F$84*AM16 -> 0 | AN84: 0 | AO84: 0 | AP84: 0 | AQ84: 0 | AR84: 0 | AS84: 0 | AT84: 0 | AU84: 0 | AV84: 0 | AW84: 0 | AX84: 0 | AY84: 0 | AZ84: 0 | BA84: 0 | BB84: 0 | BC84: 0 | BD84: 0 | BE84: 0 | BF84: 0 | BG84: 0 | BH84: 0 | BI84: 0 | BJ84: 0 | BK84: 0 | BL84: 0 | BM84: 0 | BN84: 0 | BO84: 0 | BP84: 0 | BQ84: 0 | BR84: 0 | BS84: =$F$84*BS16 -> 0 | BT84: 0 | BU84: 0 | BV84: 0 | BW84: 0 | BX84: 0
B85: Advisory Retainer | E85: =Assumptions!$F$78 -> USD | F85: =Assumptions!G79 -> 1000 | G85: =$F$85*G12 -> 1000 | H85: 1000 | I85: 1000 | J85: 1000 | K85: 1000 | L85: 0 | M85: 0 | N85: 0 | O85: 0 | P85: 0 | Q85: 0 | R85: 0 | S85: 0 | T85: 0 | U85: 0 | V85: 0 | W85: 0 | X85: 0 | Y85: 0 | Z85: 0 | AA85: 0 | AB85: 0 | AC85: 0 | AD85: 0 | AE85: 0 | AF85: 0 | AG85: 0 | AH85: 0 | AI85: 0 | AJ85: 0 | AK85: 0 | AL85: 0 | AM85: =$F$85*AM12 -> 0 | AN85: 0 | AO85: 0 | AP85: 0 | AQ85: 0 | AR85: 0 | AS85: 0 | AT85: 0 | AU85: 0 | AV85: 0 | AW85: 0 | AX85: 0 | AY85: 0 | AZ85: 0 | BA85: 0 | BB85: 0 | BC85: 0 | BD85: 0 | BE85: 0 | BF85: 0 | BG85: 0 | BH85: 0 | BI85: 0 | BJ85: 0 | BK85: 0 | BL85: 0 | BM85: 0 | BN85: 0 | BO85: 0 | BP85: 0 | BQ85: 0 | BR85: 0 | BS85: =$F$85*BS12 -> 0 | BT85: 0 | BU85: 0 | BV85: 0 | BW85: 0 | BX85: 0
C86: Total Development and Advisor Fees | E86: =Assumptions!F78 -> USD | G86: =SUM(G78:G85) -> 148600 | H86: =SUM(H78:H85) -> 25000 | I86: 25400 | J86: 24700 | K86: 24200 | L86: 23900 | M86: 23200 | N86: 23200 | O86: 23200 | P86: 23200 | Q86: 23200 | R86: 25200 | S86: 24000 | T86: 24200 | U86: 24100 | V86: 23200 | W86: 23200 | X86: 24100 | Y86: 0 | Z86: 0 | AA86: 3870900 | AB86: 0 | AC86: 0 | AD86: 0 | AE86: 0 | AF86: 0 | AG86: 0 | AH86: 0 | AI86: 0 | AJ86: 0 | AK86: 0 | AL86: 0 | AM86: 0 | AN86: 0 | AO86: 0 | AP86: 0 | AQ86: 0 | AR86: 0 | AS86: 0 | AT86: 0 | AU86: 0 | AV86: 0 | AW86: 0 | AX86: 0 | AY86: 0 | AZ86: 0 | BA86: 0 | BB86: 0 | BC86: 0 | BD86: 0 | BE86: 0 | BF86: 0 | BG86: 0 | BH86: 0 | BI86: 0 | BJ86: 0 | BK86: 0 | BL86: 0 | BM86: 0 | BN86: 0 | BO86: 0 | BP86: 0 | BQ86: 0 | BR86: 0 | BS86: 0 | BT86: =SUM(BT78:BT85) -> 0 | BU86: 0 | BV86: 0 | BW86: 0 | BX86: 0
B87: EPC Expendtitures | E87: =Assumptions!G8 -> 5 | F87: =Assumptions!G96 -> 52020000 | G87: =$F$87/$E$87*G9 -> 0 | H87: 0 | I87: 0 | J87: 0 | K87: 0 | L87: 0 | M87: 0 | N87: 0 | O87: 0 | P87: 0 | Q87: 0 | R87: 0 | S87: 0 | T87: 0 | U87: 0 | V87: 0 | W87: 0 | X87: 0 | Y87: 0 | Z87: 0 | AA87: 10404000 | AB87: 10404000 | AC87: 10404000 | AD87: 10404000 | AE87: 10404000 | AF87: 0 | AG87: 0 | AH87: 0 | AI87: 0 | AJ87: 0 | AK87: 0 | AL87: 0 | AM87: =$F$87/$E$87*AM9 -> 0 | AN87: 0 | AO87: 0 | AP87: 0 | AQ87: 0 | AR87: 0 | AS87: 0 | AT87: 0 | AU87: 0 | AV87: 0 | AW87: 0 | AX87: 0 | AY87: 0 | AZ87: 0 | BA87: 0 | BB87: 0 | BC87: 0 | BD87: 0 | BE87: 0 | BF87: 0 | BG87: 0 | BH87: 0 | BI87: 0 | BJ87: 0 | BK87: 0 | BL87: 0 | BM87: 0 | BN87: 0 | BO87: 0 | BP87: 0 | BQ87: 0 | BR87: 0 | BS87: =$F$87/$E$87*BS9 -> 0 | BT87: 0 | BU87: 0 | BV87: 0 | BW87: 0 | BX87: 0
B88: Interest During Construction | E88: =Assumptions!$F$78 -> USD | G88: =IF(Local_Switch,G109/G30,G262) -> 0 | H88: 0 | I88: 0 | J88: 0 | K88: 0 | L88: 0 | M88: 0 | N88: 0 | O88: 0 | P88: 0 | Q88: 0 | R88: 0 | S88: 0 | T88: 0 | U88: 0 | V88: 0 | W88: 0 | X88: 0 | Y88: 0 | Z88: 0 | AA88: 22742.16461 | AB88: 67894.8104 | AC88: 112718.1915 | AD88: 157214.7089 | AE88: 201386.7463 | AF88: 0 | AG88: 0 | AH88: 0 | AI88: 0 | AJ88: 0 | AK88: 0 | AL88: 0 | AM88: =IF(Local_Switch,AM109/AM30,AM262) -> 0 | AN88: 0 | AO88: 0 | AP88: 0 | AQ88: 0 | AR88: 0 | AS88: 0 | AT88: 0 | AU88: 0 | AV88: 0 | AW88: 0 | AX88: 0 | AY88: 0 | AZ88: 0 | BA88: 0 | BB88: 0 | BC88: 0 | BD88: 0 | BE88: 0 | BF88: 0 | BG88: 0 | BH88: 0 | BI88: 0 | BJ88: 0 | BK88: 0 | BL88: 0 | BM88: 0 | BN88: 0 | BO88: 0 | BP88: 0 | BQ88: 0 | BR88: 0 | BS88: =IF(Local_Switch,BS109/BS30,BS262) -> 0 | BT88: 0 | BU88: 0 | BV88: 0 | BW88: 0 | BX88: 0
B89: Fees During Construction | E89: =Assumptions!$F$78 -> USD | G89: =IF(Local_Switch,G110/G30,G265) -> 0 | H89: 0 | I89: 0 | J89: 0 | K89: 0 | L89: 0 | M89: 0 | N89: 0 | O89: 0 | P89: 0 | Q89: 0 | R89: 0 | S89: 0 | T89: 0 | U89: 0 | V89: 0 | W89: 0 | X89: 0 | Y89: 0 | Z89: 0 | AA89: 615433.2787 | AB89: 0 | AC89: 0 | AD89: 0 | AE89: 0 | AF89: 0 | AG89: 0 | AH89: 0 | AI89: 0 | AJ89: 0 | AK89: 0 | AL89: 0 | AM89: =IF(Local_Switch,AM110/AM30,AM265) -> 0 | AN89: 0 | AO89: 0 | AP89: 0 | AQ89: 0 | AR89: 0 | AS89: 0 | AT89: 0 | AU89: 0 | AV89: 0 | AW89: 0 | AX89: 0 | AY89: 0 | AZ89: 0 | BA89: 0 | BB89: 0 | BC89: 0 | BD89: 0 | BE89: 0 | BF89: 0 | BG89: 0 | BH89: 0 | BI89: 0 | BJ89: 0 | BK89: 0 | BL89: 0 | BM89: 0 | BN89: 0 | BO89: 0 | BP89: 0 | BQ89: 0 | BR89: 0 | BS89: =IF(Local_Switch,BS110/BS30,BS265) -> 0 | BT89: 0 | BU89: 0 | BV89: 0 | BW89: 0 | BX89: 0
B90: DSRA Funding | E90: =Assumptions!$F$78 -> USD | G90: =IF(Local_Switch,G111/G30,G275) -> 0 | H90: 0 | I90: 0 | J90: 0 | K90: 0 | L90: 0 | M90: 0 | N90: 0 | O90: 0 | P90: 0 | Q90: 0 | R90: 0 | S90: 0 | T90: 0 | U90: 0 | V90: 0 | W90: 0 | X90: 0 | Y90: 0 | Z90: 0 | AA90: 0 | AB90: 0 | AC90: 0 | AD90: 0 | AE90: 1571730.409 | AF90: 0 | AG90: 0 | AH90: 0 | AI90: 0 | AJ90: 0 | AK90: 0 | AL90: 0 | AM90: =IF(Local_Switch,AM111/AM30,AM275) -> 0 | AN90: 0 | AO90: 0 | AP90: 0 | AQ90: 0 | AR90: 0 | AS90: 0 | AT90: 0 | AU90: 0 | AV90: 0 | AW90: 0 | AX90: 0 | AY90: 0 | AZ90: 0 | BA90: 0 | BB90: 0 | BC90: 0 | BD90: 0 | BE90: 0 | BF90: 0 | BG90: 0 | BH90: 0 | BI90: 0 | BJ90: 0 | BK90: 0 | BL90: 0 | BM90: 0 | BN90: 0 | BO90: 0 | BP90: 0 | BQ90: 0 | BR90: 0 | BS90: =IF(Local_Switch,BS111/BS30,BS275) -> 0 | BT90: 0 | BU90: 0 | BV90: 0 | BW90: 0 | BX90: 0
C91: Total Funding Needs | E91: =Assumptions!F78 -> USD | G91: =G86+G87+G88+G89+G90 -> 148600 | H91: =H86+H87+H88+H89+H90 -> 25000 | I91: 25400 | J91: 24700 | K91: 24200 | L91: 23900 | M91: 23200 | N91: 23200 | O91: 23200 | P91: 23200 | Q91: 23200 | R91: 25200 | S91: 24000 | T91: 24200 | U91: 24100 | V91: 23200 | W91: 23200 | X91: 24100 | Y91: 0 | Z91: 0 | AA91: 14913075.44 | AB91: 10471894.81 | AC91: 10516718.19 | AD91: 10561214.71 | AE91: 12177117.16 | AF91: 0 | AG91: 0 | AH91: 0 | AI91: 0 | AJ91: 0 | AK91: 0 | AL91: 0 | AM91: 0 | AN91: 0 | AO91: 0 | AP91: 0 | AQ91: 0 | AR91: 0 | AS91: 0 | AT91: 0 | AU91: 0 | AV91: 0 | AW91: 0 | AX91: 0 | AY91: 0 | AZ91: 0 | BA91: 0 | BB91: 0 | BC91: 0 | BD91: 0 | BE91: 0 | BF91: 0 | BG91: 0 | BH91: 0 | BI91: 0 | BJ91: 0 | BK91: 0 | BL91: 0 | BM91: 0 | BN91: 0 | BO91: 0 | BP91: 0 | BQ91: 0 | BR91: 0 | BS91: 0 | BT91: =BT86+BT87+BT88+BT89+BT90 -> 0 | BU91: 0 | BV91: 0 | BW91: 0 | BX91: 0
B93: Accumulated Development and Financing | E93: =Assumptions!$F$78 -> USD | G93: =F93+G78+G79+G80+G81+G85 -> 148600 | H93: =G93+H78+H79+H80+H81+H85 -> 173600 | I93: 199000 | J93: 223700 | K93: 247900 | L93: 271800 | M93: 295000 | N93: 318200 | O93: 341400 | P93: 364600 | Q93: 387800 | R93: 413000 | S93: 437000 | T93: 461200 | U93: 485300 | V93: 508500 | W93: 531700 | X93: 555800 | Y93: 555800 | Z93: 555800 | AA93: 555800 | AB93: 555800 | AC93: 555800 | AD93: 555800 | AE93: 555800 | AF93: 555800 | AG93: 555800 | AH93: 555800 | AI93: 555800 | AJ93: 555800 | AK93: 555800 | AL93: 555800 | AM93: 555800 | AN93: 555800 | AO93: 555800 | AP93: 555800 | AQ93: 555800 | AR93: 555800 | AS93: 555800 | AT93: 555800 | AU93: 555800 | AV93: 555800 | AW93: 555800 | AX93: 555800 | AY93: 555800 | AZ93: 555800 | BA93: 555800 | BB93: 555800 | BC93: 555800 | BD93: 555800 | BE93: 555800 | BF93: 555800 | BG93: 555800 | BH93: 555800 | BI93: 555800 | BJ93: 555800 | BK93: 555800 | BL93: 555800 | BM93: 555800 | BN93: 555800 | BO93: 555800 | BP93: 555800 | BQ93: 555800 | BR93: 555800 | BS93: 555800 | BT93: =BS93+BT78+BT79+BT80+BT81+BT85 -> 555800 | BU93: 555800 | BV93: 555800 | BW93: 555800 | BX93: 555800
B94: Basis for Debt Draws | E94: =Assumptions!$F$78 -> USD | G94: =(G86+G87)*G9+G16*G93 -> 0 | H94: 0 | I94: 0 | J94: 0 | K94: 0 | L94: 0 | M94: 0 | N94: 0 | O94: 0 | P94: 0 | Q94: 0 | R94: 0 | S94: 0 | T94: 0 | U94: 0 | V94: 0 | W94: 0 | X94: 0 | Y94: 0 | Z94: 0 | AA94: 14830700 | AB94: 10404000 | AC94: 10404000 | AD94: 10404000 | AE94: 10404000 | AF94: 0 | AG94: 0 | AH94: 0 | AI94: 0 | AJ94: 0 | AK94: 0 | AL94: 0 | AM94: =(AM86+AM87)*AM9+AM16*AM93 -> 0 | AN94: 0 | AO94: 0 | AP94: 0 | AQ94: 0 | AR94: 0 | AS94: 0 | AT94: 0 | AU94: 0 | AV94: 0 | AW94: 0 | AX94: 0 | AY94: 0 | AZ94: 0 | BA94: 0 | BB94: 0 | BC94: 0 | BD94: 0 | BE94: 0 | BF94: 0 | BG94: 0 | BH94: 0 | BI94: 0 | BJ94: 0 | BK94: 0 | BL94: 0 | BM94: 0 | BN94: 0 | BO94: 0 | BP94: 0 | BQ94: 0 | BR94: 0 | BS94: =(BS86+BS87)*BS9+BS16*BS93 -> 0 | BT94: 0 | BU94: 0 | BV94: 0 | BW94: 0 | BX94: 0
A98: Funding Requirements - Local
B99: =B78 -> Partner 1 Expenditures | E99: =Assumptions!$G$22 -> PKR | G99: =G78*G$30 -> 210877.775 | H99: =H78*H$30 -> 84970.7385 | I99: 128392.378 | J99: 53889.80248 | K99: 0 | L99: 76558.21678 | M99: 0 | N99: 0 | O99: 0 | P99: 0 | Q99: 0 | R99: 228557.412 | S99: 92094.5419 | T99: 115963.8154 | U99: 105134.0987 | V99: 0 | W99: 0 | X99: 107468.05 | Y99: 0 | Z99: 0 | AA99: 0 | AB99: 0 | AC99: 0 | AD99: 0 | AE99: 0 | AF99: 0 | AG99: 0 | AH99: 0 | AI99: 0 | AJ99: 0 | AK99: 0 | AL99: 0 | AM99: 0 | AN99: 0 | AO99: 0 | AP99: 0 | AQ99: 0 | AR99: 0 | AS99: 0 | AT99: 0 | AU99: 0 | AV99: 0 | AW99: 0 | AX99: 0 | AY99: 0 | AZ99: 0 | BA99: 0 | BB99: 0 | BC99: 0 | BD99: 0 | BE99: 0 | BF99: 0 | BG99: 0 | BH99: 0 | BI99: 0 | BJ99: 0 | BK99: 0 | BL99: 0 | BM99: 0 | BN99: 0 | BO99: 0 | BP99: 0 | BQ99: 0 | BR99: 0 | BS99: 0 | BT99: =BT78*BT$30 -> 0 | BU99: 0 | BV99: 0 | BW99: 0 | BX99: 0
B100: =B79 -> Partner 1 Constant | E100: =Assumptions!$G$22 -> PKR | G100: =G79*G$30 -> 2446182.19 | H100: 2464151.416 | I100: 2482252.642 | J100: 2500486.835 | K100: 2518854.974 | L100: 2537358.042 | M100: 2555997.03 | N100: 2574772.937 | O100: 2593686.769 | P100: 2612739.538 | Q100: 2631932.265 | R100: 2651265.979 | S100: 2670741.715 | T100: 2690360.517 | U100: 2710123.434 | V100: 2730031.527 | W100: 2750085.861 | X100: 2770287.51 | Y100: 0 | Z100: 0 | AA100: 0 | AB100: 0 | AC100: 0 | AD100: 0 | AE100: 0 | AF100: 0 | AG100: 0 | AH100: 0 | AI100: 0 | AJ100: 0 | AK100: 0 | AL100: 0 | AM100: 0 | AN100: 0 | AO100: 0 | AP100: 0 | AQ100: 0 | AR100: 0 | AS100: 0 | AT100: 0 | AU100: 0 | AV100: 0 | AW100: 0 | AX100: 0 | AY100: 0 | AZ100: 0 | BA100: 0 | BB100: 0 | BC100: 0 | BD100: 0 | BE100: 0 | BF100: 0 | BG100: 0 | BH100: 0 | BI100: 0 | BJ100: 0 | BK100: 0 | BL100: 0 | BM100: 0 | BN100: 0 | BO100: 0 | BP100: 0 | BQ100: 0 | BR100: 0 | BS100: 0 | BT100: 0 | BU100: 0 | BV100: 0 | BW100: 0 | BX100: 0
B101: Partner 2 Expenditures | E101: =Assumptions!$G$22 -> PKR | G101: 12905719.83 | H101: 0 | I101: 0 | J101: 0 | K101: 0 | L101: 0 | M101: 0 | N101: 0 | O101: 0 | P101: 0 | Q101: 0 | R101: 0 | S101: 0 | T101: 0 | U101: 0 | V101: 0 | W101: 0 | X101: 0 | Y101: 0 | Z101: 0 | AA101: 0 | AB101: 0 | AC101: 0 | AD101: 0 | AE101: 0 | AF101: 0 | AG101: 0 | AH101: 0 | AI101: 0 | AJ101: 0 | AK101: 0 | AL101: 0 | AM101: 0 | AN101: 0 | AO101: 0 | AP101: 0 | AQ101: 0 | AR101: 0 | AS101: 0 | AT101: 0 | AU101: 0 | AV101: 0 | AW101: 0 | AX101: 0 | AY101: 0 | AZ101: 0 | BA101: 0 | BB101: 0 | BC101: 0 | BD101: 0 | BE101: 0 | BF101: 0 | BG101: 0 | BH101: 0 | BI101: 0 | BJ101: 0 | BK101: 0 | BL101: 0 | BM101: 0 | BN101: 0 | BO101: 0 | BP101: 0 | BQ101: 0 | BR101: 0 | BS101: 0 | BT101: 0 | BU101: 0 | BV101: 0 | BW101: 0 | BX101: 0
B102: Partner 2 Constant | E102: =Assumptions!$G$22 -> PKR | G102: 0 | H102: 0 | I102: 0 | J102: 0 | K102: 0 | L102: 0 | M102: 0 | N102: 0 | O102: 0 | P102: 0 | Q102: 0 | R102: 0 | S102: 0 | T102: 0 | U102: 0 | V102: 0 | W102: 0 | X102: 0 | Y102: 0 | Z102: 0 | AA102: 0 | AB102: 0 | AC102: 0 | AD102: 0 | AE102: 0 | AF102: 0 | AG102: 0 | AH102: 0 | AI102: 0 | AJ102: 0 | AK102: 0 | AL102: 0 | AM102: 0 | AN102: 0 | AO102: 0 | AP102: 0 | AQ102: 0 | AR102: 0 | AS102: 0 | AT102: 0 | AU102: 0 | AV102: 0 | AW102: 0 | AX102: 0 | AY102: 0 | AZ102: 0 | BA102: 0 | BB102: 0 | BC102: 0 | BD102: 0 | BE102: 0 | BF102: 0 | BG102: 0 | BH102: 0 | BI102: 0 | BJ102: 0 | BK102: 0 | BL102: 0 | BM102: 0 | BN102: 0 | BO102: 0 | BP102: 0 | BQ102: 0 | BR102: 0 | BS102: 0 | BT102: 0 | BU102: 0 | BV102: 0 | BW102: 0 | BX102: 0
B103: Partner 1 Development Profit | E103: =Assumptions!$G$22 -> PKR | G103: 0 | H103: 0 | I103: 0 | J103: 0 | K103: 0 | L103: 0 | M103: 0 | N103: 0 | O103: 0 | P103: 0 | Q103: 0 | R103: 0 | S103: 0 | T103: 0 | U103: 0 | V103: 0 | W103: 0 | X103: 0 | Y103: 0 | Z103: 0 | AA103: 366032909.4 | AB103: 0 | AC103: 0 | AD103: 0 | AE103: 0 | AF103: 0 | AG103: 0 | AH103: 0 | AI103: 0 | AJ103: 0 | AK103: 0 | AL103: 0 | AM103: 0 | AN103: 0 | AO103: 0 | AP103: 0 | AQ103: 0 | AR103: 0 | AS103: 0 | AT103: 0 | AU103: 0 | AV103: 0 | AW103: 0 | AX103: 0 | AY103: 0 | AZ103: 0 | BA103: 0 | BB103: 0 | BC103: 0 | BD103: 0 | BE103: 0 | BF103: 0 | BG103: 0 | BH103: 0 | BI103: 0 | BJ103: 0 | BK103: 0 | BL103: 0 | BM103: 0 | BN103: 0 | BO103: =BO82*BO$30 -> 0 | BP103: 0 | BQ103: 0 | BR103: 0 | BS103: 0 | BT103: 0 | BU103: 0 | BV103: 0 | BW103: 0 | BX103: 0
B104: Partner 2 Development Profit | E104: =Assumptions!$G$22 -> PKR | G104: 0 | H104: 0 | I104: 0 | J104: 0 | K104: 0 | L104: 0 | M104: 0 | N104: 0 | O104: 0 | P104: 0 | Q104: 0 | R104: 0 | S104: 0 | T104: 0 | U104: 0 | V104: 0 | W104: =W83*W$30 -> 0 | X104: 0 | Y104: 0 | Z104: 0 | AA104: 74700593.75 | AB104: 0 | AC104: 0 | AD104: 0 | AE104: 0 | AF104: 0 | AG104: 0 | AH104: 0 | AI104: 0 | AJ104: 0 | AK104: 0 | AL104: 0 | AM104: 0 | AN104: 0 | AO104: 0 | AP104: 0 | AQ104: 0 | AR104: 0 | AS104: 0 | AT104: 0 | AU104: 0 | AV104: 0 | AW104: 0 | AX104: 0 | AY104: 0 | AZ104: 0 | BA104: 0 | BB104: 0 | BC104: 0 | BD104: 0 | BE104: 0 | BF104: 0 | BG104: 0 | BH104: 0 | BI104: 0 | BJ104: 0 | BK104: 0 | BL104: 0 | BM104: 0 | BN104: 0 | BO104: 0 | BP104: 0 | BQ104: 0 | BR104: 0 | BS104: 0 | BT104: 0 | BU104: 0 | BV104: 0 | BW104: 0 | BX104: 0
B105: Advisory Success Fee | E105: =Assumptions!$G$22 -> PKR | G105: 0 | H105: 0 | I105: 0 | J105: 0 | K105: 0 | L105: 0 | M105: 0 | N105: 0 | O105: 0 | P105: 0 | Q105: 0 | R105: 0 | S105: 0 | T105: 0 | U105: 0 | V105: 0 | W105: 0 | X105: 0 | Y105: 0 | Z105: 0 | AA105: 31747752.34 | AB105: 0 | AC105: 0 | AD105: 0 | AE105: 0 | AF105: 0 | AG105: 0 | AH105: 0 | AI105: 0 | AJ105: 0 | AK105: 0 | AL105: 0 | AM105: 0 | AN105: 0 | AO105: 0 | AP105: 0 | AQ105: 0 | AR105: 0 | AS105: 0 | AT105: 0 | AU105: 0 | AV105: 0 | AW105: 0 | AX105: 0 | AY105: 0 | AZ105: 0 | BA105: 0 | BB105: 0 | BC105: 0 | BD105: 0 | BE105: 0 | BF105: 0 | BG105: 0 | BH105: 0 | BI105: 0 | BJ105: 0 | BK105: 0 | BL105: 0 | BM105: 0 | BN105: 0 | BO105: 0 | BP105: 0 | BQ105: 0 | BR105: 0 | BS105: 0 | BT105: 0 | BU105: 0 | BV105: 0 | BW105: 0 | BX105: 0
B106: Advisory Retainer | E106: =Assumptions!$G$22 -> PKR | G106: 105438.8875 | H106: 106213.4231 | I106: 106993.6483 | J106: 107779.605 | K106: 108571.3351 | L106: 0 | M106: 0 | N106: 0 | O106: 0 | P106: 0 | Q106: 0 | R106: 0 | S106: 0 | T106: 0 | U106: 0 | V106: 0 | W106: 0 | X106: 0 | Y106: 0 | Z106: 0 | AA106: 0 | AB106: 0 | AC106: 0 | AD106: 0 | AE106: 0 | AF106: 0 | AG106: 0 | AH106: 0 | AI106: 0 | AJ106: 0 | AK106: 0 | AL106: 0 | AM106: 0 | AN106: 0 | AO106: 0 | AP106: 0 | AQ106: 0 | AR106: 0 | AS106: 0 | AT106: 0 | AU106: 0 | AV106: 0 | AW106: 0 | AX106: 0 | AY106: 0 | AZ106: 0 | BA106: 0 | BB106: 0 | BC106: 0 | BD106: 0 | BE106: 0 | BF106: 0 | BG106: 0 | BH106: 0 | BI106: 0 | BJ106: 0 | BK106: 0 | BL106: 0 | BM106: 0 | BN106: 0 | BO106: 0 | BP106: 0 | BQ106: 0 | BR106: 0 | BS106: 0 | BT106: 0 | BU106: 0 | BV106: 0 | BW106: 0 | BX106: 0
B107: 0 | C107: =C86 -> Total Development and Advisor Fees | E107: =Assumptions!$G$22 -> PKR | G107: 15668218.68 | H107: 2655335.578 | I107: 2717638.668 | J107: 2662156.243 | K107: 2627426.309 | L107: 2613916.259 | M107: 2555997.03 | N107: 2574772.937 | O107: 2593686.769 | P107: 2612739.538 | Q107: 2631932.265 | R107: 2879823.391 | S107: 2762836.257 | T107: 2806324.332 | U107: 2815257.533 | V107: 2730031.527 | W107: 2750085.861 | X107: 2877755.56 | Y107: 0 | Z107: 0 | AA107: 472481255.5 | AB107: 0 | AC107: 0 | AD107: 0 | AE107: 0 | AF107: 0 | AG107: 0 | AH107: 0 | AI107: 0 | AJ107: 0 | AK107: 0 | AL107: 0 | AM107: 0 | AN107: 0 | AO107: 0 | AP107: 0 | AQ107: 0 | AR107: 0 | AS107: 0 | AT107: 0 | AU107: 0 | AV107: 0 | AW107: 0 | AX107: 0 | AY107: 0 | AZ107: 0 | BA107: 0 | BB107: 0 | BC107: 0 | BD107: 0 | BE107: 0 | BF107: 0 | BG107: 0 | BH107: 0 | BI107: 0 | BJ107: 0 | BK107: 0 | BL107: 0 | BM107: 0 | BN107: 0 | BO107: 0 | BP107: 0 | BQ107: 0 | BR107: 0 | BS107: 0 | BT107: 0 | BU107: 0 | BV107: 0 | BW107: 0 | BX107: 0
B108: EPC Expendtitures | E108: =Assumptions!$G$22 -> PKR | G108: 0 | H108: 0 | I108: 0 | J108: 0 | K108: 0 | L108: 0 | M108: 0 | N108: 0 | O108: 0 | P108: 0 | Q108: 0 | R108: 0 | S108: 0 | T108: 0 | U108: 0 | V108: 0 | W108: =W87*W$30 -> 0 | X108: 0 | Y108: 0 | Z108: 0 | AA108: 1269910094 | AB108: 1279238631 | AC108: 1288635694 | AD108: 1298101787 | AE108: 1307637415 | AF108: 0 | AG108: 0 | AH108: 0 | AI108: 0 | AJ108: 0 | AK108: 0 | AL108: 0 | AM108: 0 | AN108: 0 | AO108: 0 | AP108: 0 | AQ108: 0 | AR108: 0 | AS108: 0 | AT108: 0 | AU108: 0 | AV108: 0 | AW108: 0 | AX108: 0 | AY108: 0 | AZ108: 0 | BA108: 0 | BB108: 0 | BC108: 0 | BD108: 0 | BE108: 0 | BF108: 0 | BG108: 0 | BH108: 0 | BI108: 0 | BJ108: 0 | BK108: 0 | BL108: 0 | BM108: 0 | BN108: 0 | BO108: 0 | BP108: 0 | BQ108: 0 | BR108: 0 | BS108: 0 | BT108: 0 | BU108: 0 | BV108: 0 | BW108: 0 | BX108: 0
B109: Interest During Construction | E109: =Assumptions!$G$22 -> PKR | G109: =IF(Local_Switch,G262,G88*G30) -> 0 | H109: 0 | I109: 0 | J109: 0 | K109: 0 | L109: 0 | M109: 0 | N109: 0 | O109: 0 | P109: 0 | Q109: 0 | R109: 0 | S109: 0 | T109: 0 | U109: 0 | V109: 0 | W109: 0 | X109: 0 | Y109: 0 | Z109: 0 | AA109: 2775903.921 | AB109: 8348103.068 | AC109: 13961234.61 | AD109: 19615599.24 | AE109: 25311499.85 | AF109: 0 | AG109: 0 | AH109: 0 | AI109: 0 | AJ109: 0 | AK109: 0 | AL109: 0 | AM109: =IF(Local_Switch,AM262,AM88*AM30) -> 0 | AN109: 0 | AO109: 0 | AP109: 0 | AQ109: 0 | AR109: 0 | AS109: 0 | AT109: 0 | AU109: 0 | AV109: 0 | AW109: 0 | AX109: 0 | AY109: 0 | AZ109: 0 | BA109: 0 | BB109: 0 | BC109: 0 | BD109: 0 | BE109: 0 | BF109: 0 | BG109: 0 | BH109: 0 | BI109: 0 | BJ109: 0 | BK109: 0 | BL109: 0 | BM109: 0 | BN109: 0 | BO109: 0 | BP109: 0 | BQ109: 0 | BR109: 0 | BS109: =IF(Local_Switch,BS262,BS88*BS30) -> 0 | BT109: 0 | BU109: 0 | BV109: 0 | BW109: 0 | BX109: 0
B110: Fees During Construction | E110: =Assumptions!$G$22 -> PKR | G110: =IF(Local_Switch,G265,G89*G$30) -> 0 | H110: 0 | I110: 0 | J110: 0 | K110: 0 | L110: 0 | M110: 0 | N110: 0 | O110: 0 | P110: 0 | Q110: 0 | R110: 0 | S110: 0 | T110: 0 | U110: 0 | V110: 0 | W110: 0 | X110: 0 | Y110: 0 | Z110: 0 | AA110: 75119659.04 | AB110: 0 | AC110: 0 | AD110: 0 | AE110: 0 | AF110: 0 | AG110: 0 | AH110: 0 | AI110: 0 | AJ110: 0 | AK110: 0 | AL110: 0 | AM110: =IF(Local_Switch,AM265,AM89*AM$30) -> 0 | AN110: 0 | AO110: 0 | AP110: 0 | AQ110: 0 | AR110: 0 | AS110: 0 | AT110: 0 | AU110: 0 | AV110: 0 | AW110: 0 | AX110: 0 | AY110: 0 | AZ110: 0 | BA110: 0 | BB110: 0 | BC110: 0 | BD110: 0 | BE110: 0 | BF110: 0 | BG110: 0 | BH110: 0 | BI110: 0 | BJ110: 0 | BK110: 0 | BL110: 0 | BM110: 0 | BN110: 0 | BO110: 0 | BP110: 0 | BQ110: 0 | BR110: 0 | BS110: =IF(Local_Switch,BS265,BS89*BS$30) -> 0 | BT110: 0 | BU110: 0 | BV110: 0 | BW110: 0 | BX110: 0
B111: DSRA Funding | E111: =Assumptions!$G$22 -> PKR | G111: =IF(Local_Switch,G275,G90*G$30) -> 0 | H111: 0 | I111: 0 | J111: 0 | K111: 0 | L111: 0 | M111: 0 | N111: 0 | O111: 0 | P111: 0 | Q111: 0 | R111: 0 | S111: 0 | T111: 0 | U111: 0 | V111: 0 | W111: 0 | X111: 0 | Y111: 0 | Z111: 0 | AA111: 0 | AB111: 0 | AC111: 0 | AD111: 0 | AE111: 197544549.2 | AF111: 0 | AG111: 0 | AH111: 0 | AI111: 0 | AJ111: 0 | AK111: 0 | AL111: 0 | AM111: =IF(Local_Switch,AM275,AM90*AM$30) -> 0 | AN111: 0 | AO111: 0 | AP111: 0 | AQ111: 0 | AR111: 0 | AS111: 0 | AT111: 0 | AU111: 0 | AV111: 0 | AW111: 0 | AX111: 0 | AY111: 0 | AZ111: 0 | BA111: 0 | BB111: 0 | BC111: 0 | BD111: 0 | BE111: 0 | BF111: 0 | BG111: 0 | BH111: 0 | BI111: 0 | BJ111: 0 | BK111: 0 | BL111: 0 | BM111: 0 | BN111: 0 | BO111: 0 | BP111: 0 | BQ111: 0 | BR111: 0 | BS111: =IF(Local_Switch,BS275,BS90*BS$30) -> 0 | BT111: 0 | BU111: 0 | BV111: 0 | BW111: 0 | BX111: 0
B112: 0 | C112: =C91 -> Total Funding Needs | E112: =Assumptions!$G$22 -> PKR | G112: 15668218.68 | H112: 2655335.578 | I112: 2717638.668 | J112: 2662156.243 | K112: 2627426.309 | L112: 2613916.259 | M112: 2555997.03 | N112: 2574772.937 | O112: 2593686.769 | P112: 2612739.538 | Q112: 2631932.265 | R112: 2879823.391 | S112: 2762836.257 | T112: 2806324.332 | U112: 2815257.533 | V112: 2730031.527 | W112: 2750085.861 | X112: 2877755.56 | Y112: 0 | Z112: 0 | AA112: 1820286912 | AB112: 1287586734 | AC112: 1302596929 | AD112: 1317717386 | AE112: 1530493464 | AF112: 0 | AG112: 0 | AH112: 0 | AI112: 0 | AJ112: 0 | AK112: 0 | AL112: 0 | AM112: 0 | AN112: 0 | AO112: 0 | AP112: 0 | AQ112: 0 | AR112: 0 | AS112: 0 | AT112: 0 | AU112: 0 | AV112: 0 | AW112: 0 | AX112: 0 | AY112: 0 | AZ112: 0 | BA112: 0 | BB112: 0 | BC112: 0 | BD112: 0 | BE112: 0 | BF112: 0 | BG112: 0 | BH112: 0 | BI112: 0 | BJ112: =BJ91*BJ$30 -> 0 | BK112: 0 | BL112: 0 | BM112: 0 | BN112: 0 | BO112: 0 | BP112: 0 | BQ112: 0 | BR112: 0 | BS112: 0 | BT112: 0 | BU112: 0 | BV112: 0 | BW112: 0 | BX112: 0
B113: 0
B114: Debt Draw Percent | G114: =G94/SUM(94:94) -> 0 | H114: =H94/SUM(94:94) -> 0 | I114: =I94/SUM(94:94) -> 0 | J114: =J94/SUM(94:94) -> 0 | K114: =K94/SUM(94:94) -> 0 | L114: =L94/SUM(94:94) -> 0 | M114: =M94/SUM(94:94) -> 0 | N114: =N94/SUM(94:94) -> 0 | O114: =O94/SUM(94:94) -> 0 | P114: =P94/SUM(94:94) -> 0 | Q114: =Q94/SUM(94:94) -> 0 | R114: =R94/SUM(94:94) -> 0 | S114: =S94/SUM(94:94) -> 0 | T114: =T94/SUM(94:94) -> 0 | U114: =U94/SUM(94:94) -> 0 | V114: =V94/SUM(94:94) -> 0 | W114: =W94/SUM(94:94) -> 0 | X114: =X94/SUM(94:94) -> 0 | Y114: =Y94/SUM(94:94) -> 0 | Z114: =Z94/SUM(94:94) -> 0 | AA114: =AA94/SUM(94:94) -> 0.2627381229 | AB114: =AB94/SUM(94:94) -> 0.1843154693 | AC114: =AC94/SUM(94:94) -> 0.1843154693 | AD114: =AD94/SUM(94:94) -> 0.1843154693 | AE114: =AE94/SUM(94:94) -> 0.1843154693 | AF114: =AF94/SUM(94:94) -> 0 | AG114: =AG94/SUM(94:94) -> 0 | AH114: =AH94/SUM(94:94) -> 0 | AI114: =AI94/SUM(94:94) -> 0 | AJ114: =AJ94/SUM(94:94) -> 0 | AK114: =AK94/SUM(94:94) -> 0 | AL114: =AL94/SUM(94:94) -> 0 | AM114: =AM94/SUM(94:94) -> 0 | AN114: =AN94/SUM(94:94) -> 0 | AO114: =AO94/SUM(94:94) -> 0 | AP114: =AP94/SUM(94:94) -> 0 | AQ114: =AQ94/SUM(94:94) -> 0 | AR114: =AR94/SUM(94:94) -> 0 | AS114: =AS94/SUM(94:94) -> 0 | AT114: =AT94/SUM(94:94) -> 0 | AU114: =AU94/SUM(94:94) -> 0 | AV114: =AV94/SUM(94:94) -> 0 | AW114: =AW94/SUM(94:94) -> 0 | AX114: =AX94/SUM(94:94) -> 0 | AY114: =AY94/SUM(94:94) -> 0 | AZ114: =AZ94/SUM(94:94) -> 0 | BA114: =BA94/SUM(94:94) -> 0 | BB114: =BB94/SUM(94:94) -> 0 | BC114: =BC94/SUM(94:94) -> 0 | BD114: =BD94/SUM(94:94) -> 0 | BE114: =BE94/SUM(94:94) -> 0 | BF114: =BF94/SUM(94:94) -> 0 | BG114: =BG94/SUM(94:94) -> 0 | BH114: =BH94/SUM(94:94) -> 0 | BI114: =BI94/SUM(94:94) -> 0 | BJ114: =BJ94/SUM(94:94) -> 0 | BK114: =BK94/SUM(94:94) -> 0 | BL114: =BL94/SUM(94:94) -> 0 | BM114: =BM94/SUM(94:94) -> 0 | BN114: =BN94/SUM(94:94) -> 0 | BO114: =BO94/SUM(94:94) -> 0 | BP114: =BP94/SUM(94:94) -> 0 | BQ114: =BQ94/SUM(94:94) -> 0 | BR114: =BR94/SUM(94:94) -> 0 | BS114: =BS94/SUM(94:94) -> 0 | BT114: =BT94/SUM(94:94) -> 0 | BU114: =BU94/SUM(94:94) -> 0 | BV114: =BV94/SUM(94:94) -> 0 | BW114: =BW94/SUM(94:94) -> 0 | BX114: =BX94/SUM(94:94) -> 0
B115: Local Debt Switch | E115: =Assumptions!G144 -> TRUE
A117: Sources of Funds - Foreign (For foreign debt)
B118: Developer 1 Contribution of Costs | E118: =Assumptions!$G$23 -> USD | G118: =G78+G79 -> 25200 | H118: 24000 | I118: 24400 | J118: 23700 | K118: 23200 | L118: 23900 | M118: 23200 | N118: 23200 | O118: 23200 | P118: 23200 | Q118: 23200 | R118: 25200 | S118: 24000 | T118: 24200 | U118: 24100 | V118: 23200 | W118: 23200 | X118: 24100 | Y118: 0 | Z118: 0 | AA118: 0 | AB118: 0 | AC118: 0 | AD118: 0 | AE118: 0 | AF118: 0 | AG118: 0 | AH118: 0 | AI118: 0 | AJ118: 0 | AK118: 0 | AL118: 0 | AM118: =AM78+AM79 -> 0 | AN118: 0 | AO118: 0 | AP118: 0 | AQ118: 0 | AR118: 0 | AS118: 0 | AT118: 0 | AU118: 0 | AV118: 0 | AW118: 0 | AX118: 0 | AY118: 0 | AZ118: 0 | BA118: 0 | BB118: 0 | BC118: 0 | BD118: 0 | BE118: 0 | BF118: 0 | BG118: 0 | BH118: 0 | BI118: 0 | BJ118: 0 | BK118: 0 | BL118: 0 | BM118: 0 | BN118: 0 | BO118: 0 | BP118: 0 | BQ118: 0 | BR118: 0 | BS118: =BS78+BS79 -> 0 | BT118: 0 | BU118: 0 | BV118: 0 | BW118: 0 | BX118: 0
B119: Developer 2 Contribution of Costs | E119: =Assumptions!$G$23 -> USD | G119: =G80+G81 -> 122400 | H119: 0 | I119: 0 | J119: 0 | K119: 0 | L119: 0 | M119: 0 | N119: 0 | O119: 0 | P119: 0 | Q119: 0 | R119: 0 | S119: 0 | T119: 0 | U119: 0 | V119: 0 | W119: 0 | X119: 0 | Y119: 0 | Z119: 0 | AA119: 0 | AB119: 0 | AC119: 0 | AD119: 0 | AE119: 0 | AF119: 0 | AG119: 0 | AH119: 0 | AI119: 0 | AJ119: 0 | AK119: 0 | AL119: 0 | AM119: =AM80+AM81 -> 0 | AN119: 0 | AO119: 0 | AP119: 0 | AQ119: 0 | AR119: 0 | AS119: 0 | AT119: 0 | AU119: 0 | AV119: 0 | AW119: 0 | AX119: 0 | AY119: 0 | AZ119: 0 | BA119: 0 | BB119: 0 | BC119: 0 | BD119: 0 | BE119: 0 | BF119: 0 | BG119: 0 | BH119: 0 | BI119: 0 | BJ119: 0 | BK119: 0 | BL119: 0 | BM119: 0 | BN119: 0 | BO119: 0 | BP119: 0 | BQ119: 0 | BR119: 0 | BS119: =BS80+BS81 -> 0 | BT119: 0 | BU119: 0 | BV119: 0 | BW119: 0 | BX119: 0
B120: Developer 1 Contribution of Fees | E120: =Assumptions!$G$23 -> USD | F120: =Assumptions!J67 -> 2998800 | G120: =$F120*G$16 -> 0 | H120: =$F120*H$16 -> 0 | I120: 0 | J120: 0 | K120: 0 | L120: 0 | M120: 0 | N120: 0 | O120: 0 | P120: 0 | Q120: 0 | R120: 0 | S120: 0 | T120: 0 | U120: 0 | V120: 0 | W120: 0 | X120: 0 | Y120: 0 | Z120: 0 | AA120: 2998800 | AB120: 0 | AC120: 0 | AD120: 0 | AE120: 0 | AF120: 0 | AG120: 0 | AH120: 0 | AI120: 0 | AJ120: 0 | AK120: 0 | AL120: 0 | AM120: 0 | AN120: 0 | AO120: 0 | AP120: 0 | AQ120: 0 | AR120: 0 | AS120: 0 | AT120: 0 | AU120: 0 | AV120: 0 | AW120: 0 | AX120: 0 | AY120: 0 | AZ120: 0 | BA120: 0 | BB120: 0 | BC120: 0 | BD120: 0 | BE120: 0 | BF120: 0 | BG120: 0 | BH120: 0 | BI120: 0 | BJ120: 0 | BK120: 0 | BL120: 0 | BM120: 0 | BN120: 0 | BO120: 0 | BP120: 0 | BQ120: 0 | BR120: 0 | BS120: 0 | BT120: =$F120*BT$16 -> 0 | BU120: 0 | BV120: 0 | BW120: 0 | BX120: 0
B121: Developer 2 Contribution of Fees | E121: =Assumptions!$G$23 -> USD | F121: =Assumptions!J74 -> 612000 | G121: =$F121*G$16 -> 0 | H121: 0 | I121: 0 | J121: 0 | K121: 0 | L121: 0 | M121: 0 | N121: 0 | O121: 0 | P121: 0 | Q121: 0 | R121: 0 | S121: 0 | T121: 0 | U121: 0 | V121: 0 | W121: 0 | X121: 0 | Y121: 0 | Z121: 0 | AA121: 612000 | AB121: 0 | AC121: 0 | AD121: 0 | AE121: 0 | AF121: 0 | AG121: 0 | AH121: 0 | AI121: 0 | AJ121: 0 | AK121: 0 | AL121: 0 | AM121: 0 | AN121: 0 | AO121: 0 | AP121: 0 | AQ121: 0 | AR121: 0 | AS121: 0 | AT121: 0 | AU121: 0 | AV121: 0 | AW121: 0 | AX121: 0 | AY121: 0 | AZ121: 0 | BA121: 0 | BB121: 0 | BC121: 0 | BD121: 0 | BE121: 0 | BF121: 0 | BG121: 0 | BH121: 0 | BI121: 0 | BJ121: 0 | BK121: 0 | BL121: 0 | BM121: 0 | BN121: 0 | BO121: 0 | BP121: 0 | BQ121: 0 | BR121: 0 | BS121: 0 | BT121: 0 | BU121: 0 | BV121: 0 | BW121: 0 | BX121: 0
B122: EPC Contribution | E122: =Assumptions!G8 -> 5 | F122: =Assumptions!G101 -> 3853333.333 | G122: =$F122/$E122*G9 -> 0 | H122: 0 | I122: 0 | J122: 0 | K122: 0 | L122: 0 | M122: 0 | N122: 0 | O122: 0 | P122: 0 | Q122: 0 | R122: 0 | S122: 0 | T122: 0 | U122: 0 | V122: 0 | W122: 0 | X122: 0 | Y122: 0 | Z122: 0 | AA122: 770666.6667 | AB122: 770666.6667 | AC122: 770666.6667 | AD122: 770666.6667 | AE122: 770666.6667 | AF122: 0 | AG122: 0 | AH122: 0 | AI122: 0 | AJ122: 0 | AK122: 0 | AL122: 0 | AM122: =$F122/$E122*AM9 -> 0 | AN122: 0 | AO122: 0 | AP122: 0 | AQ122: 0 | AR122: 0 | AS122: 0 | AT122: 0 | AU122: 0 | AV122: 0 | AW122: 0 | AX122: 0 | AY122: 0 | AZ122: 0 | BA122: 0 | BB122: 0 | BC122: 0 | BD122: 0 | BE122: 0 | BF122: 0 | BG122: 0 | BH122: 0 | BI122: 0 | BJ122: 0 | BK122: 0 | BL122: 0 | BM122: 0 | BN122: 0 | BO122: 0 | BP122: 0 | BQ122: 0 | BR122: 0 | BS122: =$F122/$E122*BS9 -> 0 | BT122: 0 | BU122: 0 | BV122: 0 | BW122: 0 | BX122: 0
B123: Debt Draws | E123: =Assumptions!$G$23 -> USD | F123: =F166 -> 30322886.15 | G123: =IF($E$115,G140/G30,$F$123*G114) -> 0 | H123: =IF($E$115,H140/H30,$F$123*H114) -> 0 | I123: 0 | J123: 0 | K123: 0 | L123: 0 | M123: 0 | N123: 0 | O123: 0 | P123: 0 | Q123: 0 | R123: 0 | S123: 0 | T123: 0 | U123: 0 | V123: 0 | W123: 0 | X123: 0 | Y123: 0 | Z123: 0 | AA123: 6064577.23 | AB123: 6064577.23 | AC123: 6064577.23 | AD123: 6064577.23 | AE123: 6064577.23 | AF123: 0 | AG123: 0 | AH123: 0 | AI123: 0 | AJ123: 0 | AK123: 0 | AL123: 0 | AM123: 0 | AN123: 0 | AO123: 0 | AP123: 0 | AQ123: 0 | AR123: 0 | AS123: 0 | AT123: 0 | AU123: 0 | AV123: 0 | AW123: 0 | AX123: 0 | AY123: 0 | AZ123: 0 | BA123: 0 | BB123: 0 | BC123: 0 | BD123: 0 | BE123: 0 | BF123: 0 | BG123: 0 | BH123: 0 | BI123: 0 | BJ123: 0 | BK123: 0 | BL123: 0 | BM123: 0 | BN123: 0 | BO123: 0 | BP123: 0 | BQ123: 0 | BR123: 0 | BS123: 0 | BT123: =IF($E$115,BT140/BT30,$F$123*BT114) -> 0 | BU123: 0 | BV123: 0 | BW123: 0 | BX123: 0
B124: Remaining Funding by Sponsor | E124: =Assumptions!$G$23 -> USD | G124: =G91-SUM(G118:G123) -> 1000 | H124: 1000 | I124: 1000 | J124: 1000 | K124: 1000 | L124: 0 | M124: 0 | N124: 0 | O124: 0 | P124: 0 | Q124: 0 | R124: 0 | S124: 0 | T124: 0 | U124: 0 | V124: 0 | W124: 0 | X124: 0 | Y124: 0 | Z124: 0 | AA124: 4467031.547 | AB124: 3636650.914 | AC124: 3681474.295 | AD124: 3725970.812 | AE124: 5341873.259 | AF124: 0 | AG124: 0 | AH124: 0 | AI124: 0 | AJ124: 0 | AK124: 0 | AL124: 0 | AM124: =AM91-SUM(AM118:AM123) -> 0 | AN124: 0 | AO124: 0 | AP124: 0 | AQ124: 0 | AR124: 0 | AS124: 0 | AT124: 0 | AU124: 0 | AV124: 0 | AW124: 0 | AX124: 0 | AY124: 0 | AZ124: 0 | BA124: 0 | BB124: 0 | BC124: 0 | BD124: 0 | BE124: 0 | BF124: 0 | BG124: 0 | BH124: 0 | BI124: 0 | BJ124: 0 | BK124: 0 | BL124: 0 | BM124: 0 | BN124: 0 | BO124: 0 | BP124: 0 | BQ124: 0 | BR124: 0 | BS124: =BS91-SUM(BS118:BS123) -> 0 | BT124: 0 | BU124: 0 | BV124: 0 | BW124: 0 | BX124: 0
C125: Total Funding Sources | E125: =Assumptions!$G$23 -> USD | G125: =SUM(G118:G124) -> 148600 | H125: =SUM(H118:H124) -> 25000 | I125: 25400 | J125: 24700 | K125: 24200 | L125: 23900 | M125: 23200 | N125: 23200 | O125: 23200 | P125: 23200 | Q125: 23200 | R125: 25200 | S125: 24000 | T125: 24200 | U125: 24100 | V125: 23200 | W125: 23200 | X125: 24100 | Y125: 0 | Z125: 0 | AA125: 14913075.44 | AB125: 10471894.81 | AC125: 10516718.19 | AD125: 10561214.71 | AE125: 12177117.16 | AF125: 0 | AG125: 0 | AH125: 0 | AI125: 0 | AJ125: 0 | AK125: 0 | AL125: 0 | AM125: 0 | AN125: 0 | AO125: 0 | AP125: 0 | AQ125: 0 | AR125: 0 | AS125: 0 | AT125: 0 | AU125: 0 | AV125: 0 | AW125: 0 | AX125: 0 | AY125: 0 | AZ125: 0 | BA125: 0 | BB125: 0 | BC125: 0 | BD125: 0 | BE125: 0 | BF125: 0 | BG125: 0 | BH125: 0 | BI125: 0 | BJ125: 0 | BK125: 0 | BL125: 0 | BM125: 0 | BN125: 0 | BO125: 0 | BP125: 0 | BQ125: 0 | BR125: 0 | BS125: 0 | BT125: =SUM(BT118:BT124) -> 0 | BU125: 0 | BV125: 0 | BW125: 0 | BX125: 0
B127: Cash Equity Contribution Total | E127: =Assumptions!$G$23 -> USD | G127: =G118+G119+G122+G124-G82-G83+G120+G121 -> 148600 | H127: 25000 | I127: 25400 | J127: 24700 | K127: 24200 | L127: 23900 | M127: 23200 | N127: 23200 | O127: 23200 | P127: 23200 | Q127: 23200 | R127: 25200 | S127: 24000 | T127: 24200 | U127: 24100 | V127: 23200 | W127: 23200 | X127: 24100 | Y127: 0 | Z127: 0 | AA127: 5237698.213 | AB127: 4407317.58 | AC127: 4452140.961 | AD127: 4496637.479 | AE127: 6112539.925 | AF127: 0 | AG127: 0 | AH127: 0 | AI127: 0 | AJ127: 0 | AK127: 0 | AL127: 0 | AM127: =AM118+AM119+AM122+AM124-AM82-AM83+AM120+AM121 -> 0 | AN127: 0 | AO127: 0 | AP127: 0 | AQ127: 0 | AR127: 0 | AS127: 0 | AT127: 0 | AU127: 0 | AV127: 0 | AW127: 0 | AX127: 0 | AY127: 0 | AZ127: 0 | BA127: 0 | BB127: 0 | BC127: 0 | BD127: 0 | BE127: 0 | BF127: 0 | BG127: 0 | BH127: 0 | BI127: 0 | BJ127: 0 | BK127: 0 | BL127: 0 | BM127: 0 | BN127: 0 | BO127: 0 | BP127: 0 | BQ127: 0 | BR127: 0 | BS127: =BS118+BS119+BS122+BS124-BS82-BS83+BS120+BS121 -> 0 | BT127: 0 | BU127: 0 | BV127: 0 | BW127: 0 | BX127: 0
B128: Total Equity Contribution Including Development Fees | E128: =Assumptions!$G$23 -> USD | G128: =G118+G119+G120+G121+G122+G124 -> 148600 | H128: =H118+H119+H120+H121+H122+H124 -> 25000 | I128: 25400 | J128: 24700 | K128: 24200 | L128: 23900 | M128: 23200 | N128: 23200 | O128: 23200 | P128: 23200 | Q128: 23200 | R128: 25200 | S128: 24000 | T128: 24200 | U128: 24100 | V128: 23200 | W128: 23200 | X128: 24100 | Y128: 0 | Z128: 0 | AA128: 8848498.213 | AB128: 4407317.58 | AC128: 4452140.961 | AD128: 4496637.479 | AE128: 6112539.925 | AF128: 0 | AG128: 0 | AH128: 0 | AI128: 0 | AJ128: 0 | AK128: 0 | AL128: 0 | AM128: 0 | AN128: 0 | AO128: 0 | AP128: 0 | AQ128: 0 | AR128: 0 | AS128: 0 | AT128: 0 | AU128: 0 | AV128: 0 | AW128: 0 | AX128: 0 | AY128: 0 | AZ128: 0 | BA128: 0 | BB128: 0 | BC128: 0 | BD128: 0 | BE128: 0 | BF128: 0 | BG128: 0 | BH128: 0 | BI128: 0 | BJ128: 0 | BK128: 0 | BL128: 0 | BM128: 0 | BN128: 0 | BO128: 0 | BP128: 0 | BQ128: 0 | BR128: 0 | BS128: 0 | BT128: =BT118+BT119+BT120+BT121+BT122+BT124 -> 0 | BU128: 0 | BV128: 0 | BW128: 0 | BX128: 0
B129: Total Funding Less Development Fee and Debt | E129: =Assumptions!$G$23 -> USD | G129: =G91-G82-G83-G123 -> 148600 | H129: 25000 | I129: 25400 | J129: 24700 | K129: 24200 | L129: 23900 | M129: 23200 | N129: 23200 | O129: 23200 | P129: 23200 | Q129: 23200 | R129: 25200 | S129: 24000 | T129: 24200 | U129: 24100 | V129: 23200 | W129: 23200 | X129: 24100 | Y129: 0 | Z129: 0 | AA129: 5237698.213 | AB129: 4407317.58 | AC129: 4452140.961 | AD129: 4496637.479 | AE129: 6112539.925 | AF129: 0 | AG129: 0 | AH129: 0 | AI129: 0 | AJ129: 0 | AK129: 0 | AL129: 0 | AM129: =AM91-AM82-AM83-AM123 -> 0 | AN129: 0 | AO129: 0 | AP129: 0 | AQ129: 0 | AR129: 0 | AS129: 0 | AT129: 0 | AU129: 0 | AV129: 0 | AW129: 0 | AX129: 0 | AY129: 0 | AZ129: 0 | BA129: 0 | BB129: 0 | BC129: 0 | BD129: 0 | BE129: 0 | BF129: 0 | BG129: 0 | BH129: 0 | BI129: 0 | BJ129: 0 | BK129: 0 | BL129: 0 | BM129: 0 | BN129: 0 | BO129: 0 | BP129: 0 | BQ129: 0 | BR129: 0 | BS129: =BS91-BS82-BS83-BS123 -> 0 | BT129: 0 | BU129: 0 | BV129: 0 | BW129: 0 | BX129: 0
AA130: =AA127-AA129 -> 0
B131: Debt Draw Percent - Local Currency | G131: =G108/SUM(108:108) -> 0 | H131: =H108/SUM(108:108) -> 0 | I131: 0 | J131: 0 | K131: 0 | L131: 0 | M131: 0 | N131: 0 | O131: 0 | P131: 0 | Q131: 0 | R131: 0 | S131: 0 | T131: 0 | U131: 0 | V131: 0 | W131: 0 | X131: 0 | Y131: 0 | Z131: 0 | AA131: 0.1970831751 | AB131: 0.1985309136 | AC131: 0.1999892869 | AD131: 0.2014583732 | AE131: 0.2029382512 | AF131: 0 | AG131: 0 | AH131: 0 | AI131: 0 | AJ131: 0 | AK131: 0 | AL131: 0 | AM131: 0 | AN131: 0 | AO131: 0 | AP131: 0 | AQ131: 0 | AR131: 0 | AS131: 0 | AT131: 0 | AU131: 0 | AV131: 0 | AW131: 0 | AX131: 0 | AY131: 0 | AZ131: 0 | BA131: 0 | BB131: 0 | BC131: 0 | BD131: 0 | BE131: 0 | BF131: 0 | BG131: 0 | BH131: 0 | BI131: 0 | BJ131: 0 | BK131: 0 | BL131: 0 | BM131: 0 | BN131: 0 | BO131: 0 | BP131: 0 | BQ131: 0 | BR131: 0 | BS131: 0 | BT131: =BT108/SUM(108:108) -> 0 | BU131: 0 | BV131: 0 | BW131: 0 | BX131: 0
B132: Local Currency Debt Switch | E132: =Assumptions!G144 -> TRUE
A134: Sources of Funds - Local (For Local Debt Issuance)
B135: Developer 1 Contribution of Costs | E135: =Assumptions!$G$22 -> PKR | G135: =G118*G$30 -> 2657059.965 | H135: 2549122.155 | I135: 2610645.02 | J135: 2554376.638 | K135: 2518854.974 | L135: 2613916.259 | M135: 2555997.03 | N135: 2574772.937 | O135: 2593686.769 | P135: 2612739.538 | Q135: 2631932.265 | R135: 2879823.391 | S135: 2762836.257 | T135: 2806324.332 | U135: 2815257.533 | V135: 2730031.527 | W135: 2750085.861 | X135: 2877755.56 | Y135: 0 | Z135: 0 | AA135: 0 | AB135: 0 | AC135: 0 | AD135: 0 | AE135: 0 | AF135: 0 | AG135: 0 | AH135: 0 | AI135: 0 | AJ135: 0 | AK135: 0 | AL135: 0 | AM135: =AM118*AM$30 -> 0 | AN135: 0 | AO135: 0 | AP135: 0 | AQ135: 0 | AR135: 0 | AS135: 0 | AT135: 0 | AU135: 0 | AV135: 0 | AW135: 0 | AX135: 0 | AY135: 0 | AZ135: 0 | BA135: 0 | BB135: 0 | BC135: 0 | BD135: 0 | BE135: 0 | BF135: 0 | BG135: 0 | BH135: 0 | BI135: 0 | BJ135: 0 | BK135: 0 | BL135: 0 | BM135: 0 | BN135: 0 | BO135: 0 | BP135: 0 | BQ135: 0 | BR135: 0 | BS135: =BS118*BS$30 -> 0 | BT135: 0 | BU135: 0 | BV135: 0 | BW135: 0 | BX135: 0
B136: Developer 2 Contribution of Costs | E136: =Assumptions!$G$22 -> PKR | G136: =G119*G$30 -> 12905719.83 | H136: 0 | I136: 0 | J136: 0 | K136: 0 | L136: 0 | M136: 0 | N136: 0 | O136: 0 | P136: 0 | Q136: 0 | R136: 0 | S136: 0 | T136: 0 | U136: 0 | V136: 0 | W136: 0 | X136: 0 | Y136: 0 | Z136: 0 | AA136: 0 | AB136: 0 | AC136: 0 | AD136: 0 | AE136: 0 | AF136: 0 | AG136: 0 | AH136: 0 | AI136: 0 | AJ136: 0 | AK136: 0 | AL136: 0 | AM136: =AM119*AM$30 -> 0 | AN136: 0 | AO136: 0 | AP136: 0 | AQ136: 0 | AR136: 0 | AS136: 0 | AT136: 0 | AU136: 0 | AV136: 0 | AW136: 0 | AX136: 0 | AY136: 0 | AZ136: 0 | BA136: 0 | BB136: 0 | BC136: 0 | BD136: 0 | BE136: 0 | BF136: 0 | BG136: 0 | BH136: 0 | BI136: 0 | BJ136: 0 | BK136: 0 | BL136: 0 | BM136: 0 | BN136: 0 | BO136: 0 | BP136: 0 | BQ136: 0 | BR136: 0 | BS136: =BS119*BS$30 -> 0 | BT136: 0 | BU136: 0 | BV136: 0 | BW136: 0 | BX136: 0
B137: Developer 1 Contribution of Fees | E137: =Assumptions!$G$22 -> PKR | G137: =G120*G$30 -> 0 | H137: 0 | I137: 0 | J137: 0 | K137: 0 | L137: 0 | M137: 0 | N137: 0 | O137: 0 | P137: 0 | Q137: 0 | R137: 0 | S137: 0 | T137: 0 | U137: 0 | V137: 0 | W137: 0 | X137: 0 | Y137: 0 | Z137: 0 | AA137: 366032909.4 | AB137: 0 | AC137: 0 | AD137: 0 | AE137: 0 | AF137: 0 | AG137: 0 | AH137: 0 | AI137: 0 | AJ137: 0 | AK137: 0 | AL137: 0 | AM137: =AM120*AM$30 -> 0 | AN137: 0 | AO137: 0 | AP137: 0 | AQ137: 0 | AR137: 0 | AS137: 0 | AT137: 0 | AU137: 0 | AV137: 0 | AW137: 0 | AX137: 0 | AY137: 0 | AZ137: 0 | BA137: 0 | BB137: 0 | BC137: 0 | BD137: 0 | BE137: 0 | BF137: 0 | BG137: 0 | BH137: 0 | BI137: 0 | BJ137: 0 | BK137: 0 | BL137: 0 | BM137: 0 | BN137: 0 | BO137: 0 | BP137: 0 | BQ137: 0 | BR137: 0 | BS137: =BS120*BS$30 -> 0 | BT137: 0 | BU137: 0 | BV137: 0 | BW137: 0 | BX137: 0
B138: Developer 2 Contribution of Fees | E138: =Assumptions!$G$22 -> PKR | G138: =G121*G$30 -> 0 | H138: 0 | I138: 0 | J138: 0 | K138: 0 | L138: 0 | M138: 0 | N138: 0 | O138: 0 | P138: 0 | Q138: 0 | R138: 0 | S138: 0 | T138: 0 | U138: 0 | V138: 0 | W138: 0 | X138: 0 | Y138: 0 | Z138: 0 | AA138: 74700593.75 | AB138: 0 | AC138: 0 | AD138: 0 | AE138: 0 | AF138: 0 | AG138: 0 | AH138: 0 | AI138: 0 | AJ138: 0 | AK138: 0 | AL138: 0 | AM138: =AM121*AM$30 -> 0 | AN138: 0 | AO138: 0 | AP138: 0 | AQ138: 0 | AR138: 0 | AS138: 0 | AT138: 0 | AU138: 0 | AV138: 0 | AW138: 0 | AX138: 0 | AY138: 0 | AZ138: 0 | BA138: 0 | BB138: 0 | BC138: 0 | BD138: 0 | BE138: 0 | BF138: 0 | BG138: 0 | BH138: 0 | BI138: 0 | BJ138: 0 | BK138: 0 | BL138: 0 | BM138: 0 | BN138: 0 | BO138: 0 | BP138: 0 | BQ138: 0 | BR138: 0 | BS138: =BS121*BS$30 -> 0 | BT138: 0 | BU138: 0 | BV138: 0 | BW138: 0 | BX138: 0
B139: EPC Contribution | E139: =Assumptions!$G$22 -> PKR | G139: =G122*G$30 -> 0 | H139: 0 | I139: 0 | J139: 0 | K139: 0 | L139: 0 | M139: 0 | N139: 0 | O139: 0 | P139: 0 | Q139: 0 | R139: 0 | S139: 0 | T139: 0 | U139: 0 | V139: 0 | W139: 0 | X139: 0 | Y139: 0 | Z139: 0 | AA139: 94067414.35 | AB139: 94758417.12 | AC139: 95454495.87 | AD139: 96155687.89 | AE139: 96862030.75 | AF139: 0 | AG139: 0 | AH139: 0 | AI139: 0 | AJ139: 0 | AK139: 0 | AL139: 0 | AM139: =AM122*AM$30 -> 0 | AN139: 0 | AO139: 0 | AP139: 0 | AQ139: 0 | AR139: 0 | AS139: 0 | AT139: 0 | AU139: 0 | AV139: 0 | AW139: 0 | AX139: 0 | AY139: 0 | AZ139: 0 | BA139: 0 | BB139: 0 | BC139: 0 | BD139: 0 | BE139: 0 | BF139: 0 | BG139: 0 | BH139: 0 | BI139: 0 | BJ139: 0 | BK139: 0 | BL139: 0 | BM139: 0 | BN139: 0 | BO139: =BO122*BO$30 -> 0 | BP139: 0 | BQ139: 0 | BR139: 0 | BS139: 0 | BT139: 0 | BU139: 0 | BV139: 0 | BW139: 0 | BX139: 0
B140: Debt Draws | E140: =Assumptions!$G$22 -> PKR | F140: =G166 -> 3755982952 | G140: =IF($E$132,$F$140*G131,G123*G30) -> 0 | H140: =IF($E$132,$F$140*H131,H123*H30) -> 0 | I140: 0 | J140: 0 | K140: 0 | L140: 0 | M140: 0 | N140: 0 | O140: 0 | P140: 0 | Q140: 0 | R140: 0 | S140: 0 | T140: 0 | U140: 0 | V140: 0 | W140: 0 | X140: 0 | Y140: 0 | Z140: 0 | AA140: 740241045.6 | AB140: 745678726.8 | AC140: 751156352.3 | AD140: 756674215.4 | AE140: 762232611.8 | AF140: 0 | AG140: 0 | AH140: 0 | AI140: 0 | AJ140: 0 | AK140: 0 | AL140: 0 | AM140: 0 | AN140: 0 | AO140: 0 | AP140: 0 | AQ140: 0 | AR140: 0 | AS140: 0 | AT140: 0 | AU140: 0 | AV140: 0 | AW140: 0 | AX140: 0 | AY140: 0 | AZ140: 0 | BA140: 0 | BB140: 0 | BC140: 0 | BD140: 0 | BE140: 0 | BF140: 0 | BG140: 0 | BH140: 0 | BI140: 0 | BJ140: 0 | BK140: 0 | BL140: 0 | BM140: 0 | BN140: 0 | BO140: 0 | BP140: 0 | BQ140: 0 | BR140: 0 | BS140: 0 | BT140: =IF($E$132,$F$140*BT131,BT123*BT30) -> 0 | BU140: 0 | BV140: 0 | BW140: 0 | BX140: 0
B141: Remaining Funding by Sponsor | E141: =Assumptions!$G$22 -> PKR | G141: =G124*G$30 -> 105438.8875 | H141: 106213.4231 | I141: 106993.6483 | J141: 107779.605 | K141: 108571.3351 | L141: 0 | M141: 0 | N141: 0 | O141: 0 | P141: 0 | Q141: 0 | R141: 0 | S141: 0 | T141: 0 | U141: 0 | V141: 0 | W141: 0 | X141: 0 | Y141: 0 | Z141: 0 | AA141: 545244949.1 | AB141: 447149590.2 | AC141: 455986080.7 | AD141: 464887482.5 | AE141: 671398821.6 | AF141: 0 | AG141: 0 | AH141: 0 | AI141: 0 | AJ141: 0 | AK141: 0 | AL141: 0 | AM141: =AM124*AM$30 -> 0 | AN141: 0 | AO141: 0 | AP141: 0 | AQ141: 0 | AR141: 0 | AS141: 0 | AT141: 0 | AU141: 0 | AV141: 0 | AW141: 0 | AX141: 0 | AY141: 0 | AZ141: 0 | BA141: 0 | BB141: 0 | BC141: 0 | BD141: 0 | BE141: 0 | BF141: 0 | BG141: 0 | BH141: 0 | BI141: 0 | BJ141: 0 | BK141: 0 | BL141: 0 | BM141: 0 | BN141: 0 | BO141: 0 | BP141: 0 | BQ141: 0 | BR141: 0 | BS141: =BS124*BS$30 -> 0 | BT141: 0 | BU141: 0 | BV141: 0 | BW141: 0 | BX141: 0
C142: Total Funding Sources | E142: =Assumptions!$G$22 -> PKR | G142: =G125*G$30 -> 15668218.68 | H142: 2655335.578 | I142: 2717638.668 | J142: 2662156.243 | K142: 2627426.309 | L142: 2613916.259 | M142: 2555997.03 | N142: 2574772.937 | O142: 2593686.769 | P142: 2612739.538 | Q142: 2631932.265 | R142: 2879823.391 | S142: 2762836.257 | T142: 2806324.332 | U142: 2815257.533 | V142: 2730031.527 | W142: 2750085.861 | X142: 2877755.56 | Y142: 0 | Z142: 0 | AA142: 1820286912 | AB142: 1287586734 | AC142: 1302596929 | AD142: 1317717386 | AE142: 1530493464 | AF142: 0 | AG142: 0 | AH142: 0 | AI142: 0 | AJ142: 0 | AK142: 0 | AL142: 0 | AM142: =AM125*AM$30 -> 0 | AN142: 0 | AO142: 0 | AP142: 0 | AQ142: 0 | AR142: 0 | AS142: 0 | AT142: 0 | AU142: 0 | AV142: 0 | AW142: 0 | AX142: 0 | AY142: 0 | AZ142: 0 | BA142: 0 | BB142: 0 | BC142: 0 | BD142: 0 | BE142: 0 | BF142: 0 | BG142: 0 | BH142: 0 | BI142: 0 | BJ142: 0 | BK142: 0 | BL142: 0 | BM142: 0 | BN142: 0 | BO142: 0 | BP142: 0 | BQ142: 0 | BR142: 0 | BS142: =BS125*BS$30 -> 0 | BT142: 0 | BU142: 0 | BV142: 0 | BW142: 0 | BX142: 0
A144: Summary Sources and Uses of Funds in Local and Foreign Currency
B145: Uses of Funds | F145: =Assumptions!G23 -> USD | G145: =Assumptions!G22 -> PKR
C146: Partner 1 Expenditures | F146: =SUM(G78:BX78) -> 10800 | G146: =SUM(G99:BX99) -> 1203906.829
C147: Partner 1 Constant | F147: 417600 | G147: 46891311.18
C148: Partner 2 Expenditures | F148: 122400 | G148: 12905719.83
C149: Partner 2 Constant | F149: 0 | G149: 0
C150: Partner 1 Development Fees | F150: 2998800 | G150: 366032909.4
C151: Partner 2 Development Fees | F151: 612000 | G151: 74700593.75
C152: Advisory Success Fee | F152: 260100 | G152: 31747752.34
C153: Advisory Retainer | F153: 5000 | G153: 534996.899
C154: EPC Expendtitures | F154: =SUM(G87:BX87) -> 52020000 | G154: 534017190.2
D155: Subtotal | F155: =SUM(F146:F154) -> 56446700 | G155: 6443523621
C156: Interest During Construction | F156: =SUM(G88:BX88) -> 561956.6217 | G156: 70012340.69 | H156: =G156/F156 -> 124.586735 | L156: =IF(Local_Switch,Local_Difference=0,Difference=0) -> FALSE
C157: Fees During Construction | F157: =SUM(G89:BX89) -> 615433.2787 | G157: 75119659.04 | H157: =G157/F157 -> 122.0597937
C158: DSRA Funding | F158: =SUM(G90:BX90) -> 1571730.409 | G158: 197544549.2 | H158: 125.6860261
H159: Foreign
H160: Fixed | I160: Computed | J160: Difference | L160: Local Fixed | M160: Local Computed | N160: Local Difference
D161: Total Uses of Funds | E161: =Assumptions!$G$23 -> USD | F161: =IF(Local_Switch,SUM(F155:F158),H161) -> 59195820.31 | G161: =L161 -> 6259971586 | H161: 58492495.8 | I161: =F155+F156+F157+F158 -> 59195820.31 | J161: =I161-H161 -> 703324.5128 | L161: 6259971586 | M161: =SUM(G155:G158) -> 6786200170 | N161: =M161-L161 -> 526228583.1
B163: Local Currency Debt | E163: Local Switch | F163: =Assumptions!G144 -> TRUE
H164: =IF(F163,G165,F165) -> PKR | I164: =IF(F163,F165,G165) -> USD
B165: Sources of Funds | F165: =Assumptions!$G$23 -> USD | G165: =Assumptions!G22 -> PKR | H165: Pct Currency | I165: Pct Alternate
C166: Debt Financing | F166: =IF(F163,F236,F161*H166) -> 30322886.15 | G166: =IF(F163,H166*G161,F236) -> 3755982952 | H166: =Assumptions!G148 -> 0.6 | I166: =IF(F163,F166/F161,G166/$G$161) -> 0.5122470808 | K166: =G166/F166 -> 123.8662749
C167: Total Equity Financing | F167: =F161-F166 -> 28872934.16 | G167: =G161-G166 -> 2503988635 | H167: =IF(Local_Switch,G167/G168,F167/F168) -> 0.4 | I167: =IF(F163,F167/F168,G167/$G$161) -> 0.4877529192
D168: Total Sources | F168: =SUM(F166:F167) -> 59195820.31 | G168: =SUM(G166:G167) -> 6259971586 | H168: =H166+H167 -> 1 | I168: =I166+I167 -> 1
C170: Equity Funding
D171: Developer 1 | F171: =SUM(G118:BX118)+SUM(G120:BX120) -> 3427200 | G171: =SUM(G135:BX135)+SUM(G137:BX137) -> 414128127.4 | H171: =IF($F$163,G171/$G$175,F171/$F$175) -> 0.1161899247 | I171: =IF($F$163,F171/$F$175,G171/G$175) -> 0.1186994014
D172: Developer 2 | F172: =SUM(G119:BX119)+SUM(G121:BX121) -> 734400 | G172: =SUM(G136:BX136)+SUM(G138:BX138) -> 87606313.58 | H172: =IF($F$163,G172/$G$175,F172/$F$175) -> 0.02457927946 | I172: =IF($F$163,F172/$F$175,G172/G$175) -> 0.025435586
D173: EPC Funding | F173: =SUM(G122:BX122) -> 3853333.333 | G173: =SUM(G139:BX139) -> 477298046 | H173: 0.133913203 | I173: 0.1334583216
D174: Sponsor Funding | F174: =SUM(G124:BX124) -> 20858000.83 | G174: =SUM(G141:BX141) -> 2585201921 | H174: 0.7253175928 | I174: 0.722406691
D175: Total Equity Funding | F175: =SUM(F171:F174) -> 28872934.16 | G175: =SUM(G171:G174) -> 3564234408 | H175: =F175/$F$175 -> 1 | I175: 1
A177: Pre-tax Cash
B178: EBITDA - Foreign | E178: =Assumptions!G23 -> USD | G178: =G75 -> 0 | H178: 0 | I178: 0 | J178: 0 | K178: 0 | L178: 0 | M178: 0 | N178: 0 | O178: 0 | P178: 0 | Q178: 0 | R178: 0 | S178: 0 | T178: 0 | U178: 0 | V178: 0 | W178: 0 | X178: 0 | Y178: 0 | Z178: 0 | AA178: 0 | AB178: 0 | AC178: 0 | AD178: 0 | AE178: 0 | AF178: 4406705.524 | AG178: 4321138.426 | AH178: 4237232.826 | AI178: 4154956.46 | AJ178: 4074277.694 | AK178: 4014943.553 | AL178: 3956473.501 | AM178: =AM75 -> 3898854.955 | AN178: 3842075.514 | AO178: 3804773.81 | AP178: 3767834.258 | AQ178: 3731253.343 | AR178: 3695027.582 | AS178: 3768928.134 | AT178: 3844306.697 | AU178: 3921192.831 | AV178: 3999616.687 | AW178: 4079609.021 | AX178: 4161201.201 | AY178: 4244425.226 | AZ178: 4329313.73 | BA178: 4415900.005 | BB178: 4504218.005 | BC178: 4594302.365 | BD178: 4686188.412 | BE178: 0 | BF178: 0 | BG178: 0 | BH178: 0 | BI178: 0 | BJ178: 0 | BK178: 0 | BL178: 0 | BM178: 0 | BN178: 0 | BO178: 0 | BP178: 0 | BQ178: 0 | BR178: 0 | BS178: =BS75 -> 0 | BT178: 0 | BU178: 0 | BV178: 0 | BW178: 0 | BX178: 0
B179: EBITDA - Local | E179: =Assumptions!G22 -> PKR | G179: =G74 -> 0 | H179: 0 | I179: 0 | J179: 0 | K179: 0 | L179: 0 | M179: 0 | N179: 0 | O179: 0 | P179: 0 | Q179: 0 | R179: 0 | S179: 0 | T179: 0 | U179: 0 | V179: 0 | W179: 0 | X179: 0 | Y179: 0 | Z179: 0 | AA179: 0 | AB179: 0 | AC179: 0 | AD179: 0 | AE179: 0 | AF179: 604705773.1 | AG179: 640988119.5 | AH179: 679447406.7 | AI179: 720214251.1 | AJ179: 763427106.1 | AK179: 809232732.5 | AL179: 857786696.5 | AM179: =AM74 -> 909253898.3 | AN179: 963809132.2 | AO179: 1021637680 | AP179: 1082935941 | AQ179: 1147912097 | AR179: 1216786823 | AS179: 1289794033 | AT179: 1367181675 | AU179: 1449212575 | AV179: 1536165329 | AW179: 1628335249 | AX179: 1726035364 | AY179: 1829597486 | AZ179: 1939373335 | BA179: 2055735735 | BB179: 2179079879 | BC179: 2309824672 | BD179: 2448414153 | BE179: 0 | BF179: 0 | BG179: 0 | BH179: 0 | BI179: 0 | BJ179: 0 | BK179: 0 | BL179: 0 | BM179: 0 | BN179: 0 | BO179: 0 | BP179: 0 | BQ179: 0 | BR179: 0 | BS179: =BS74 -> 0 | BT179: 0 | BU179: 0 | BV179: 0 | BW179: 0 | BX179: 0
B181: Captial Expenditure Outlays | E181: =Assumptions!G23 -> USD | G181: =G78+G79+G80+G81+G85+G84+G87 -> 148600 | H181: 25000 | I181: 25400 | J181: 24700 | K181: 24200 | L181: 23900 | M181: 23200 | N181: 23200 | O181: 23200 | P181: 23200 | Q181: 23200 | R181: 25200 | S181: 24000 | T181: 24200 | U181: 24100 | V181: 23200 | W181: 23200 | X181: 24100 | Y181: 0 | Z181: 0 | AA181: 10664100 | AB181: 10404000 | AC181: 10404000 | AD181: 10404000 | AE181: 10404000 | AF181: 0 | AG181: 0 | AH181: 0 | AI181: 0 | AJ181: 0 | AK181: 0 | AL181: 0 | AM181: =AM78+AM79+AM80+AM81+AM85+AM84+AM87 -> 0 | AN181: 0 | AO181: 0 | AP181: 0 | AQ181: 0 | AR181: 0 | AS181: 0 | AT181: 0 | AU181: 0 | AV181: 0 | AW181: 0 | AX181: 0 | AY181: 0 | AZ181: 0 | BA181: 0 | BB181: 0 | BC181: 0 | BD181: 0 | BE181: 0 | BF181: 0 | BG181: 0 | BH181: 0 | BI181: 0 | BJ181: 0 | BK181: 0 | BL181: 0 | BM181: 0 | BN181: 0 | BO181: 0 | BP181: 0 | BQ181: 0 | BR181: 0 | BS181: =BS78+BS79+BS80+BS81+BS85+BS84+BS87 -> 0 | BT181: 0 | BU181: 0 | BV181: 0 | BW181: 0 | BX181: 0
B182: Capital Expenditures | E182: =Assumptions!G22 -> PKR | G182: =G181*G30 -> 15668218.68 | H182: 2655335.578 | I182: 2717638.668 | J182: 2662156.243 | K182: 2627426.309 | L182: 2613916.259 | M182: 2555997.03 | N182: 2574772.937 | O182: 2593686.769 | P182: 2612739.538 | Q182: 2631932.265 | R182: 2879823.391 | S182: 2762836.257 | T182: 2806324.332 | U182: 2815257.533 | V182: 2730031.527 | W182: 2750085.861 | X182: 2877755.56 | Y182: 0 | Z182: 0 | AA182: 1301657846 | AB182: 1279238631 | AC182: 1288635694 | AD182: 1298101787 | AE182: 1307637415 | AF182: 0 | AG182: 0 | AH182: 0 | AI182: 0 | AJ182: 0 | AK182: 0 | AL182: 0 | AM182: =AM181*AM30 -> 0 | AN182: 0 | AO182: 0 | AP182: 0 | AQ182: 0 | AR182: 0 | AS182: 0 | AT182: 0 | AU182: 0 | AV182: 0 | AW182: 0 | AX182: 0 | AY182: 0 | AZ182: 0 | BA182: 0 | BB182: 0 | BC182: 0 | BD182: 0 | BE182: 0 | BF182: 0 | BG182: 0 | BH182: 0 | BI182: 0 | BJ182: 0 | BK182: 0 | BL182: 0 | BM182: 0 | BN182: 0 | BO182: 0 | BP182: 0 | BQ182: 0 | BR182: 0 | BS182: =BS181*BS30 -> 0 | BT182: 0 | BU182: 0 | BV182: 0 | BW182: 0 | BX182: 0
B184: Pre-tax Cash Flow | E184: =Assumptions!G22 -> PKR | G184: =G74-G182 -> -15668218.68 | H184: -2655335.578 | I184: -2717638.668 | J184: -2662156.243 | K184: -2627426.309 | L184: -2613916.259 | M184: -2555997.03 | N184: -2574772.937 | O184: -2593686.769 | P184: -2612739.538 | Q184: -2631932.265 | R184: -2879823.391 | S184: -2762836.257 | T184: -2806324.332 | U184: -2815257.533 | V184: -2730031.527 | W184: -2750085.861 | X184: -2877755.56 | Y184: 0 | Z184: 0 | AA184: -1301657846 | AB184: -1279238631 | AC184: -1288635694 | AD184: -1298101787 | AE184: -1307637415 | AF184: 604705773.1 | AG184: 640988119.5 | AH184: 679447406.7 | AI184: 720214251.1 | AJ184: 763427106.1 | AK184: 809232732.5 | AL184: 857786696.5 | AM184: =AM74-AM182 -> 909253898.3 | AN184: 963809132.2 | AO184: 1021637680 | AP184: 1082935941 | AQ184: 1147912097 | AR184: 1216786823 | AS184: 1289794033 | AT184: 1367181675 | AU184: 1449212575 | AV184: 1536165329 | AW184: 1628335249 | AX184: 1726035364 | AY184: 1829597486 | AZ184: 1939373335 | BA184: 2055735735 | BB184: 2179079879 | BC184: 2309824672 | BD184: 2448414153 | BE184: 0 | BF184: 0 | BG184: 0 | BH184: 0 | BI184: 0 | BJ184: 0 | BK184: 0 | BL184: 0 | BM184: 0 | BN184: 0 | BO184: 0 | BP184: 0 | BQ184: 0 | BR184: 0 | BS184: =BS74-BS182 -> 0 | BT184: 0 | BU184: 0 | BV184: 0 | BW184: 0 | BX184: 0
B185: Pre-tax Cash Flow | E185: =Assumptions!$G$23 -> USD | G185: =G178-G181 -> -148600 | H185: =H178-H181 -> -25000 | I185: -25400 | J185: -24700 | K185: -24200 | L185: -23900 | M185: -23200 | N185: -23200 | O185: -23200 | P185: -23200 | Q185: -23200 | R185: -25200 | S185: -24000 | T185: -24200 | U185: -24100 | V185: -23200 | W185: -23200 | X185: -24100 | Y185: 0 | Z185: 0 | AA185: -10664100 | AB185: -10404000 | AC185: -10404000 | AD185: -10404000 | AE185: -10404000 | AF185: 4406705.524 | AG185: 4321138.426 | AH185: 4237232.826 | AI185: 4154956.46 | AJ185: 4074277.694 | AK185: 4014943.553 | AL185: 3956473.501 | AM185: 3898854.955 | AN185: 3842075.514 | AO185: 3804773.81 | AP185: 3767834.258 | AQ185: 3731253.343 | AR185: 3695027.582 | AS185: 3768928.134 | AT185: 3844306.697 | AU185: 3921192.831 | AV185: 3999616.687 | AW185: 4079609.021 | AX185: 4161201.201 | AY185: 4244425.226 | AZ185: 4329313.73 | BA185: 4415900.005 | BB185: 4504218.005 | BC185: 4594302.365 | BD185: 4686188.412 | BE185: 0 | BF185: 0 | BG185: 0 | BH185: 0 | BI185: 0 | BJ185: 0 | BK185: 0 | BL185: 0 | BM185: 0 | BN185: 0 | BO185: 0 | BP185: 0 | BQ185: 0 | BR185: 0 | BS185: 0 | BT185: =BT178-BT181 -> 0 | BU185: 0 | BV185: 0 | BW185: 0 | BX185: 0
B186: Pre-tax Cash Flow - Real | E186: =Assumptions!$G$23 -> USD | G186: =G185/G34 -> -148600 | H186: -25000 | I186: -25400 | J186: -24700 | K186: -24200 | L186: -23900 | M186: -23200 | N186: -23200 | O186: -23200 | P186: -23200 | Q186: -23200 | R186: -25200 | S186: -24000 | T186: -24200 | U186: -24100 | V186: -23200 | W186: -23200 | X186: -24100 | Y186: 0 | Z186: 0 | AA186: -10664100 | AB186: -10404000 | AC186: -10404000 | AD186: -10404000 | AE186: -10404000 | AF186: 4406705.524 | AG186: 4278354.877 | AH186: 4153742.599 | AI186: 4032759.805 | AJ186: 3915300.782 | AK186: 3801262.895 | AL186: 3690546.5 | AM186: =AM185/AM34 -> 3583054.854 | AN186: 3478694.033 | AO186: 3377372.848 | AP186: 3279002.765 | AQ186: 3183497.83 | AR186: 3090774.592 | AS186: 3090774.592 | AT186: 3090774.592 | AU186: 3090774.592 | AV186: 3090774.592 | AW186: 3090774.592 | AX186: 3090774.592 | AY186: 3090774.592 | AZ186: 3090774.592 | BA186: 3090774.592 | BB186: 3090774.592 | BC186: 3090774.592 | BD186: 3090774.592 | BE186: 0 | BF186: 0 | BG186: 0 | BH186: 0 | BI186: 0 | BJ186: 0 | BK186: 0 | BL186: 0 | BM186: 0 | BN186: 0 | BO186: 0 | BP186: 0 | BQ186: 0 | BR186: 0 | BS186: =BS185/BS34 -> 0 | BT186: 0 | BU186: 0 | BV186: 0 | BW186: 0 | BX186: 0
B188: Pre-tax IRR | E188: =Assumptions!G22 -> PKR | F188: =XIRR(G184:BX184,$G$5:$BX$5) -> 0.1334629595 | G188: Payback | H188: =payback(G184:AP184) -> 33.57246949
B189: Pre-tax IRR Nominal | E189: =Assumptions!G23 -> USD | F189: =XIRR(G185:BX185,G5:BX5) -> 0.05745901167 | G189: Payback | H189: =payback(G186:AP186) -> 36
B190: Pre-tax IRR Real | E190: =Assumptions!G23 -> USD | F190: =XIRR(G186:BX186,G5:BX5) -> 0.04351549447 | G190: Payback | H190: =payback(G185:AP185) -> 36
A193: Taxes, Depreciation and After Tax Cash Flow (Local Currency)
B194: Opening Balance | E194: =Assumptions!$G$22 -> PKR | G194: =F196 -> 0 | H194: =G196 -> 15668218.68 | I194: 18323554.26 | J194: 21041192.93 | K194: 23703349.17 | L194: 26330775.48 | M194: 28944691.74 | N194: 31500688.77 | O194: 34075461.71 | P194: 36669148.48 | Q194: 39281888.01 | R194: 41913820.28 | S194: 44793643.67 | T194: 47556479.93 | U194: 50362804.26 | V194: 53178061.79 | W194: 55908093.32 | X194: 58658179.18 | Y194: 61535934.74 | Z194: 61535934.74 | AA194: 61535934.74 | AB194: 1363193781 | AC194: 2642432412 | AD194: 3931068106 | AE194: 5229169893 | AF194: 6536807308 | AG194: 6536807308 | AH194: 6536807308 | AI194: 6536807308 | AJ194: 6536807308 | AK194: 6536807308 | AL194: 6536807308 | AM194: 6536807308 | AN194: 6536807308 | AO194: 6536807308 | AP194: 6536807308 | AQ194: 6536807308 | AR194: 6536807308 | AS194: 6536807308 | AT194: 6536807308 | AU194: 6536807308 | AV194: 6536807308 | AW194: 6536807308 | AX194: 6536807308 | AY194: 6536807308 | AZ194: 6536807308 | BA194: 6536807308 | BB194: 6536807308 | BC194: 6536807308 | BD194: 6536807308 | BE194: 6536807308 | BF194: 6536807308 | BG194: 6536807308 | BH194: 6536807308 | BI194: 6536807308 | BJ194: 6536807308 | BK194: 6536807308 | BL194: 6536807308 | BM194: 6536807308 | BN194: 6536807308 | BO194: 6536807308 | BP194: 6536807308 | BQ194: 6536807308 | BR194: 6536807308 | BS194: 6536807308 | BT194: =BS196 -> 6536807308 | BU194: 6536807308 | BV194: 6536807308 | BW194: 6536807308 | BX194: 6536807308
B195: Add: Pure Cap Exp | E195: =Assumptions!$G$22 -> PKR | G195: =G182 -> 15668218.68 | H195: =H182 -> 2655335.578 | I195: 2717638.668 | J195: 2662156.243 | K195: 2627426.309 | L195: 2613916.259 | M195: 2555997.03 | N195: 2574772.937 | O195: 2593686.769 | P195: 2612739.538 | Q195: 2631932.265 | R195: 2879823.391 | S195: 2762836.257 | T195: 2806324.332 | U195: 2815257.533 | V195: 2730031.527 | W195: 2750085.861 | X195: 2877755.56 | Y195: 0 | Z195: 0 | AA195: 1301657846 | AB195: 1279238631 | AC195: 1288635694 | AD195: 1298101787 | AE195: 1307637415 | AF195: 0 | AG195: 0 | AH195: 0 | AI195: 0 | AJ195: 0 | AK195: 0 | AL195: 0 | AM195: 0 | AN195: 0 | AO195: 0 | AP195: 0 | AQ195: 0 | AR195: 0 | AS195: 0 | AT195: 0 | AU195: 0 | AV195: 0 | AW195: 0 | AX195: 0 | AY195: 0 | AZ195: 0 | BA195: 0 | BB195: 0 | BC195: 0 | BD195: 0 | BE195: 0 | BF195: 0 | BG195: 0 | BH195: 0 | BI195: 0 | BJ195: 0 | BK195: 0 | BL195: 0 | BM195: 0 | BN195: 0 | BO195: 0 | BP195: 0 | BQ195: 0 | BR195: 0 | BS195: 0 | BT195: =BT182 -> 0 | BU195: 0 | BV195: 0 | BW195: 0 | BX195: 0
B196: Closing Balance | E196: =Assumptions!$G$22 -> PKR | G196: =SUM(G194:G195) -> 15668218.68 | H196: =SUM(H194:H195) -> 18323554.26 | I196: 21041192.93 | J196: 23703349.17 | K196: 26330775.48 | L196: 28944691.74 | M196: 31500688.77 | N196: 34075461.71 | O196: 36669148.48 | P196: 39281888.01 | Q196: 41913820.28 | R196: 44793643.67 | S196: 47556479.93 | T196: 50362804.26 | U196: 53178061.79 | V196: 55908093.32 | W196: 58658179.18 | X196: 61535934.74 | Y196: 61535934.74 | Z196: 61535934.74 | AA196: 1363193781 | AB196: 2642432412 | AC196: 3931068106 | AD196: 5229169893 | AE196: 6536807308 | AF196: 6536807308 | AG196: 6536807308 | AH196: 6536807308 | AI196: 6536807308 | AJ196: 6536807308 | AK196: 6536807308 | AL196: 6536807308 | AM196: 6536807308 | AN196: 6536807308 | AO196: 6536807308 | AP196: 6536807308 | AQ196: 6536807308 | AR196: 6536807308 | AS196: 6536807308 | AT196: 6536807308 | AU196: 6536807308 | AV196: 6536807308 | AW196: 6536807308 | AX196: 6536807308 | AY196: 6536807308 | AZ196: 6536807308 | BA196: 6536807308 | BB196: 6536807308 | BC196: 6536807308 | BD196: 6536807308 | BE196: 6536807308 | BF196: 6536807308 | BG196: 6536807308 | BH196: 6536807308 | BI196: 6536807308 | BJ196: 6536807308 | BK196: 6536807308 | BL196: 6536807308 | BM196: 6536807308 | BN196: 6536807308 | BO196: 6536807308 | BP196: 6536807308 | BQ196: 6536807308 | BR196: 6536807308 | BS196: 6536807308 | BT196: =SUM(BT194:BT195) -> 6536807308 | BU196: 6536807308 | BV196: 6536807308 | BW196: 6536807308 | BX196: 6536807308
B198: Depreciation Base | E198: =Assumptions!$G$22 -> PKR | G198: =G194*G22 -> 0 | H198: 0 | I198: 0 | J198: 0 | K198: 0 | L198: 0 | M198: 0 | N198: 0 | O198: 0 | P198: 0 | Q198: 0 | R198: 0 | S198: 0 | T198: 0 | U198: 0 | V198: 0 | W198: 0 | X198: 0 | Y198: 0 | Z198: 0 | AA198: 0 | AB198: 0 | AC198: 0 | AD198: 0 | AE198: 0 | AF198: 6536807308 | AG198: 6536807308 | AH198: 6536807308 | AI198: 6536807308 | AJ198: 6536807308 | AK198: 6536807308 | AL198: 6536807308 | AM198: =AM194*AM22 -> 6536807308 | AN198: 6536807308 | AO198: 6536807308 | AP198: 6536807308 | AQ198: 6536807308 | AR198: 6536807308 | AS198: 6536807308 | AT198: 6536807308 | AU198: 6536807308 | AV198: 6536807308 | AW198: 6536807308 | AX198: 6536807308 | AY198: 6536807308 | AZ198: 6536807308 | BA198: 6536807308 | BB198: 6536807308 | BC198: 6536807308 | BD198: 6536807308 | BE198: 0 | BF198: 0 | BG198: 0 | BH198: 0 | BI198: 0 | BJ198: 0 | BK198: 0 | BL198: 0 | BM198: 0 | BN198: 0 | BO198: 0 | BP198: 0 | BQ198: 0 | BR198: 0 | BS198: =BS194*BS22 -> 0 | BT198: 0 | BU198: 0 | BV198: 0 | BW198: 0 | BX198: 0
B199: Depreciation Expense | E199: =Assumptions!$G$22 -> PKR | F199: =1/Assumptions!G139 -> 0.05 | G199: =MIN($F$199*G198,F201) -> 0 | H199: =MIN($F$199*H198,G201) -> 0 | I199: 0 | J199: 0 | K199: 0 | L199: 0 | M199: 0 | N199: 0 | O199: 0 | P199: 0 | Q199: 0 | R199: 0 | S199: 0 | T199: 0 | U199: 0 | V199: 0 | W199: 0 | X199: 0 | Y199: 0 | Z199: 0 | AA199: 0 | AB199: 0 | AC199: 0 | AD199: 0 | AE199: 0 | AF199: =MIN($F$199*AF198,AE201) -> 326840365.4 | AG199: 326840365.4 | AH199: 326840365.4 | AI199: 326840365.4 | AJ199: 326840365.4 | AK199: 326840365.4 | AL199: 326840365.4 | AM199: 326840365.4 | AN199: 326840365.4 | AO199: 326840365.4 | AP199: 326840365.4 | AQ199: 326840365.4 | AR199: 326840365.4 | AS199: 326840365.4 | AT199: 326840365.4 | AU199: 326840365.4 | AV199: 326840365.4 | AW199: 326840365.4 | AX199: 326840365.4 | AY199: 326840365.4 | AZ199: 0 | BA199: 0 | BB199: 0 | BC199: 0 | BD199: 0 | BE199: 0 | BF199: 0 | BG199: 0 | BH199: 0 | BI199: 0 | BJ199: 0 | BK199: 0 | BL199: 0 | BM199: 0 | BN199: 0 | BO199: 0 | BP199: 0 | BQ199: 0 | BR199: 0 | BS199: 0 | BT199: =MIN($F$199*BT198,BS201) -> 0 | BU199: 0 | BV199: 0 | BW199: 0 | BX199: 0
B200: Accumulated Deprecation | E200: =Assumptions!$G$22 -> PKR | G200: =F200+G199 -> 0 | H200: =G200+H199 -> 0 | I200: 0 | J200: 0 | K200: 0 | L200: 0 | M200: 0 | N200: 0 | O200: 0 | P200: 0 | Q200: 0 | R200: 0 | S200: 0 | T200: 0 | U200: 0 | V200: 0 | W200: 0 | X200: 0 | Y200: 0 | Z200: 0 | AA200: 0 | AB200: 0 | AC200: 0 | AD200: 0 | AE200: 0 | AF200: 326840365.4 | AG200: 653680730.8 | AH200: 980521096.2 | AI200: 1307361462 | AJ200: 1634201827 | AK200: 1961042192 | AL200: 2287882558 | AM200: 2614722923 | AN200: 2941563289 | AO200: 3268403654 | AP200: 3595244019 | AQ200: 3922084385 | AR200: 4248924750 | AS200: 4575765115 | AT200: 4902605481 | AU200: 5229445846 | AV200: 5556286212 | AW200: 5883126577 | AX200: 6209966942 | AY200: 6536807308 | AZ200: 6536807308 | BA200: 6536807308 | BB200: 6536807308 | BC200: 6536807308 | BD200: 6536807308 | BE200: 6536807308 | BF200: 6536807308 | BG200: 6536807308 | BH200: 6536807308 | BI200: 6536807308 | BJ200: 6536807308 | BK200: 6536807308 | BL200: 6536807308 | BM200: 6536807308 | BN200: 6536807308 | BO200: 6536807308 | BP200: 6536807308 | BQ200: 6536807308 | BR200: 6536807308 | BS200: 6536807308 | BT200: =BS200+BT199 -> 6536807308 | BU200: 6536807308 | BV200: 6536807308 | BW200: 6536807308 | BX200: 6536807308
B201: Net Plant | E201: =Assumptions!$G$22 -> PKR | G201: =G196-G200 -> 15668218.68 | H201: =H196-H200 -> 18323554.26 | I201: 21041192.93 | J201: 23703349.17 | K201: 26330775.48 | L201: 28944691.74 | M201: 31500688.77 | N201: 34075461.71 | O201: 36669148.48 | P201: 39281888.01 | Q201: 41913820.28 | R201: 44793643.67 | S201: 47556479.93 | T201: 50362804.26 | U201: 53178061.79 | V201: 55908093.32 | W201: 58658179.18 | X201: 61535934.74 | Y201: 61535934.74 | Z201: 61535934.74 | AA201: 1363193781 | AB201: 2642432412 | AC201: 3931068106 | AD201: 5229169893 | AE201: 6536807308 | AF201: 6209966942 | AG201: 5883126577 | AH201: 5556286212 | AI201: 5229445846 | AJ201: 4902605481 | AK201: 4575765115 | AL201: 4248924750 | AM201: 3922084385 | AN201: 3595244019 | AO201: 3268403654 | AP201: 2941563289 | AQ201: 2614722923 | AR201: 2287882558 | AS201: 1961042192 | AT201: 1634201827 | AU201: 1307361462 | AV201: 980521096.2 | AW201: 653680730.8 | AX201: 326840365.4 | AY201: 0 | AZ201: 0 | BA201: 0 | BB201: 0 | BC201: 0 | BD201: 0 | BE201: 0 | BF201: 0 | BG201: 0 | BH201: 0 | BI201: 0 | BJ201: 0 | BK201: 0 | BL201: 0 | BM201: 0 | BN201: 0 | BO201: 0 | BP201: 0 | BQ201: 0 | BR201: 0 | BS201: 0 | BT201: =BT196-BT200 -> 0 | BU201: 0 | BV201: 0 | BW201: 0 | BX201: 0
B203: Depreciation in Foreign Currency | E203: =Assumptions!$G$23 -> USD | G203: =G199/G30 -> 0 | H203: 0 | I203: 0 | J203: 0 | K203: 0 | L203: 0 | M203: 0 | N203: 0 | O203: 0 | P203: 0 | Q203: 0 | R203: 0 | S203: 0 | T203: 0 | U203: 0 | V203: 0 | W203: 0 | X203: 0 | Y203: 0 | Z203: 0 | AA203: 0 | AB203: 0 | AC203: 0 | AD203: 0 | AE203: 0 | AF203: 2381801.708 | AG203: 2203352.011 | AH203: 2038272.148 | AI203: 1885560.423 | AJ203: 1744290.188 | AK203: 1621592.362 | AL203: 1507525.414 | AM203: =AM199/AM30 -> 1401482.227 | AN203: 1302898.388 | AO203: 1217215.933 | AP203: 1137168.21 | AQ203: 1062384.662 | AR203: 992519.1021 | AS203: 955065.5511 | AT203: 919025.3416 | AU203: 884345.14 | AV203: 850973.6253 | AW203: 818861.413 | AX203: 787960.9823 | AY203: 758226.6056 | AZ203: 0 | BA203: 0 | BB203: 0 | BC203: 0 | BD203: 0 | BE203: 0 | BF203: 0 | BG203: 0 | BH203: 0 | BI203: 0 | BJ203: 0 | BK203: 0 | BL203: 0 | BM203: 0 | BN203: 0 | BO203: 0 | BP203: 0 | BQ203: 0 | BR203: 0 | BS203: =BS199/BS30 -> 0 | BT203: 0 | BU203: 0 | BV203: 0 | BW203: 0 | BX203: 0
B204: Total Depreciation | E204: =Assumptions!G23 -> USD | F204: =SUM(203:203) -> 26470521.43
B205: Sum of Cap Exp | E205: =Assumptions!G23 -> USD | F205: =SUM(181:181) -> 52835900
B206: Difference | F206: =F205-F204 -> 26365378.57
B208: Net Plant in Foreign Currency
C209: Opening Balance | E209: =Assumptions!$G$23 -> USD | G209: =F213 -> 0 | H209: =G213 -> 148600 | I209: 172516.3706 | J209: 196658.3368 | K209: 219924.2536 | L209: 242520.5093 | M209: 264651.9873 | N209: 285922.0769 | O209: 307037.0595 | P209: 327998.0663 | Q209: 348806.22 | R209: 369462.6352 | S209: 391968.4186 | T209: 413110.084 | U209: 434297.5789 | V209: 455230.5692 | W209: 475110.9107 | X209: 494846.2797 | Y209: 515337.7333 | Z209: 511579.7579 | AA209: 507849.1866 | AB209: 11168245.82 | AC209: 21490804.1 | AD209: 31738087.62 | AE209: 41910645.32 | AF209: 52009022.11 | AG209: 45254232.46 | AH209: 39660336.2 | AI209: 34650626.51 | AJ209: 30168966.76 | AK209: 26164352.81 | AL209: 22702293.06 | AM209: 19597830.38 | AN209: 16817786.72 | AO209: 14331882.27 | AP209: 12172159.33 | AQ209: 10234513.89 | AR209: 8499077.299 | AS209: 6947633.715 | AT209: 5730393.306 | AU209: 4595126.708 | AV209: 3537380.56 | AW209: 2552920.876 | AX209: 1637722.826 | AY209: 787960.9823 | AZ209: 0 | BA209: 0 | BB209: 0 | BC209: 0 | BD209: 0 | BE209: 0 | BF209: 0 | BG209: 0 | BH209: 0 | BI209: 0 | BJ209: 0 | BK209: 0 | BL209: 0 | BM209: 0 | BN209: 0 | BO209: 0 | BP209: 0 | BQ209: 0 | BR209: 0 | BS209: 0 | BT209: =BS213 -> 0 | BU209: 0 | BV209: 0 | BW209: 0 | BX209: 0
C210: Add: Capital Expenditures | E210: =Assumptions!$G$23 -> USD | G210: =G181 -> 148600 | H210: 25000 | I210: 25400 | J210: 24700 | K210: 24200 | L210: 23900 | M210: 23200 | N210: 23200 | O210: 23200 | P210: 23200 | Q210: 23200 | R210: 25200 | S210: 24000 | T210: 24200 | U210: 24100 | V210: 23200 | W210: 23200 | X210: 24100 | Y210: 0 | Z210: 0 | AA210: 10664100 | AB210: 10404000 | AC210: 10404000 | AD210: 10404000 | AE210: 10404000 | AF210: 0 | AG210: 0 | AH210: 0 | AI210: 0 | AJ210: 0 | AK210: 0 | AL210: 0 | AM210: =AM181 -> 0 | AN210: 0 | AO210: 0 | AP210: 0 | AQ210: 0 | AR210: 0 | AS210: 0 | AT210: 0 | AU210: 0 | AV210: 0 | AW210: 0 | AX210: 0 | AY210: 0 | AZ210: 0 | BA210: 0 | BB210: 0 | BC210: 0 | BD210: 0 | BE210: 0 | BF210: 0 | BG210: 0 | BH210: 0 | BI210: 0 | BJ210: 0 | BK210: 0 | BL210: 0 | BM210: 0 | BN210: 0 | BO210: 0 | BP210: 0 | BQ210: 0 | BR210: 0 | BS210: =BS181 -> 0 | BT210: 0 | BU210: 0 | BV210: 0 | BW210: 0 | BX210: 0
C211: Less: Depreciation | E211: =Assumptions!G23 -> USD | G211: =G203 -> 0 | H211: =H203 -> 0 | I211: 0 | J211: 0 | K211: 0 | L211: 0 | M211: 0 | N211: 0 | O211: 0 | P211: 0 | Q211: 0 | R211: 0 | S211: 0 | T211: 0 | U211: 0 | V211: 0 | W211: 0 | X211: 0 | Y211: 0 | Z211: 0 | AA211: 0 | AB211: 0 | AC211: 0 | AD211: 0 | AE211: 0 | AF211: 2381801.708 | AG211: 2203352.011 | AH211: 2038272.148 | AI211: 1885560.423 | AJ211: 1744290.188 | AK211: 1621592.362 | AL211: 1507525.414 | AM211: 1401482.227 | AN211: 1302898.388 | AO211: 1217215.933 | AP211: 1137168.21 | AQ211: 1062384.662 | AR211: 992519.1021 | AS211: 955065.5511 | AT211: 919025.3416 | AU211: 884345.14 | AV211: 850973.6253 | AW211: 818861.413 | AX211: 787960.9823 | AY211: 758226.6056 | AZ211: 0 | BA211: 0 | BB211: 0 | BC211: 0 | BD211: 0 | BE211: 0 | BF211: 0 | BG211: 0 | BH211: 0 | BI211: 0 | BJ211: 0 | BK211: 0 | BL211: 0 | BM211: 0 | BN211: 0 | BO211: 0 | BP211: 0 | BQ211: 0 | BR211: 0 | BS211: 0 | BT211: =BT203 -> 0 | BU211: 0 | BV211: 0 | BW211: 0 | BX211: 0
C212: Less: Loss on Currency Translation | E212: =Assumptions!$G$23 -> USD | G212: =(G209*(F30-G30)/G30) -> 0 | H212: -1083.629447 | I212: -1258.033777 | J212: -1434.083208 | K212: -1603.744262 | L212: -1768.521975 | M212: -1929.910409 | N212: -2085.017377 | O212: -2238.993265 | P212: -2391.846321 | Q212: -2543.584733 | R212: -2694.21663 | S212: -2858.334595 | T212: -3012.50506 | U212: -3167.009727 | V212: -3319.65848 | W212: -3464.631047 | X212: -3608.546437 | Y212: -3757.97539 | Z212: -3730.571267 | AA212: -3703.366981 | AB212: -81441.72304 | AC212: -156716.4749 | AD212: -231442.3038 | AE212: -305623.2128 | AF212: -4372987.937 | AG212: -3390544.253 | AH212: -2971437.535 | AI212: -2596099.33 | AJ212: -2260323.76 | AK212: -1840467.39 | AL212: -1596937.266 | AM212: =(AM209*(AL30-AM30)/AM30) -> -1378561.434 | AN212: -1183006.064 | AO212: -942507.004 | AP212: -800477.2303 | AQ212: -673051.9302 | AR212: -558924.4826 | AS212: -262174.8572 | AT212: -216241.2568 | AU212: -173401.0078 | AV212: -133486.0589 | AW212: -96336.63683 | AX212: -61800.86136 | AY212: -29734.37669 | AZ212: 0 | BA212: 0 | BB212: 0 | BC212: 0 | BD212: 0 | BE212: 0 | BF212: 0 | BG212: 0 | BH212: 0 | BI212: 0 | BJ212: 0 | BK212: 0 | BL212: 0 | BM212: 0 | BN212: 0 | BO212: 0 | BP212: 0 | BQ212: 0 | BR212: 0 | BS212: =(BS209*(BR30-BS30)/BS30) -> 0 | BT212: 0 | BU212: 0 | BV212: 0 | BW212: 0 | BX212: 0
C213: Closing Balance | E213: =Assumptions!$G$23 -> USD | G213: =G209+G210+G212-G211 -> 148600 | H213: =H209+H210+H212-H211 -> 172516.3706 | I213: 196658.3368 | J213: 219924.2536 | K213: 242520.5093 | L213: 264651.9873 | M213: 285922.0769 | N213: 307037.0595 | O213: 327998.0663 | P213: 348806.22 | Q213: 369462.6352 | R213: 391968.4186 | S213: 413110.084 | T213: 434297.5789 | U213: 455230.5692 | V213: 475110.9107 | W213: 494846.2797 | X213: 515337.7333 | Y213: 511579.7579 | Z213: 507849.1866 | AA213: 11168245.82 | AB213: 21490804.1 | AC213: 31738087.62 | AD213: 41910645.32 | AE213: 52009022.11 | AF213: 45254232.46 | AG213: 39660336.2 | AH213: 34650626.51 | AI213: 30168966.76 | AJ213: 26164352.81 | AK213: 22702293.06 | AL213: 19597830.38 | AM213: 16817786.72 | AN213: 14331882.27 | AO213: 12172159.33 | AP213: 10234513.89 | AQ213: 8499077.299 | AR213: 6947633.715 | AS213: 5730393.306 | AT213: 4595126.708 | AU213: 3537380.56 | AV213: 2552920.876 | AW213: 1637722.826 | AX213: 787960.9823 | AY213: 0 | AZ213: 0 | BA213: 0 | BB213: 0 | BC213: 0 | BD213: 0 | BE213: 0 | BF213: 0 | BG213: 0 | BH213: 0 | BI213: 0 | BJ213: 0 | BK213: 0 | BL213: 0 | BM213: 0 | BN213: 0 | BO213: 0 | BP213: 0 | BQ213: 0 | BR213: 0 | BS213: 0 | BT213: =BT209+BT210+BT212-BT211 -> 0 | BU213: 0 | BV213: 0 | BW213: 0 | BX213: 0
C215: Valuation from Local Currency | E215: =Assumptions!G22 -> PKR | G215: =G213*G30 -> 15668218.68 | H215: 18323554.26 | I215: 21041192.93 | J215: 23703349.17 | K215: 26330775.48 | L215: 28944691.74 | M215: 31500688.77 | N215: 34075461.71 | O215: 36669148.48 | P215: 39281888.01 | Q215: 41913820.28 | R215: 44793643.67 | S215: 47556479.93 | T215: 50362804.26 | U215: 53178061.79 | V215: 55908093.32 | W215: 58658179.18 | X215: 61535934.74 | Y215: 61535934.74 | Z215: 61535934.74 | AA215: 1363193781 | AB215: 2642432412 | AC215: 3931068106 | AD215: 5229169893 | AE215: 6536807308 | AF215: 6209966942 | AG215: 5883126577 | AH215: 5556286212 | AI215: 5229445846 | AJ215: 4902605481 | AK215: 4575765115 | AL215: 4248924750 | AM215: =AM213*AM30 -> 3922084385 | AN215: 3595244019 | AO215: 3268403654 | AP215: 2941563289 | AQ215: 2614722923 | AR215: 2287882558 | AS215: 1961042192 | AT215: 1634201827 | AU215: 1307361462 | AV215: 980521096.2 | AW215: 653680730.8 | AX215: 326840365.4 | AY215: 0 | AZ215: 0 | BA215: 0 | BB215: 0 | BC215: 0 | BD215: 0 | BE215: 0 | BF215: 0 | BG215: 0 | BH215: 0 | BI215: 0 | BJ215: 0 | BK215: 0 | BL215: 0 | BM215: 0 | BN215: 0 | BO215: 0 | BP215: 0 | BQ215: 0 | BR215: 0 | BS215: =BS213*BS30 -> 0 | BT215: 0 | BU215: 0 | BV215: 0 | BW215: 0 | BX215: 0
C216: Difference
C218: Depreciation Expense | E218: =Assumptions!$F$78 -> USD | G218: =G199/G30 -> 0 | H218: 0 | I218: 0 | J218: 0 | K218: 0 | L218: 0 | M218: 0 | N218: 0 | O218: 0 | P218: 0 | Q218: 0 | R218: 0 | S218: 0 | T218: 0 | U218: 0 | V218: 0 | W218: 0 | X218: 0 | Y218: 0 | Z218: 0 | AA218: 0 | AB218: 0 | AC218: 0 | AD218: 0 | AE218: 0 | AF218: 2381801.708 | AG218: 2203352.011 | AH218: 2038272.148 | AI218: 1885560.423 | AJ218: 1744290.188 | AK218: 1621592.362 | AL218: 1507525.414 | AM218: =AM199/AM30 -> 1401482.227 | AN218: 1302898.388 | AO218: 1217215.933 | AP218: 1137168.21 | AQ218: 1062384.662 | AR218: 992519.1021 | AS218: 955065.5511 | AT218: 919025.3416 | AU218: 884345.14 | AV218: 850973.6253 | AW218: 818861.413 | AX218: 787960.9823 | AY218: 758226.6056 | AZ218: 0 | BA218: 0 | BB218: 0 | BC218: 0 | BD218: 0 | BE218: 0 | BF218: 0 | BG218: 0 | BH218: 0 | BI218: 0 | BJ218: 0 | BK218: 0 | BL218: 0 | BM218: 0 | BN218: 0 | BO218: 0 | BP218: 0 | BQ218: 0 | BR218: 0 | BS218: =BS199/BS30 -> 0 | BT218: 0 | BU218: 0 | BV218: 0 | BW218: 0 | BX218: 0
B220: EBIT | E220: =Assumptions!G22 -> PKR | G220: =G179-G199 -> 0 | H220: 0 | I220: 0 | J220: 0 | K220: 0 | L220: 0 | M220: 0 | N220: 0 | O220: 0 | P220: 0 | Q220: 0 | R220: 0 | S220: 0 | T220: 0 | U220: 0 | V220: 0 | W220: 0 | X220: 0 | Y220: 0 | Z220: 0 | AA220: 0 | AB220: 0 | AC220: 0 | AD220: 0 | AE220: 0 | AF220: 277865407.7 | AG220: 314147754.1 | AH220: 352607041.3 | AI220: 393373885.7 | AJ220: 436586740.8 | AK220: 482392367.1 | AL220: 530946331.1 | AM220: =AM179-AM199 -> 582413532.9 | AN220: 636968766.8 | AO220: 694797314.7 | AP220: 756095575.5 | AQ220: 821071732 | AR220: 889946457.8 | AS220: 962953667.2 | AT220: 1040341309 | AU220: 1122372210 | AV220: 1209324964 | AW220: 1301494884 | AX220: 1399194999 | AY220: 1502757121 | AZ220: 1939373335 | BA220: 2055735735 | BB220: 2179079879 | BC220: 2309824672 | BD220: 2448414153 | BE220: 0 | BF220: 0 | BG220: 0 | BH220: 0 | BI220: 0 | BJ220: 0 | BK220: 0 | BL220: 0 | BM220: 0 | BN220: 0 | BO220: 0 | BP220: 0 | BQ220: 0 | BR220: 0 | BS220: =BS179-BS199 -> 0 | BT220: 0 | BU220: 0 | BV220: 0 | BW220: 0 | BX220: 0
B221: Taxes on EBIT | E221: =Assumptions!G23 -> USD | F221: =Assumptions!G141 -> 0.2 | G221: =G220*$F$221 -> 0 | H221: =H220*$F$221 -> 0 | I221: 0 | J221: 0 | K221: 0 | L221: 0 | M221: 0 | N221: 0 | O221: 0 | P221: 0 | Q221: 0 | R221: 0 | S221: 0 | T221: 0 | U221: 0 | V221: 0 | W221: 0 | X221: 0 | Y221: 0 | Z221: 0 | AA221: 0 | AB221: 0 | AC221: 0 | AD221: 0 | AE221: 0 | AF221: 55573081.55 | AG221: 62829550.82 | AH221: 70521408.26 | AI221: 78674777.14 | AJ221: 87317348.15 | AK221: 96478473.43 | AL221: 106189266.2 | AM221: 116482706.6 | AN221: 127393753.4 | AO221: 138959462.9 | AP221: 151219115.1 | AQ221: 164214346.4 | AR221: 177989291.6 | AS221: 192590733.4 | AT221: 208068261.8 | AU221: 224474441.9 | AV221: 241864992.8 | AW221: 260298976.8 | AX221: 279838999.8 | AY221: 300551424.1 | AZ221: 387874667 | BA221: 411147147.1 | BB221: 435815975.9 | BC221: 461964934.4 | BD221: 489682830.5 | BE221: 0 | BF221: 0 | BG221: 0 | BH221: 0 | BI221: 0 | BJ221: 0 | BK221: 0 | BL221: 0 | BM221: 0 | BN221: 0 | BO221: 0 | BP221: 0 | BQ221: 0 | BR221: 0 | BS221: 0 | BT221: =BT220*$F$221 -> 0 | BU221: 0 | BV221: 0 | BW221: 0 | BX221: 0
B223: After-Tax Cash Flow | E223: =Assumptions!G22 -> PKR | G223: =G184-G221 -> -15668218.68 | H223: -2655335.578 | I223: -2717638.668 | J223: -2662156.243 | K223: -2627426.309 | L223: -2613916.259 | M223: -2555997.03 | N223: -2574772.937 | O223: -2593686.769 | P223: -2612739.538 | Q223: -2631932.265 | R223: -2879823.391 | S223: -2762836.257 | T223: -2806324.332 | U223: -2815257.533 | V223: -2730031.527 | W223: -2750085.861 | X223: -2877755.56 | Y223: 0 | Z223: 0 | AA223: -1301657846 | AB223: -1279238631 | AC223: -1288635694 | AD223: -1298101787 | AE223: -1307637415 | AF223: 549132691.6 | AG223: 578158568.7 | AH223: 608925998.4 | AI223: 641539473.9 | AJ223: 676109758 | AK223: 712754259.1 | AL223: 751597430.3 | AM223: =AM184-AM221 -> 792771191.7 | AN223: 836415378.8 | AO223: 882678217.1 | AP223: 931716825.8 | AQ223: 983697751 | AR223: 1038797532 | AS223: 1097203299 | AT223: 1159113413 | AU223: 1224738133 | AV223: 1294300337 | AW223: 1368036272 | AX223: 1446196364 | AY223: 1529046062 | AZ223: 1551498668 | BA223: 1644588588 | BB223: 1743263904 | BC223: 1847859738 | BD223: 1958731322 | BE223: 0 | BF223: 0 | BG223: 0 | BH223: 0 | BI223: 0 | BJ223: 0 | BK223: 0 | BL223: 0 | BM223: 0 | BN223: 0 | BO223: 0 | BP223: 0 | BQ223: 0 | BR223: 0 | BS223: =BS184-BS221 -> 0 | BT223: 0 | BU223: 0 | BV223: 0 | BW223: 0 | BX223: 0
B224: After-Tax Cash Flow | E224: =Assumptions!$G$23 -> USD | G224: =G223/G30 -> -148600 | H224: -25000 | I224: -25400 | J224: -24700 | K224: -24200 | L224: -23900 | M224: -23200 | N224: -23200 | O224: -23200 | P224: -23200 | Q224: -23200 | R224: -25200 | S224: -24000 | T224: -24200 | U224: -24100 | V224: -23200 | W224: -23200 | X224: -24100 | Y224: 0 | Z224: 0 | AA224: -10664100 | AB224: -10404000 | AC224: -10404000 | AD224: -10404000 | AE224: -10404000 | AF224: 4001724.761 | AG224: 3897581.143 | AH224: 3797440.69 | AI224: 3701077.253 | AJ224: 3608280.193 | AK224: 3536273.314 | AL224: 3466683.884 | AM224: =AM223/AM30 -> 3399380.409 | AN224: 3334240.089 | AO224: 3287262.234 | AP224: 3241701.049 | AQ224: 3197479.607 | AR224: 3154525.886 | AS224: 3206155.617 | AT224: 3259250.426 | AU224: 3313823.293 | AV224: 3369888.075 | AW224: 3427459.499 | AX224: 3486553.158 | AY224: 3547185.502 | AZ224: 3463450.984 | BA224: 3532720.004 | BB224: 3603374.404 | BC224: 3675441.892 | BD224: 3748950.73 | BE224: 0 | BF224: 0 | BG224: 0 | BH224: 0 | BI224: 0 | BJ224: 0 | BK224: 0 | BL224: 0 | BM224: 0 | BN224: 0 | BO224: 0 | BP224: 0 | BQ224: 0 | BR224: 0 | BS224: =BS223/BS30 -> 0 | BT224: 0 | BU224: 0 | BV224: 0 | BW224: 0 | BX224: 0
B225: After-Tax Cash Flow Real | E225: =Assumptions!$G$23 -> USD | G225: =G224/G34 -> -148600 | H225: -25000 | I225: -25400 | J225: -24700 | K225: -24200 | L225: -23900 | M225: -23200 | N225: -23200 | O225: -23200 | P225: -23200 | Q225: -23200 | R225: -25200 | S225: -24000 | T225: -24200 | U225: -24100 | V225: -23200 | W225: -23200 | X225: -24100 | Y225: 0 | Z225: 0 | AA225: -10664100 | AB225: -10404000 | AC225: -10404000 | AD225: -10404000 | AE225: -10404000 | AF225: 4001724.761 | AG225: 3858991.231 | AH225: 3722616.106 | AI225: 3592229.118 | AJ225: 3467486.342 | AK225: 3348068.126 | AL225: 3233677.18 | AM225: =AM224/AM34 -> 3124036.831 | AN225: 3018889.415 | AO225: 2917994.806 | AP225: 2821129.055 | AQ225: 2728083.154 | AR225: 2638661.889 | AS225: 2629263.273 | AT225: 2620396.654 | AU225: 2612031.919 | AV225: 2604140.66 | AW225: 2596696.076 | AX225: 2589672.883 | AY225: 2583047.23 | AZ225: 2472619.674 | BA225: 2472619.674 | BB225: 2472619.674 | BC225: 2472619.674 | BD225: 2472619.674 | BE225: 0 | BF225: 0 | BG225: 0 | BH225: 0 | BI225: 0 | BJ225: 0 | BK225: 0 | BL225: 0 | BM225: 0 | BN225: 0 | BO225: 0 | BP225: 0 | BQ225: 0 | BR225: 0 | BS225: =BS224/BS34 -> 0 | BT225: 0 | BU225: 0 | BV225: 0 | BW225: 0 | BX225: 0
B227: After Tax IRR - Nominal | E227: =Assumptions!G22 -> PKR | F227: =XIRR(G223:BX223,G5:BX5) -> 0.1173492849
B228: After Tax IRR - Nominal | E228: EUR | F228: =XIRR(G224:BX224,G5:BX5) -> 0.04290729463 | G228: Payback | H228: =payback(G223:AP223) -> 34.44116027
B229: After Tax IRR - Real | E229: EUR | F229: =XIRR(G225:BX225,G5:BX5) -> 0.0289737612 | G229: Payback | H229: =payback(G224:AP224) -> 36
A231: Debt Schedule
B232: Currency of Debt | E232: =Assumptions!G146 -> PKR
B233: Local Currency Debt | E233: =Assumptions!$G$144 -> TRUE
C235: Drawdowns in Debt Currency | E235: =E232 -> PKR | F235: =SUM(G235:BX235) -> 3755982952 | G235: =IF($E$233,G140,G123) -> 0 | H235: =IF($E$233,H140,H123) -> 0 | I235: 0 | J235: 0 | K235: 0 | L235: 0 | M235: 0 | N235: 0 | O235: 0 | P235: 0 | Q235: 0 | R235: 0 | S235: 0 | T235: 0 | U235: 0 | V235: 0 | W235: 0 | X235: 0 | Y235: 0 | Z235: 0 | AA235: 740241045.6 | AB235: 745678726.8 | AC235: 751156352.3 | AD235: 756674215.4 | AE235: 762232611.8 | AF235: 0 | AG235: 0 | AH235: 0 | AI235: 0 | AJ235: 0 | AK235: 0 | AL235: 0 | AM235: 0 | AN235: 0 | AO235: 0 | AP235: 0 | AQ235: 0 | AR235: 0 | AS235: 0 | AT235: 0 | AU235: 0 | AV235: 0 | AW235: 0 | AX235: 0 | AY235: 0 | AZ235: 0 | BA235: 0 | BB235: 0 | BC235: 0 | BD235: 0 | BE235: 0 | BF235: 0 | BG235: 0 | BH235: 0 | BI235: 0 | BJ235: 0 | BK235: 0 | BL235: 0 | BM235: 0 | BN235: 0 | BO235: 0 | BP235: 0 | BQ235: 0 | BR235: 0 | BS235: 0 | BT235: =IF($E$233,BT140,BT123) -> 0 | BU235: 0 | BV235: 0 | BW235: 0 | BX235: 0
C236: Drawdowns in Alternate Currency | E236: =Assumptions!H146 -> USD | F236: =SUM(G236:BX236) -> 30322886.15 | G236: =IF($E$233,G123,G140) -> 0 | H236: =IF($E$233,H123,H140) -> 0 | I236: 0 | J236: 0 | K236: 0 | L236: 0 | M236: 0 | N236: 0 | O236: 0 | P236: 0 | Q236: 0 | R236: 0 | S236: 0 | T236: 0 | U236: 0 | V236: 0 | W236: 0 | X236: 0 | Y236: 0 | Z236: 0 | AA236: 6064577.23 | AB236: 6064577.23 | AC236: 6064577.23 | AD236: 6064577.23 | AE236: 6064577.23 | AF236: 0 | AG236: 0 | AH236: 0 | AI236: 0 | AJ236: 0 | AK236: 0 | AL236: 0 | AM236: 0 | AN236: 0 | AO236: 0 | AP236: 0 | AQ236: 0 | AR236: 0 | AS236: 0 | AT236: 0 | AU236: 0 | AV236: 0 | AW236: 0 | AX236: 0 | AY236: 0 | AZ236: 0 | BA236: 0 | BB236: 0 | BC236: 0 | BD236: 0 | BE236: 0 | BF236: 0 | BG236: 0 | BH236: 0 | BI236: 0 | BJ236: 0 | BK236: 0 | BL236: 0 | BM236: 0 | BN236: 0 | BO236: 0 | BP236: 0 | BQ236: 0 | BR236: 0 | BS236: 0 | BT236: =IF($E$233,BT123,BT140) -> 0 | BU236: 0 | BV236: 0 | BW236: 0 | BX236: 0
B238: Repayments | G238: Debt | H238: =Assumptions!G23 -> USD | I238: =F166 -> 30322886.15 | J238: =Assumptions!G22 -> PKR | K238: =G166 -> 3755982952 | L238: Applied | M238: =IF(E233,K238,I238) -> 3755982952
C239: Repayment Timing Switch | F239: =Assumptions!G151 -> 22 | G239: =AND(G21>0,G21<=$F$239) -> FALSE | H239: FALSE | I239: FALSE | J239: FALSE | K239: FALSE | L239: FALSE | M239: FALSE | N239: FALSE | O239: FALSE | P239: FALSE | Q239: FALSE | R239: FALSE | S239: FALSE | T239: FALSE | U239: FALSE | V239: FALSE | W239: FALSE | X239: FALSE | Y239: FALSE | Z239: FALSE | AA239: FALSE | AB239: FALSE | AC239: FALSE | AD239: FALSE | AE239: FALSE | AF239: TRUE | AG239: TRUE | AH239: TRUE | AI239: TRUE | AJ239: TRUE | AK239: TRUE | AL239: TRUE | AM239: =AND(AM21>0,AM21<=$F$239) -> TRUE | AN239: TRUE | AO239: TRUE | AP239: TRUE | AQ239: TRUE | AR239: TRUE | AS239: TRUE | AT239: TRUE | AU239: TRUE | AV239: TRUE | AW239: TRUE | AX239: TRUE | AY239: TRUE | AZ239: TRUE | BA239: TRUE | BB239: FALSE | BC239: FALSE | BD239: FALSE | BE239: FALSE | BF239: FALSE | BG239: FALSE | BH239: FALSE | BI239: FALSE | BJ239: FALSE | BK239: FALSE | BL239: FALSE | BM239: FALSE | BN239: FALSE | BO239: FALSE | BP239: FALSE | BQ239: FALSE | BR239: FALSE | BS239: =AND(BS21>0,BS21<=$F$239) -> FALSE | BT239: FALSE | BU239: FALSE | BV239: FALSE | BW239: FALSE | BX239: FALSE
C240: Level Repayment | E240: =Assumptions!$G$147 -> PKR | F240: =IF($E$233,K238/F239,I238/F239) -> 170726497.8 | G240: =IF(G239,PPMT(G259,G21,$F$239,-$M$238))*1 -> 0 | H240: =IF(H239,PPMT(H259,H21,$F$239,-$M$238))*1 -> 0 | I240: 0 | J240: 0 | K240: 0 | L240: 0 | M240: 0 | N240: 0 | O240: 0 | P240: 0 | Q240: 0 | R240: 0 | S240: 0 | T240: 0 | U240: 0 | V240: 0 | W240: 0 | X240: 0 | Y240: 0 | Z240: 0 | AA240: 0 | AB240: 0 | AC240: 0 | AD240: 0 | AE240: 0 | AF240: 59738882.37 | AG240: 65115381.79 | AH240: 70975766.15 | AI240: 77363585.1 | AJ240: 84326307.76 | AK240: 91915675.46 | AL240: 100188086.2 | AM240: 109205014 | AN240: 119033465.3 | AO240: 129746477.1 | AP240: 141423660.1 | AQ240: 154151789.5 | AR240: 168025450.6 | AS240: 183147741.1 | AT240: 199631037.8 | AU240: 217597831.2 | AV240: 237181636 | AW240: 258527983.3 | AX240: 281795501.7 | AY240: 307157096.9 | AZ240: 334801235.6 | BA240: 364933346.8 | BB240: 0 | BC240: 0 | BD240: 0 | BE240: 0 | BF240: 0 | BG240: 0 | BH240: 0 | BI240: 0 | BJ240: 0 | BK240: 0 | BL240: 0 | BM240: 0 | BN240: 0 | BO240: 0 | BP240: 0 | BQ240: 0 | BR240: 0 | BS240: 0 | BT240: =IF(BT239,PPMT(BT259,BT21,$F$239,-$M$238))*1 -> 0 | BU240: 0 | BV240: 0 | BW240: 0 | BX240: 0
C241: Sculpted Repayment Calculations
D242: EBITDA | E242: =Assumptions!$G$147 -> PKR | G242: =IF($E$233,G179*G239,G75*G239) -> 0 | H242: 0 | I242: 0 | J242: 0 | K242: 0 | L242: 0 | M242: 0 | N242: 0 | O242: 0 | P242: 0 | Q242: 0 | R242: 0 | S242: 0 | T242: 0 | U242: 0 | V242: 0 | W242: 0 | X242: 0 | Y242: 0 | Z242: 0 | AA242: 0 | AB242: 0 | AC242: 0 | AD242: 0 | AE242: 0 | AF242: 604705773.1 | AG242: 640988119.5 | AH242: 679447406.7 | AI242: 720214251.1 | AJ242: 763427106.1 | AK242: 809232732.5 | AL242: 857786696.5 | AM242: =IF($E$233,AM179*AM239,AM75*AM239) -> 909253898.3 | AN242: 963809132.2 | AO242: 1021637680 | AP242: 1082935941 | AQ242: 1147912097 | AR242: 1216786823 | AS242: 1289794033 | AT242: 1367181675 | AU242: 1449212575 | AV242: 1536165329 | AW242: 1628335249 | AX242: 1726035364 | AY242: 1829597486 | AZ242: 1939373335 | BA242: 2055735735 | BB242: 0 | BC242: 0 | BD242: 0 | BE242: 0 | BF242: 0 | BG242: 0 | BH242: 0 | BI242: 0 | BJ242: 0 | BK242: 0 | BL242: 0 | BM242: 0 | BN242: 0 | BO242: 0 | BP242: 0 | BQ242: 0 | BR242: 0 | BS242: =IF($E$233,BS179*BS239,BS75*BS239) -> 0 | BT242: 0 | BU242: 0 | BV242: 0 | BW242: 0 | BX242: 0
D243: Less: Tax | E243: =Assumptions!$G$147 -> PKR
... 254 more rows

Sheet Sensitivity Factors
B2: The idea of this is that you can replace all of the sensitivity variables and then adjust the spinner boxes. The sensivity variables are divided by 100
C5: Fixed Number from Macro | D5: Computed Number | H5: Base Case | I5: Low Case | J5: High Case | K5: With Tracking | L5: Low Price Case
B6: Plant Life | C6: 103 | D6: =C6/100 -> 1.03 | F6: =Assumptions!G10 -> 25 | H6: 100 | I6: 100 | J6: 100 | K6: 100 | L6: 100
B7: Irriadiation with Tilt | C7: 100 | D7: 1 | H7: 100 | I7: 90 | J7: 100 | K7: 100 | L7: 100 | Q7: base_case | R7: ='Sensitivity Factors'!$H$2:$H$19
B8: Increased Irriadiation from Tracking | C8: 0 | H8: 0 | I8: 0 | J8: 0 | K8: 0 | L8: 0 | Q8: sensitivity | R8: ='Sensitivity Factors'!$C$2:$C$19
B9: Performance Ratio | C9: 100 | D9: 1 | H9: 100 | I9: 100 | J9: 100 | K9: 100 | L9: 100
B10: Degradation | C10: 100 | D10: 1 | H10: 100 | I10: 110 | J10: 100 | K10: 100 | L10: 100
B11: Price of Electricity | C11: 92 | D11: 0.92 | H11: 100 | I11: 100 | J11: 100 | K11: 100 | L11: 50
B12: Price Escalation | C12: 100 | D12: 1 | H12: 100 | I12: 100 | J12: 100 | K12: 100 | L12: 100
B13: O&M Sensitivity | C13: 100 | D13: 1 | H13: 100 | I13: 120 | J13: 100 | K13: 100 | L13: 100 | Q13: 3
O14: =TRANSPOSE(H5:L5) -> Base Case | Q14: 1
B15: Cost of Tracking System per kW | C15: 0 | H15: 0 | I15: 0 | J15: 0 | K15: 0 | L15: 0 | O15: Low Case
B16: O&M Cost of Tracking System per kW | C16: 0 | H16: 0 | I16: 0 | J16: 0 | K16: 0 | L16: 0 | O16: High Case
B17: Contingency Percent | C17: 50 | D17: =(C17-50)/100 -> 0 | H17: 50 | I17: 70 | J17: 40 | K17: 50 | L17: 50 | O17: With Tracking
B18: EPC Cost Sensitivity | O18: Low Price Case
B20: Development Cost 1 | C20: 7 | H20: 7 | I20: 3 | J20: 10 | K20: 10 | L20: 10
B21: Development Cost 2 | C21: 2 | H21: 2 | I21: 2 | J21: 4 | K21: 10 | L21: 10
B23: Development Multiplier 1 | C23: 8 | H23: 5 | I23: 3 | J23: 8 | K23: 6 | L23: 6
B24: Development Multiplier 2 | C24: 6 | H24: 5 | I24: 3 | J24: 8 | K24: 6 | L24: 6
B28: Debt Percent | C28: 60 | D28: =C28/100 -> 0.6 | H28: 70 | I28: 70 | J28: 70 | K28: 70 | L28: 70
B29: Debt Tenor | C29: 22 | H29: 15 | I29: 15 | J29: 15 | K29: 15 | L29: 15
B30: LIBOR Rate | C30: 100 | D30: =C30/100 -> 1 | H30: 100 | I30: 100 | J30: 100 | K30: 100 | L30: 100
B31: Credit Spread | C31: 100 | D31: =C31/100 -> 1 | H31: 100 | I31: 100 | J31: 100 | K31: 100 | L31: 100
B32: Country Risk Premium | C32: 100 | D32: =C32/100 -> 1 | H32: 100 | I32: 120 | J32: 0 | K32: 100 | L32: 100
H33: End of Range | I33: End of Range | J33: End of Range | K33: End of Range | L33: End of Range
B35: Revenue Inflation Switch | C35: TRUE
B36: Sculpt Switch | C36: FALSE
B39: Scenario | C39: 1
B41: Year | G41: =Assumptions!H28 -> 2016 | H41: =G41+4 -> 2020 | I41: =H41+4 -> 2024 | J41: 2028 | K41: 2032
B42: LOCAL Inflation Rate - 6% | F42: Annual % | G42: 0.06 | H42: 0.06 | I42: 0.06 | J42: 0.06 | K42: 0.06
B43: LOCAL Inflation Rate - 6% Declining | F43: Annual % | G43: 0.06 | H43: 0.05 | I43: 0.045 | J43: 0.06 | K43: 0.06
B44: LOCAL Inflation Rate - 4% | F44: Annual % | G44: 0.04 | H44: 0.04 | I44: 0.04 | J44: 0.04 | K44: 0.04
B45: LOCAL Inflation Rate - 6% Increasing | F45: Annual % | G45: 0.06 | H45: 0.08 | I45: 0.1 | J45: 0.12 | K45: 0.14
B46: LOCAL Inflation Rate - 0% Increasing | F46: Annual % | G46: 0 | H46: 0 | I46: 0 | J46: 0 | K46: 0
B47: LOCAL Inflation Rate 1.5% | F47: Annual % | G47: 0.015 | H47: 0.015 | I47: 0.015 | J47: 0.015 | K47: 0.015
B49: =INDEX(B42:B47,$C$39) -> LOCAL Inflation Rate - 6% | F49: =INDEX(F42:F47,$C$39) -> Annual % | G49: 0.06 | H49: 0.06 | I49: 0.06 | J49: 0.06 | K49: 0.06
C51: 3
B53: FOREIGN Inflation Rate - 1.5% | F53: Annual % | G53: 0.015 | H53: 0.015 | I53: 0.015 | J53: 0.015 | K53: 0.015
B54: FOREIGN Inflation Rate - .5% Increasing | F54: Annual % | G54: 0 | H54: 0.01 | I54: 0.015 | J54: 0.02 | K54: 0.02
B55: FOREIGN Inflation Rate - Changing | F55: Annual % | G55: 0 | H55: 0.01 | I55: 0.015 | J55: 0.02 | K55: 0.02
B56: FOREIGN Inflation Rate - Zero | F56: Annual % | G56: 0 | H56: 0 | I56: 0 | J56: 0 | K56: 0
B57: FOREIGN Inflation Rate 1.5% | F57: Annual % | G57: 0.015 | H57: 0.015 | I57: 0.015 | J57: 0.015 | K57: 0.015
B59: =INDEX(B53:B57,$C$51) -> FOREIGN Inflation Rate - Changing | F59: =INDEX(F53:F57,$C$51) -> Annual % | G59: 0 | H59: 0.01 | I59: 0.015 | J59: 0.02 | K59: 0.02
C61: 2
B63: Simple PPP Exchange Rate | F63: Annual % | G63: 0 | H63: 0 | I63: 0 | J63: 0 | K63: 0
B64: 3% Devaluation in LOCAL Relative to PPP | F64: Annual % | G64: 0.03 | H64: 0.03 | I64: 0.03 | J64: 0.03 | K64: 0
B65: 1% Appreciation in LOCAL relative to PPP | F65: Annual % | G65: -0.01 | H65: -0.01 | I65: -0.01 | J65: 0 | K65: 0
B66: Mixed Devaluation and Appreciation | F66: Annual % | G66: 0.02 | H66: 0.03 | I66: 0.01 | J66: -0.01 | K66: -0.02
B67: Devaluation of LOCAL above PPP Rate | F67: Annual % | G67: 0.02 | H67: 0.03 | I67: 0.01 | J67: 0 | K67: 0
B69: =INDEX(B63:B67,$C$61) -> 3% Devaluation in LOCAL Relative to PPP | F69: =INDEX(F63:F67,$C$61) -> Annual % | G69: =INDEX(G63:G67,$C$61) -> 0.03 | H69: 0.03 | I69: 0.03 | J69: 0.03 | K69: 0
M73: FALSE

Sheet Energy Yield Data "PVSyst"
D2: Ahta | E2: Maharashtra
E4: GlobHor | F4: T Amb | G4: GlobInc | H4: GlobEff | I4: EArray | J4: E_Grid | K4: EffArrR | L4: EffSysR
E5: kWh/m² | F5: °C | G5: kWh/m² | H5: kWh/m² | I5: MWh | J5: MWh | K5: % | L5: %
D6: January | E6: 141.2 | F6: 21.3 | G6: 180 | H6: 171 | I6: 95.5 | J6: 91.8 | K6: 13.19 | L6: 12.68
D7: February | E7: 154 | F7: 24.1 | G7: 197.6 | H7: 188.5 | I7: 103.4 | J7: 99.4 | K7: 13 | L7: 12.5
D8: March | E8: 194.7 | F8: 28.3 | G8: 247.1 | H8: 236.3 | I8: 125.9 | J8: 120.9 | K8: 12.66 | L8: 12.16
D9: April | E9: 201.5 | F9: 31.6 | G9: 252.4 | H9: 242 | I9: 125.4 | J9: 120.4 | K9: 12.35 | L9: 11.85
D10: May | E10: 208.2 | F10: 32.4 | G10: 258 | H10: 246.4 | I10: 128.9 | J10: 123.8 | K10: 12.41 | L10: 11.93
D11: June | E11: 163.1 | F11: 28 | G11: 192.4 | H11: 182.1 | I11: 98.9 | J11: 95.1 | K11: 12.77 | L11: 12.28
D12: July | E12: 133.3 | F12: 26.1 | G12: 155.4 | H12: 146.7 | I12: 80.6 | J12: 77.4 | K12: 12.88 | L12: 12.37
D13: August | E13: 130.9 | F13: 24.8 | G13: 147 | H13: 138.1 | I13: 76.6 | J13: 73.6 | K13: 12.96 | L13: 12.45
D14: September | E14: 150 | F14: 25.2 | G14: 181.6 | H14: 172.2 | I14: 94.9 | J14: 91.1 | K14: 12.98 | L14: 12.47 | AJ14: Module area
D15: October | E15: 162 | F15: 25.2 | G15: 202.9 | H15: 192.9 | I15: 105.8 | J15: 101.7 | K15: 12.96 | L15: 12.46
D16: November | E16: 139.6 | F16: 22.8 | G16: 175.6 | H16: 166.6 | I16: 92.9 | J16: 89.3 | K16: 13.14 | L16: 12.64
D17: December | E17: 134 | F17: 21.09 | G17: 170.1 | H17: 161.2 | I17: 90.7 | J17: 87.2 | K17: 13.25 | L17: 12.74
D18: Year | E18: 1912.5 | F18: 25.91 | G18: 2360.1 | H18: 2244.1 | I18: 1219.3 | J18: 1171.7 | K18: 12.84 | L18: 12.34
D19: Average per Day | E19: =E18/365.4 -> 5.233990148 | G19: =G18/365.4 -> 6.458949097 | H19: 6.141488779 | I19: 3.336891078 | J19: 3.206622879
D20: Average per Hour (Watts) | E20: =E18/8760*1000 -> 218.3219178 | G20: =G18/8760*1000 -> 269.4178082 | H20: 256.1757991 | I20: 139.1894977 | J20: 133.7557078
D21: STC Energy | E21: 1000 | G21: 1000 | H21: 1000 | I21: 1000 | J21: 1000
D22: Percent | E22: =E20/E21 -> 0.2183219178 | G22: =G20/G21 -> 0.2694178082 | H22: =H20/H21 -> 0.2561757991 | I22: =I20/I21 -> 0.1391894977 | J22: =J20/J21 -> 0.1337557078
D24: Nominal Power (= Plant Capacity at STC = Pnom (STC)) | E24: kWp | F24: 612 | H24: =F24*100 -> 61200
D25: # of Modules (plant) | E25: pcs. | F25: 2400 | H25: =F25*100 -> 240000
D26: Total Module Area (= Generator area of the plant) | E26: m2 | F26: 4024 | H26: =F26*100 -> 402400
D28: Module Efficiency (STC = 25°C, 1000 W/m2, AM=1.5) | E28: - | F28: 0.1521 | H28: =F28 -> 0.1521
D30: Maximum Energy Output (theoretical) / year | E30: kWh/Year | F30: =G18*F26*F28 -> 1444500.149 | H30: =F30*100 -> 144450014.9
E31: MWh/Year | F31: =F30/1000 -> 1444.500149 | H31: =F31*100 -> 144450.0149
D33: Real Energy Produced (= E_GRID) = Plant Output / year | E33: MWh/Year | F33: =$J$18 -> 1171.7 | G33: =F33/F31 -> 0.8111456415 | H33: =F33*100 -> 117170
E34: kWh/Year | F34: =F33*1000 -> 1171700 | H34: =F34*100 -> 117170000
E35: kWh/day | F35: =F34/365.25 -> 3207.939767
D37: Real Energy Produced / kWp installed | E37: kWh/kWp/Year | F37: =F34/$F$24 -> 1914.542484 | G37: =F37/8760 -> 0.218555078 | H37: =F37 -> 1914.542484
E38: kWh/kWp/Day | F38: =F37/365.25 -> 5.241731646 | H38: =F38 -> 5.241731646
D40: Perfromance Ratio (PR) | E40: % | F40: =F34/F30 -> 0.8111456415 | H40: =F40 -> 0.8111456415
D42: Capacity (utilization) Factor | E42: % | F42: =F34/(F24*'Financial Model'!E35) -> 0.2184054852 | H42: =F42 -> 0.2184054852

Sheet Debt Translation
A3: Period | C3: 0 | D3: =C3+1 -> 1 | E3: =D3+1 -> 2 | F3: 3 | G3: 4 | H3: 5 | I3: 6 | J3: 7 | K3: 8 | L3: 9 | M3: 10
A4: Foreign | D4: 0.01 | E4: 0.01 | F4: 0.01 | G4: 0.01 | H4: 0.01 | I4: 0.01 | J4: 0.01 | K4: 0.01 | L4: 0.01 | M4: 0.01
A5: Local | D5: 0.1 | E5: 0.08 | F5: 0.09 | G5: 0.11 | H5: 0.1 | I5: 0.1 | J5: 0.1 | K5: 0.1 | L5: 0.1 | M5: 0.1
A7: PPP | C7: 100 | D7: =C7*(1+D5)/(1+D4) -> 108.9108911 | E7: =D7*(1+E5)/(1+E4) -> 116.4591707 | F7: 125.6836594 | G7: 138.1275861 | H7: 150.4359849 | I7: 163.8411716 | J7: 178.44088 | K7: 194.3415525 | L7: 211.6591166 | M7: 230.5198299
A9: Debt Local
B10: Opening Balance | D10: =C13 -> 5000 | E10: =D13 -> 10000 | F10: 8888.888889 | G10: 7777.777778 | H10: 6666.666667 | I10: 5555.555556 | J10: 4444.444444 | K10: 3333.333333 | L10: 2222.222222 | M10: 1111.111111
B11: Add: Draws | C11: 5000 | D11: 5000
B12: Less: Repayments | E12: =$C$30/9 -> 1111.111111 | F12: =$C$30/9 -> 1111.111111 | G12: 1111.111111 | H12: 1111.111111 | I12: 1111.111111 | J12: 1111.111111 | K12: 1111.111111 | L12: 1111.111111 | M12: 1111.111111
B13: Closing Balance | C13: =C10+C11-C12 -> 5000 | D13: =D10+D11-D12 -> 10000 | E13: =E10+E11-E12 -> 8888.888889 | F13: =F10+F11-F12 -> 7777.777778 | G13: =G10+G11-G12 -> 6666.666667 | H13: =H10+H11-H12 -> 5555.555556 | I13: =I10+I11-I12 -> 4444.444444 | J13: =J10+J11-J12 -> 3333.333333 | K13: =K10+K11-K12 -> 2222.222222 | L13: =L10+L11-L12 -> 1111.111111 | M13: =M10+M11-M12 -> 0
B14: Interest | C14: 0.15 | D14: =$C$31*D10 -> 750 | E14: 1500 | F14: 1333.333333 | G14: 1166.666667 | H14: 1000 | I14: 833.3333333 | J14: 666.6666667 | K14: 500 | L14: 333.3333333 | M14: 166.6666667
B16: Adjustment Factor | D16: =(D7-C7)/D7 -> 0.08181818182 | E16: =(E7-D7)/E7 -> 0.06481481481 | F16: 0.07339449541 | G16: 0.09009009009 | H16: 0.08181818182 | I16: 0.08181818182 | J16: 0.08181818182 | K16: 0.08181818182 | L16: 0.08181818182 | M16: 0.08181818182
A18: Debt Foreign
B19: Opening Balance | D19: =C23 -> 50 | E19: =D23 -> 91.81818182 | F19: 76.32622522 | G19: 61.88376288 | H19: 48.26455637 | I19: 36.92969844 | J19: 27.12654212 | K19: 18.68032333 | L19: 11.43462216 | M19: 5.249531081
B20: Add: Draws | C20: =C11/C7 -> 50 | D20: =D11/D7 -> 45.90909091 | E20: 0 | F20: 0 | G20: 0 | H20: 0 | I20: 0 | J20: 0 | K20: 0 | L20: 0 | M20: 0
B21: Less: Repayments | C21: =C12/C7 -> 0 | D21: =D12/D7 -> 0 | E21: 9.540778152 | F21: 8.840537554 | G21: 8.044092729 | H21: 7.385939687 | I21: 6.781635531 | J21: 6.226774442 | K21: 5.717311079 | L21: 5.249531081 | M21: 4.820023993 | O21: =SUM(C21:M21) -> 62.60662425
B22: Gain on Translation as Liability Goes Down | D22: =D19*D16 -> 4.090909091 | E22: 5.951178451 | F22: 5.601924786 | G22: 5.575113773 | H22: 3.948918249 | I22: 3.021520781 | J22: 2.219444356 | K22: 1.52839009 | L22: 0.9355599947 | M22: 0.4295070885
B23: Closing Balance | C23: =C19+C20-C21 -> 50 | D23: =D19+D20-D21-D22 -> 91.81818182 | E23: =E19+E20-E21-E22 -> 76.32622522 | F23: =F19+F20-F21-F22 -> 61.88376288 | G23: 48.26455637 | H23: 36.92969844 | I23: 27.12654212 | J23: 18.68032333 | K23: 11.43462216 | L23: 5.249531081 | M23: 6.494804694e-15
B24: Interest
A26: Debt Local
B27: Opening Balance | D27: =C30 -> 10000 | E27: =D30 -> 9000 | F27: 8000 | G27: 7000 | H27: 6000 | I27: 5000 | J27: 4000 | K27: 3000 | L27: 2000 | M27: 1000
B28: Add: Draws | C28: 10000
B29: Less: Repayments | D29: =$C$30/10 -> 1000 | E29: =$C$30/10 -> 1000 | F29: 1000 | G29: 1000 | H29: 1000 | I29: 1000 | J29: 1000 | K29: 1000 | L29: 1000 | M29: 1000
B30: Closing Balance | C30: =C27+C28-C29 -> 10000 | D30: =D27+D28-D29 -> 9000 | E30: 8000 | F30: 7000 | G30: 6000 | H30: 5000 | I30: 4000 | J30: 3000 | K30: 2000 | L30: 1000 | M30: 0
B31: Interest | C31: 0.15 | D31: =$C$31*D27 -> 1500 | E31: =$C$31*E27 -> 1350 | F31: 1200 | G31: 1050 | H31: 900 | I31: 750 | J31: 600 | K31: 450 | L31: 300 | M31: 150
D33: =D16 -> 0.08181818182 | E33: 0.06481481481 | F33: 0.07339449541 | G33: 0.09009009009 | H33: 0.08181818182 | I33: 0.08181818182 | J33: 0.08181818182 | K33: 0.08181818182 | L33: 0.08181818182 | M33: 0.08181818182
O34: Liability goes down so gain
A35: Debt Foreign
B36: Opening Balance | D36: =C40 -> 100 | E36: =D40 -> 82.63636364 | F36: 68.69360269 | G36: 55.69538659 | H36: 43.43810074 | I36: 33.23672859 | J36: 24.41388791 | K36: 16.81229099 | L36: 10.29115994 | M36: 4.724577973
B37: Add: Draws | C37: =C28/C7 -> 100 | D37: 0 | E37: 0 | F37: 0 | G37: 0 | H37: 0 | I37: 0 | J37: 0 | K37: 0 | L37: 0 | M37: 0
B38: Less: Repayments | C38: =C29/C7 -> 0 | D38: 9.181818182 | E38: 8.586700337 | F38: 7.956483798 | G38: 7.239683456 | H38: 6.647345719 | I38: 6.103471978 | J38: 5.604096998 | K38: 5.145579971 | L38: 4.724577973 | M38: 4.338021594 | O38: =SUM(D38:M38) -> 65.52778001 | P38: =O38-C40 -> -34.47221999
B39: Gain on Translation | D39: =D36*D33 -> 8.181818182 | E39: =E36*E33 -> 5.356060606 | F39: 5.041732308 | G39: 5.017602395 | H39: 3.554026424 | I39: 2.719368703 | J39: 1.99749992 | K39: 1.375551081 | L39: 0.8420039952 | M39: 0.3865563796 | O39: =SUM(D39:M39) -> 34.47221999
B40: Closing Balance | C40: =C36+C37-C38+C39 -> 100 | D40: =D36+D37-D38-D39 -> 82.63636364 | E40: =E36+E37-E38-E39 -> 68.69360269 | F40: 55.69538659 | G40: 43.43810074 | H40: 33.23672859 | I40: 24.41388791 | J40: 16.81229099 | K40: 10.29115994 | L40: 4.724577973 | M40: -2.220446049e-15
B41: Interest | D41: =D31/D7 -> 13.77272727 | E41: 11.59204545 | F41: 9.547780558 | G41: 7.601667629 | H41: 5.982611147 | I41: 4.577603984 | J41: 3.362458199 | K41: 2.315510987 | L41: 1.417373392 | M41: 0.6507032391

Sheet DSRA Translation
A3: Period | C3: 0 | D3: =C3+1 -> 1 | E3: =D3+1 -> 2 | F3: 3 | G3: 4 | H3: 5 | I3: 6 | J3: 7 | K3: 8 | L3: 9 | M3: 10
A4: Foreign | D4: 0.01 | E4: 0.01 | F4: 0.01 | G4: 0.01 | H4: 0.01 | I4: 0.01 | J4: 0.01 | K4: 0.01 | L4: 0.01 | M4: 0.01
A5: Local | D5: 0.1 | E5: 0.08 | F5: 0.09 | G5: 0.11 | H5: 0.1 | I5: 0.1 | J5: 0.1 | K5: 0.1 | L5: 0.1 | M5: 0.1
A7: PPP | C7: 100 | D7: =C7*(1+D5)/(1+D4) -> 108.9108911 | E7: =D7*(1+E5)/(1+E4) -> 116.4591707 | F7: 125.6836594 | G7: 138.1275861 | H7: 150.4359849 | I7: 163.8411716 | J7: 178.44088 | K7: 194.3415525 | L7: 211.6591166 | M7: 230.5198299
A9: DSRA Local
B10: Opening Balance | D10: =C13 -> 1000 | E10: =D13 -> 1000 | F10: 888.8888889 | G10: 777.7777778 | H10: 666.6666667 | I10: 555.5555556 | J10: 444.4444444 | K10: 333.3333333 | L10: 222.2222222 | M10: 111.1111111
B11: Add: Deposits | C11: 1000 | D11: 0
B12: Less: Repayments | E12: =$C$11/9 -> 111.1111111 | F12: =$C$11/9 -> 111.1111111 | G12: 111.1111111 | H12: 111.1111111 | I12: 111.1111111 | J12: 111.1111111 | K12: 111.1111111 | L12: 111.1111111 | M12: 111.1111111
B13: Closing Balance | C13: =C10+C11-C12 -> 1000 | D13: =D10+D11-D12 -> 1000 | E13: 888.8888889 | F13: 777.7777778 | G13: 666.6666667 | H13: 555.5555556 | I13: 444.4444444 | J13: 333.3333333 | K13: 222.2222222 | L13: 111.1111111 | M13: 1.421085472e-13
B14: Interest Income | C14: 0 | D14: =$C$31*D10 -> 150 | E14: 150 | F14: 133.3333333 | G14: 116.6666667 | H14: 100 | I14: 83.33333333 | J14: 66.66666667 | K14: 50 | L14: 33.33333333 | M14: 16.66666667
B16: Adjustment Factor | D16: =(D7-C7)/D7 -> 0.08181818182 | E16: =(E7-D7)/E7 -> 0.06481481481 | F16: 0.07339449541 | G16: 0.09009009009 | H16: 0.08181818182 | I16: 0.08181818182 | J16: 0.08181818182 | K16: 0.08181818182 | L16: 0.08181818182 | M16: 0.08181818182
A18: Debt Foreign
B19: Opening Balance | D19: =C23 -> 10 | E19: =D23 -> 9.181818182 | F19: 7.632622522 | G19: 6.188376288 | H19: 4.826455637 | I19: 3.692969844 | J19: 2.712654212 | K19: 1.868032333 | L19: 1.143462216 | M19: 0.5249531081
B20: Add: Draws | C20: =C11/C7 -> 10 | D20: =D11/D7 -> 0 | E20: 0 | F20: 0 | G20: 0 | H20: 0 | I20: 0 | J20: 0 | K20: 0 | L20: 0 | M20: 0
B21: Less: Repayments | C21: =C12/C7 -> 0 | D21: =D12/D7 -> 0 | E21: 0.9540778152 | F21: 0.8840537554 | G21: 0.8044092729 | H21: 0.7385939687 | I21: 0.6781635531 | J21: 0.6226774442 | K21: 0.5717311079 | L21: 0.5249531081 | M21: 0.4820023993 | O21: =SUM(C21:M21) -> 6.260662425
B22: Loss on Translation as Value Declines | D22: =D19*D16 -> 0.8181818182 | E22: =E19*E16 -> 0.5951178451 | F22: 0.5601924786 | G22: 0.5575113773 | H22: 0.3948918249 | I22: 0.3021520781 | J22: 0.2219444356 | K22: 0.152839009 | L22: 0.09355599947 | M22: 0.04295070885
B23: Closing Balance | C23: =C19+C20-C21 -> 10 | D23: =D19+D20-D21-D22 -> 9.181818182 | E23: =E19+E20-E21-E22 -> 7.632622522 | F23: =F19+F20-F21-F22 -> 6.188376288 | G23: 4.826455637 | H23: 3.692969844 | I23: 2.712654212 | J23: 1.868032333 | K23: 1.143462216 | L23: 0.5249531081 | M23: 1.526556659e-16
B24: Interest
A26: Debt Local
B27: Opening Balance | D27: =C30 -> 10000 | E27: =D30 -> 9000 | F27: 8000 | G27: 7000 | H27: 6000 | I27: 5000 | J27: 4000 | K27: 3000 | L27: 2000 | M27: 1000
B28: Add: Draws | C28: 10000
B29: Less: Repayments | D29: =$C$30/10 -> 1000 | E29: =$C$30/10 -> 1000 | F29: 1000 | G29: 1000 | H29: 1000 | I29: 1000 | J29: 1000 | K29: 1000 | L29: 1000 | M29: 1000
B30: Closing Balance | C30: =C27+C28-C29 -> 10000 | D30: =D27+D28-D29 -> 9000 | E30: 8000 | F30: 7000 | G30: 6000 | H30: 5000 | I30: 4000 | J30: 3000 | K30: 2000 | L30: 1000 | M30: 0
B31: Interest | C31: 0.15 | D31: =$C$31*D27 -> 1500 | E31: =$C$31*E27 -> 1350 | F31: 1200 | G31: 1050 | H31: 900 | I31: 750 | J31: 600 | K31: 450 | L31: 300 | M31: 150
D33: =D16 -> 0.08181818182 | E33: 0.06481481481 | F33: 0.07339449541 | G33: 0.09009009009 | H33: 0.08181818182 | I33: 0.08181818182 | J33: 0.08181818182 | K33: 0.08181818182 | L33: 0.08181818182 | M33: 0.08181818182
O34: Liability goes down so gain
A35: Debt Foreign
B36: Opening Balance | D36: =C40 -> 100 | E36: =D40 -> 82.63636364 | F36: 68.69360269 | G36: 55.69538659 | H36: 43.43810074 | I36: 33.23672859 | J36: 24.41388791 | K36: 16.81229099 | L36: 10.29115994 | M36: 4.724577973
B37: Add: Draws | C37: =C28/C7 -> 100 | D37: 0 | E37: 0 | F37: 0 | G37: 0 | H37: 0 | I37: 0 | J37: 0 | K37: 0 | L37: 0 | M37: 0
B38: Less: Repayments | C38: =C29/C7 -> 0 | D38: 9.181818182 | E38: 8.586700337 | F38: 7.956483798 | G38: 7.239683456 | H38: 6.647345719 | I38: 6.103471978 | J38: 5.604096998 | K38: 5.145579971 | L38: 4.724577973 | M38: 4.338021594 | O38: =SUM(D38:M38) -> 65.52778001 | P38: =O38-C40 -> -34.47221999
B39: Gain on Translation | D39: =D36*D33 -> 8.181818182 | E39: =E36*E33 -> 5.356060606 | F39: 5.041732308 | G39: 5.017602395 | H39: 3.554026424 | I39: 2.719368703 | J39: 1.99749992 | K39: 1.375551081 | L39: 0.8420039952 | M39: 0.3865563796 | O39: =SUM(D39:M39) -> 34.47221999
B40: Closing Balance | C40: =C36+C37-C38+C39 -> 100 | D40: =D36+D37-D38-D39 -> 82.63636364 | E40: =E36+E37-E38-E39 -> 68.69360269 | F40: 55.69538659 | G40: 43.43810074 | H40: 33.23672859 | I40: 24.41388791 | J40: 16.81229099 | K40: 10.29115994 | L40: 4.724577973 | M40: -2.220446049e-15
B41: Interest | D41: =D31/D7 -> 13.77272727 | E41: 11.59204545 | F41: 9.547780558 | G41: 7.601667629 | H41: 5.982611147 | I41: 4.577603984 | J41: 3.362458199 | K41: 2.315510987 | L41: 1.417373392 | M41: 0.6507032391
